Workbook

Sheet page 252
A1: FIVE YEARS OF PRICES FOR 10 STOCKS AND THE SP500
B2: McDonalds | C2: US Steel | D2: Arcelor-Mittal | E2: Microsoft | F2: Apple | G2: Kellogg | H2: General Electric | I2: Bank of America | J2: Pfizer | K2: Exxon | L2: S&P500
A3: Market value ($ billion) | B3: 91.72 | C3: 2.92 | D3: 22.72 | E3: 249.84 | F3: 568.71 | G3: 17.51 | H3: 207.72 | I3: 80.61 | J3: 168.03
A5: Date | B5: MCD | C5: X | D5: MT | E5: MSFT | F5: AAPL | G5: K | H5: GE | I5: BAC | J5: PFE | K5: XOM | L5: ^GSPC
A6: 2007-02-01 | B6: 37.57 | C6: 84.74 | D6: 44.84 | E6: 25.53 | F6: 84.61 | G6: 43.45 | H6: 28.97 | I6: 44.68 | J6: 19.57 | K6: 64.2 | L6: 1406.82
A7: 2007-03-01 | B7: 38.74 | C7: 94.76 | D7: 46.63 | E7: 25.26 | F7: 92.91 | G7: 44.83 | H7: 29.34 | I7: 44.85 | J7: 19.8 | K7: 67.58 | L7: 1420.86
A8: 2007-04-02 | B8: 41.52 | C8: 97.03 | D8: 47.1 | E8: 27.14 | F8: 99.8 | G8: 46.12 | H8: 30.59 | I8: 44.74 | J8: 20.74 | K8: 71.1 | L8: 1482.37
A9: 2007-05-01 | B9: 43.47 | C9: 108.33 | D9: 53.19 | E9: 27.91 | F9: 121.19 | G9: 47.31 | H9: 31.18 | I9: 45.07 | J9: 21.78 | K9: 74.81 | L9: 1530.62
A10: 2007-06-01 | B10: 43.65 | C10: 104.1 | D10: 55.32 | E10: 26.8 | F10: 122.04 | G10: 45.39 | H10: 32 | I10: 43.45 | J10: 20.26 | K10: 75.45 | L10: 1503.35
A11: 2007-07-02 | B11: 41.17 | C11: 94.09 | D11: 54.1 | E11: 26.36 | F11: 131.76 | G11: 45.41 | H11: 32.4 | I11: 42.14 | J11: 18.63 | K11: 76.58 | L11: 1455.27
A12: 2007-08-01 | B12: 42.35 | C12: 90.65 | D12: 58.99 | E12: 26.22 | F12: 138.48 | G12: 48.42 | H12: 32.49 | I12: 45.04 | J12: 19.92 | K12: 77.42 | L12: 1473.99
A13: 2007-09-04 | B13: 46.84 | C13: 101.65 | D13: 69.82 | E13: 26.88 | F13: 153.47 | G13: 49.36 | H13: 34.84 | I13: 45.24 | J13: 19.59 | K13: 83.59 | L13: 1526.75
A14: 2007-10-01 | B14: 51.38 | C14: 103.53 | D14: 71.24 | E14: 33.59 | F14: 189.95 | G14: 46.53 | H14: 34.63 | I14: 43.45 | J14: 19.73 | K14: 83.08 | L14: 1549.38
A15: 2007-11-01 | B15: 51.6 | C15: 93.93 | D15: 66.07 | E15: 30.76 | F15: 182.22 | G15: 47.91 | H15: 32.22 | I15: 41.52 | J15: 19.29 | K15: 80.83 | L15: 1481.14
A16: 2007-12-03 | B16: 51.99 | C16: 116.25 | D16: 69.23 | E16: 32.59 | F16: 198.08 | G16: 46.48 | H16: 31.46 | I16: 37.67 | J16: 18.45 | K16: 84.94 | L16: 1468.36
A17: 2008-01-02 | B17: 47.29 | C17: 98.03 | D17: 59.42 | E17: 29.84 | F17: 135.36 | G17: 42.38 | H17: 30.01 | I17: 40.31 | J17: 18.96 | K17: 77.7 | L17: 1378.55
A18: 2008-02-01 | B18: 48.08 | C18: 104.53 | D18: 68.04 | E18: 25 | F18: 125.02 | G18: 45.24 | H18: 28.38 | I18: 36.28 | J18: 18.34 | K18: 79.23 | L18: 1330.63
A19: 2008-03-03 | B19: 49.56 | C19: 122.29 | D19: 73.58 | E19: 26.08 | F19: 143.5 | G19: 46.88 | H19: 31.69 | I19: 35.19 | J19: 17.23 | K19: 77.01 | L19: 1322.7
A20: 2008-04-01 | B20: 52.94 | C20: 148.39 | D20: 80.14 | E20: 26.21 | F20: 173.95 | G20: 45.64 | H20: 28 | I20: 34.85 | J20: 16.55 | K20: 84.74 | L20: 1385.59
A21: 2008-05-01 | B21: 52.71 | C21: 166.72 | D21: 89.35 | E21: 26.12 | F21: 188.75 | G21: 46.5 | H21: 26.31 | I21: 31.57 | J21: 16.19 | K21: 81.18 | L21: 1400.38
A22: 2008-06-02 | B22: 50.28 | C22: 178.37 | D22: 89.45 | E22: 25.38 | F22: 167.44 | G22: 43.09 | H22: 23.11 | I22: 22.59 | J22: 14.61 | K22: 80.6 | L22: 1280
A23: 2008-07-01 | B23: 53.47 | C23: 154.79 | D23: 78.93 | E23: 23.72 | F23: 158.95 | G23: 47.62 | H23: 24.5 | I23: 31.14 | J23: 15.61 | K23: 73.56 | L23: 1267.38
A24: 2008-08-01 | B24: 55.79 | C24: 128.73 | D24: 70.99 | E24: 25.27 | F24: 169.53 | G24: 49.16 | H24: 24.33 | I24: 29.48 | J24: 16.25 | K24: 73.55 | L24: 1282.83
A25: 2008-09-02 | B25: 55.52 | C25: 75.08 | D25: 44.8 | E25: 24.72 | F25: 113.66 | G25: 50.66 | H25: 22.38 | I25: 33.79 | J25: 15.68 | K25: 71.39 | L25: 1166.36
A26: 2008-10-01 | B26: 52.13 | C26: 35.68 | D26: 23.82 | E26: 20.68 | F26: 107.59 | G26: 45.53 | H26: 17.12 | I26: 23.34 | J26: 15.06 | K26: 68.14 | L26: 968.75
A27: 2008-11-03 | B27: 53.33 | C27: 29.69 | D27: 21.48 | E27: 18.85 | F27: 92.67 | G27: 39.22 | H27: 15.07 | I27: 15.69 | J27: 14.21 | K27: 74.1 | L27: 896.24
A28: 2008-12-01 | B28: 56.46 | C28: 36.33 | D28: 22.74 | E28: 18.13 | F28: 85.35 | G28: 39.91 | H28: 14.49 | I28: 13.9 | J28: 15.32 | K28: 73.81 | L28: 903.25
A29: 2009-01-02 | B29: 52.67 | C29: 29.32 | D29: 20.87 | E29: 15.94 | F29: 90.13 | G29: 39.77 | H29: 10.85 | I29: 6.5 | J29: 12.61 | K29: 70.71 | L29: 825.88
A30: 2009-02-02 | B30: 47.87 | C30: 19.38 | D30: 18.02 | E30: 15.16 | F30: 89.31 | G30: 35.74 | H30: 7.84 | I30: 3.9 | J30: 10.88 | K30: 63.09 | L30: 735.09
A31: 2009-03-02 | B31: 50 | C31: 20.81 | D31: 18.69 | E31: 17.25 | F31: 105.12 | G31: 33.64 | H31: 9.31 | I31: 6.75 | J31: 12.04 | K31: 63.28 | L31: 797.87
A32: 2009-04-01 | B32: 48.83 | C32: 26.15 | D32: 21.99 | E32: 19.02 | F32: 125.83 | G32: 38.67 | H32: 11.65 | I32: 8.84 | J32: 11.81 | K32: 61.95 | L32: 872.81
A33: 2009-05-01 | B33: 54.05 | C33: 33.63 | D33: 31.13 | E33: 19.74 | F33: 135.81 | G33: 40.03 | H33: 12.41 | I33: 11.16 | J33: 13.58 | K33: 64.83 | L33: 919.14
A34: 2009-06-01 | B34: 53.11 | C34: 35.26 | D34: 31.04 | E34: 22.46 | F34: 142.43 | G34: 43.1 | H34: 10.88 | I34: 13.08 | J34: 13.41 | K34: 65.35 | L34: 919.32
A35: 2009-07-01 | B35: 50.86 | C35: 39.22 | D35: 33.82 | E35: 22.22 | F35: 163.39 | G35: 43.96 | H35: 12.44 | I35: 14.66 | J35: 14.24 | K35: 65.8 | L35: 987.48
A36: 2009-08-03 | B36: 52.41 | C36: 43.24 | D36: 33.61 | E36: 23.42 | F36: 168.21 | G36: 43.93 | H36: 12.9 | I36: 17.43 | J36: 15.08 | K36: 65.03 | L36: 1020.62
A37: 2009-09-01 | B37: 53.19 | C37: 43.83 | D37: 35.03 | E37: 24.44 | F37: 185.35 | G37: 45.93 | H37: 15.33 | I37: 16.78 | J37: 14.94 | K37: 64.53 | L37: 1057.08
A38: 2009-10-01 | B38: 54.62 | C38: 34.07 | D38: 32.09 | E38: 26.34 | F38: 188.5 | G38: 48.09 | H38: 13.32 | I38: 14.46 | J38: 15.37 | K38: 67.4 | L38: 1036.19
A39: 2009-11-02 | B39: 59.45 | C39: 44.17 | D39: 37.23 | E39: 28.06 | F39: 199.91 | G39: 49.41 | H39: 14.96 | I39: 15.72 | J39: 16.56 | K39: 71.01 | L39: 1095.63
A40: 2009-12-01 | B40: 58.69 | C40: 54.52 | D40: 43.37 | E40: 29.09 | F40: 210.73 | G40: 49.99 | H40: 14.22 | I40: 14.94 | J40: 16.58 | K40: 64.5 | L40: 1115.1
A41: 2010-01-04 | B41: 58.68 | C41: 43.95 | D41: 36.67 | E41: 26.89 | F41: 192.06 | G41: 51.14 | H41: 15.11 | I41: 15.06 | J41: 17.01 | K41: 60.95 | L41: 1073.87
A42: 2010-02-01 | B42: 60.53 | C42: 52.42 | D42: 36.4 | E42: 27.49 | F42: 204.62 | G42: 49.36 | H42: 15.19 | I42: 16.53 | J42: 16.15 | K42: 61.89 | L42: 1104.49
A43: 2010-03-01 | B43: 63.25 | C43: 62.9 | D43: 41.82 | E43: 28.08 | F43: 235 | G43: 50.57 | H43: 17.21 | I43: 17.72 | J43: 15.78 | K43: 63.77 | L43: 1169.43
A44: 2010-04-01 | B44: 66.92 | C44: 54.12 | D44: 36.99 | E44: 29.28 | F44: 261.09 | G44: 52 | H44: 17.84 | I44: 17.7 | J44: 15.38 | K44: 64.52 | L44: 1186.69
A45: 2010-05-03 | B45: 63.92 | C45: 46.79 | D45: 29.07 | E45: 24.85 | F45: 256.88 | G45: 50.93 | H45: 15.46 | I45: 15.63 | J45: 14.16 | K45: 57.96 | L45: 1089.41
A46: 2010-06-01 | B46: 62.97 | C46: 38.21 | D46: 25.65 | E46: 22.16 | F46: 251.53 | G46: 47.95 | H46: 13.72 | I46: 14.28 | J46: 13.26 | K46: 54.71 | L46: 1030.71
A47: 2010-07-01 | B47: 66.66 | C47: 43.94 | D47: 29.43 | E47: 24.86 | F47: 257.25 | G47: 47.71 | H47: 15.34 | I47: 13.95 | J47: 13.95 | K47: 57.21 | L47: 1101.6
A48: 2010-08-02 | B48: 70.36 | C48: 42.16 | D48: 27.96 | E48: 22.72 | F48: 243.1 | G48: 47.74 | H48: 13.78 | I48: 12.38 | J48: 14.96 | K48: 57.07 | L48: 1049.33
A49: 2010-09-01 | B49: 71.76 | C49: 43.5 | D49: 31.81 | E49: 23.71 | F49: 283.75 | G49: 48.53 | H49: 15.58 | I49: 13.03 | J49: 16.14 | K49: 59.65 | L49: 1141.2
A50: 2010-10-01 | B50: 74.9 | C50: 42.39 | D50: 31.24 | E50: 25.82 | F50: 300.98 | G50: 48.29 | H50: 15.36 | I50: 11.39 | J50: 16.38 | K50: 64.19 | L50: 1183.26
A51: 2010-11-01 | B51: 76 | C51: 48.28 | D51: 30.73 | E51: 24.61 | F51: 311.15 | G51: 47.7 | H51: 15.18 | I51: 10.89 | J51: 15.48 | K51: 67.58 | L51: 1180.55
A52: 2010-12-01 | B52: 74.51 | C52: 58.02 | D52: 36.99 | E52: 27.19 | F52: 322.56 | G52: 49.49 | H52: 17.67 | I52: 13.28 | J52: 16.63 | K52: 71.04 | L52: 1257.64
A53: 2011-01-03 | B53: 71.51 | C53: 57.28 | D53: 35.38 | E53: 27.01 | F53: 339.32 | G53: 48.73 | H53: 19.46 | I53: 13.66 | J53: 17.3 | K53: 78.38 | L53: 1286.12
A54: 2011-02-01 | B54: 74.06 | C54: 57.15 | D54: 35.75 | E54: 26.05 | F54: 353.21 | G54: 52.29 | H54: 20.35 | I54: 14.22 | J54: 18.47 | K54: 83.53 | L54: 1327.22
A55: 2011-03-01 | B55: 74.46 | C55: 53.62 | D55: 35.24 | E55: 24.88 | F55: 348.51 | G55: 52.7 | H55: 19.51 | I55: 13.28 | J55: 19.49 | K55: 82.16 | L55: 1325.83
A56: 2011-04-01 | B56: 76.63 | C56: 47.43 | D56: 36.14 | E56: 25.4 | F56: 350.13 | G56: 55.91 | H56: 19.9 | I56: 12.23 | J56: 20.13 | K56: 85.92 | L56: 1363.61
A57: 2011-05-02 | B57: 80.39 | C57: 45.89 | D57: 32.79 | E57: 24.67 | F57: 347.83 | G57: 56.04 | H57: 19.11 | I57: 11.7 | J57: 20.79 | K57: 81.98 | L57: 1345.2
A58: 2011-06-01 | B58: 83.13 | C58: 45.82 | D58: 34.08 | E58: 25.64 | F58: 335.67 | G58: 54.4 | H58: 18.5 | I58: 10.92 | J58: 19.96 | K58: 79.93 | L58: 1320.64
A59: 2011-07-01 | B59: 85.26 | C59: 39.8 | D59: 30.54 | E59: 27.02 | F59: 390.48 | G59: 54.85 | H59: 17.57 | I59: 9.68 | J59: 18.65 | K59: 78.37 | L59: 1292.28
A60: 2011-08-01 | B60: 89.74 | C60: 30.01 | D60: 21.74 | E60: 26.4 | F60: 384.83 | G60: 53.84 | H60: 16 | I60: 8.15 | J60: 18.6 | K60: 73.18 | L60: 1218.89
A61: 2011-09-01 | B61: 87.16 | C61: 21.94 | D61: 15.74 | E61: 24.7 | F61: 381.32 | G61: 52.72 | H61: 15.07 | I61: 6.11 | J61: 17.32 | K61: 71.81 | L61: 1131.42
A62: 2011-10-03 | B62: 92.16 | C62: 25.27 | D62: 20.51 | E62: 26.43 | F62: 404.78 | G62: 53.73 | H62: 16.55 | I62: 6.82 | J62: 18.87 | K62: 77.2 | L62: 1253.3
A63: 2011-11-01 | B63: 95.52 | C63: 27.26 | D63: 18.89 | E63: 25.58 | F63: 382.2 | G63: 49.16 | H63: 15.76 | I63: 5.44 | J63: 19.86 | K63: 80 | L63: 1246.96
A64: 2011-12-01 | B64: 100.33 | C64: 26.42 | D64: 18.19 | E64: 25.96 | F64: 405 | G64: 50.57 | H64: 17.91 | I64: 5.56 | J64: 21.42 | K64: 84.3 | L64: 1257.6
A65: 2012-01-03 | B65: 99.05 | C65: 30.14 | D65: 20.52 | E65: 29.53 | F65: 456.48 | G65: 49.52 | H65: 18.71 | I65: 7.13 | J65: 21.18 | K65: 83.28 | L65: 1312.41
A66: 2012-02-01 | B66: 99.99 | C66: 31.01 | D66: 23.3 | E66: 30.77 | F66: 493.17 | G66: 50.21 | H66: 19.13 | I66: 8.18 | J66: 21.14 | K66: 84.88 | L66: 1351.95

Sheet Page 253
A1: FIVE YEARS OF MONTHLY RETURNS FOR 10 STOCKS AND THE SP500
A2: Date | B2: MCD | C2: X | D2: MT | E2: MSFT | F2: AAPL | G2: K | H2: GE | I2: BAC | J2: PFE | K2: XOM | L2: ^GSPC
A3: 2007-03-01 | B3: =LN('page 252'!B7/'page 252'!B6) -> 0.03066679839 | C3: =LN('page 252'!C7/'page 252'!C6) -> 0.1117596341 | D3: =LN('page 252'!D7/'page 252'!D6) -> 0.03914351262 | E3: =LN('page 252'!E7/'page 252'!E6) -> -0.01063211433 | F3: =LN('page 252'!F7/'page 252'!F6) -> 0.09357881972 | G3: =LN('page 252'!G7/'page 252'!G6) -> 0.03126670646 | H3: =LN('page 252'!H7/'page 252'!H6) -> 0.01269096093 | I3: =LN('page 252'!I7/'page 252'!I6) -> 0.003797614304 | J3: =LN('page 252'!J7/'page 252'!J6) -> 0.01168415629 | K3: =LN('page 252'!K7/'page 252'!K6) -> 0.05130887059 | L3: =LN('page 252'!L7/'page 252'!L6) -> 0.009930483915
A4: 2007-04-02 | B4: =LN('page 252'!B8/'page 252'!B7) -> 0.06930258088 | C4: =LN('page 252'!C8/'page 252'!C7) -> 0.02367282975 | D4: =LN('page 252'!D8/'page 252'!D7) -> 0.0100288902 | E4: =LN('page 252'!E8/'page 252'!E7) -> 0.07178653748 | F4: =LN('page 252'!F8/'page 252'!F7) -> 0.07153690066 | G4: =LN('page 252'!G8/'page 252'!G7) -> 0.02836913723 | H4: =LN('page 252'!H8/'page 252'!H7) -> 0.04172138545 | I4: =LN('page 252'!I8/'page 252'!I7) -> -0.002455632443 | J4: =LN('page 252'!J8/'page 252'!J7) -> 0.0463822651 | K4: =LN('page 252'!K8/'page 252'!K7) -> 0.05077525552 | L4: =LN('page 252'!L8/'page 252'!L7) -> 0.04237983624
A5: 2007-05-01 | B5: =LN('page 252'!B9/'page 252'!B8) -> 0.04589580614 | C5: =LN('page 252'!C9/'page 252'!C8) -> 0.1101619149 | D5: =LN('page 252'!D9/'page 252'!D8) -> 0.1215974077 | E5: =LN('page 252'!E9/'page 252'!E8) -> 0.02797639314 | F5: =LN('page 252'!F9/'page 252'!F8) -> 0.1941913787 | G5: =LN('page 252'!G9/'page 252'!G8) -> 0.02547499424 | H5: =LN('page 252'!H9/'page 252'!H8) -> 0.01910370547 | I5: =LN('page 252'!I9/'page 252'!I8) -> 0.007348880641 | J5: =LN('page 252'!J9/'page 252'!J8) -> 0.0489279147 | K5: =LN('page 252'!K9/'page 252'!K8) -> 0.05086422908 | L5: =LN('page 252'!L9/'page 252'!L8) -> 0.03203072375
A6: 2007-06-01 | B6: =LN('page 252'!B10/'page 252'!B9) -> 0.004132237285 | C6: =LN('page 252'!C10/'page 252'!C9) -> -0.03983014834 | D6: =LN('page 252'!D10/'page 252'!D9) -> 0.03926409804 | E6: =LN('page 252'!E10/'page 252'!E9) -> -0.04058316003 | F6: =LN('page 252'!F10/'page 252'!F9) -> 0.006989297868 | G6: =LN('page 252'!G10/'page 252'!G9) -> -0.04142987317 | H6: =LN('page 252'!H10/'page 252'!H9) -> 0.02595903917 | I6: =LN('page 252'!I10/'page 252'!I9) -> -0.03660598499 | J6: =LN('page 252'!J10/'page 252'!J9) -> -0.07234361868 | K6: =LN('page 252'!K10/'page 252'!K9) -> 0.00851861933 | L6: =LN('page 252'!L10/'page 252'!L9) -> -0.01797693082
A7: 2007-07-02 | B7: =LN('page 252'!B11/'page 252'!B10) -> -0.0584934465 | C7: =LN('page 252'!C11/'page 252'!C10) -> -0.1011002046 | D7: =LN('page 252'!D11/'page 252'!D10) -> -0.02230032094 | E7: =LN('page 252'!E11/'page 252'!E10) -> -0.01655417788 | F7: =LN('page 252'!F11/'page 252'!F10) -> 0.07663322602 | G7: =LN('page 252'!G11/'page 252'!G10) -> 0.0004405286415 | H7: =LN('page 252'!H11/'page 252'!H10) -> 0.01242252 | I7: =LN('page 252'!I11/'page 252'!I10) -> -0.03061344334 | J7: =LN('page 252'!J11/'page 252'!J10) -> -0.08387531421 | K7: =LN('page 252'!K11/'page 252'!K10) -> 0.01486576084 | L7: =LN('page 252'!L11/'page 252'!L10) -> -0.03250450084
A8: 2007-08-01 | B8: =LN('page 252'!B12/'page 252'!B11) -> 0.02825858532 | C8: =LN('page 252'!C12/'page 252'!C11) -> -0.03724583382 | D8: =LN('page 252'!D12/'page 252'!D11) -> 0.08653375216 | E8: =LN('page 252'!E12/'page 252'!E11) -> -0.005325231299 | F8: =LN('page 252'!F12/'page 252'!F11) -> 0.049743825 | G8: =LN('page 252'!G12/'page 252'!G11) -> 0.0641806064 | H8: =LN('page 252'!H12/'page 252'!H11) -> 0.002773926883 | I8: =LN('page 252'!I12/'page 252'!I11) -> 0.06655357546 | J8: =LN('page 252'!J12/'page 252'!J11) -> 0.06695106754 | K8: =LN('page 252'!K12/'page 252'!K11) -> 0.0109091991 | L8: =LN('page 252'!L12/'page 252'!L11) -> 0.01278155907
A9: 2007-09-04 | B9: =LN('page 252'!B13/'page 252'!B12) -> 0.1007691176 | C9: =LN('page 252'!C13/'page 252'!C12) -> 0.1145296029 | D9: =LN('page 252'!D13/'page 252'!D12) -> 0.1685525637 | E9: =LN('page 252'!E13/'page 252'!E12) -> 0.02486003732 | F9: =LN('page 252'!F13/'page 252'!F12) -> 0.1027791973 | G9: =LN('page 252'!G13/'page 252'!G12) -> 0.01922742809 | H9: =LN('page 252'!H13/'page 252'!H12) -> 0.0698338023 | I9: =LN('page 252'!I13/'page 252'!I12) -> 0.004430667416 | J9: =LN('page 252'!J13/'page 252'!J12) -> -0.0167050202 | K9: =LN('page 252'!K13/'page 252'!K12) -> 0.07667875056 | L9: =LN('page 252'!L13/'page 252'!L12) -> 0.03516828364
A10: 2007-10-01 | B10: =LN('page 252'!B14/'page 252'!B13) -> 0.09251145295 | C10: =LN('page 252'!C14/'page 252'!C13) -> 0.0183258857 | D10: =LN('page 252'!D14/'page 252'!D13) -> 0.02013395674 | E10: =LN('page 252'!E14/'page 252'!E13) -> 0.222845888 | F10: =LN('page 252'!F14/'page 252'!F13) -> 0.2132557714 | G10: =LN('page 252'!G14/'page 252'!G13) -> -0.05904311374 | H10: =LN('page 252'!H14/'page 252'!H13) -> -0.00604579357 | I10: =LN('page 252'!I14/'page 252'!I13) -> -0.04037079954 | J10: =LN('page 252'!J14/'page 252'!J13) -> 0.007121088078 | K10: =LN('page 252'!K14/'page 252'!K13) -> -0.006119896703 | L10: =LN('page 252'!L14/'page 252'!L13) -> 0.01471355779
A11: 2007-11-01 | B11: =LN('page 252'!B15/'page 252'!B14) -> 0.004272680806 | C11: =LN('page 252'!C15/'page 252'!C14) -> -0.09731160177 | D11: =LN('page 252'!D15/'page 252'!D14) -> -0.07533967238 | E11: =LN('page 252'!E15/'page 252'!E14) -> -0.08801325899 | F11: =LN('page 252'!F15/'page 252'!F14) -> -0.04154613135 | G11: =LN('page 252'!G15/'page 252'!G14) -> 0.02922698504 | H11: =LN('page 252'!H15/'page 252'!H14) -> -0.07213298067 | I11: =LN('page 252'!I15/'page 252'!I14) -> -0.04543561285 | J11: =LN('page 252'!J15/'page 252'!J14) -> -0.02255349312 | K11: =LN('page 252'!K15/'page 252'!K14) -> -0.02745581526 | L11: =LN('page 252'!L15/'page 252'!L14) -> -0.04504278937
A12: 2007-12-03 | B12: =LN('page 252'!B16/'page 252'!B15) -> 0.007529719908 | C12: =LN('page 252'!C16/'page 252'!C15) -> 0.2131932205 | D12: =LN('page 252'!D16/'page 252'!D15) -> 0.04671950865 | E12: =LN('page 252'!E16/'page 252'!E15) -> 0.05779034821 | F12: =LN('page 252'!F16/'page 252'!F15) -> 0.08345624121 | G12: =LN('page 252'!G16/'page 252'!G15) -> -0.03030213835 | H12: =LN('page 252'!H16/'page 252'!H15) -> -0.02387048012 | I12: =LN('page 252'!I16/'page 252'!I15) -> -0.09731121715 | J12: =LN('page 252'!J16/'page 252'!J15) -> -0.04452245643 | K12: =LN('page 252'!K16/'page 252'!K15) -> 0.04959694114 | L12: =LN('page 252'!L16/'page 252'!L15) -> -0.008665929805
A13: 2008-01-02 | B13: =LN('page 252'!B17/'page 252'!B16) -> -0.09475253574 | C13: =LN('page 252'!C17/'page 252'!C16) -> -0.1704694902 | D13: =LN('page 252'!D17/'page 252'!D16) -> -0.1528034247 | E13: =LN('page 252'!E17/'page 252'!E16) -> -0.08815571751 | F13: =LN('page 252'!F17/'page 252'!F16) -> -0.3807330936 | G13: =LN('page 252'!G17/'page 252'!G16) -> -0.0923455597 | H13: =LN('page 252'!H17/'page 252'!H16) -> -0.04718623818 | I13: =LN('page 252'!I17/'page 252'!I16) -> 0.06773555543 | J13: =LN('page 252'!J17/'page 252'!J16) -> 0.02726712634 | K13: =LN('page 252'!K17/'page 252'!K16) -> -0.08908986751 | L13: =LN('page 252'!L17/'page 252'!L16) -> -0.0631139096
A14: 2008-02-01 | B14: =LN('page 252'!B18/'page 252'!B17) -> 0.01656743357 | C14: =LN('page 252'!C18/'page 252'!C17) -> 0.06420055727 | D14: =LN('page 252'!D18/'page 252'!D17) -> 0.1354648975 | E14: =LN('page 252'!E18/'page 252'!E17) -> -0.1769739505 | F14: =LN('page 252'!F18/'page 252'!F17) -> -0.07946417135 | G14: =LN('page 252'!G18/'page 252'!G17) -> 0.06530509841 | H14: =LN('page 252'!H18/'page 252'!H17) -> -0.05584598772 | I14: =LN('page 252'!I18/'page 252'!I17) -> -0.1053329519 | J14: =LN('page 252'!J18/'page 252'!J17) -> -0.03324703 | K14: =LN('page 252'!K18/'page 252'!K17) -> 0.0194997576 | L14: =LN('page 252'!L18/'page 252'!L17) -> -0.03537970784
A15: 2008-03-03 | B15: =LN('page 252'!B19/'page 252'!B18) -> 0.03031776653 | C15: =LN('page 252'!C19/'page 252'!C18) -> 0.1569211617 | D15: =LN('page 252'!D19/'page 252'!D18) -> 0.07827748215 | E15: =LN('page 252'!E19/'page 252'!E18) -> 0.04229291219 | F15: =LN('page 252'!F19/'page 252'!F18) -> 0.1378613107 | G15: =LN('page 252'!G19/'page 252'!G18) -> 0.03560949402 | H15: =LN('page 252'!H19/'page 252'!H18) -> 0.110316502 | I15: =LN('page 252'!I19/'page 252'!I18) -> -0.03050467391 | J15: =LN('page 252'!J19/'page 252'!J18) -> -0.06243241629 | K15: =LN('page 252'!K19/'page 252'!K18) -> -0.02841973143 | L15: =LN('page 252'!L19/'page 252'!L18) -> -0.005977412241
A16: 2008-04-01 | B16: =LN('page 252'!B20/'page 252'!B19) -> 0.06597514004 | C16: =LN('page 252'!C20/'page 252'!C19) -> 0.1934486698 | D16: =LN('page 252'!D20/'page 252'!D19) -> 0.08540185553 | E16: =LN('page 252'!E20/'page 252'!E19) -> 0.004972280277 | F16: =LN('page 252'!F20/'page 252'!F19) -> 0.1924328664 | G16: =LN('page 252'!G20/'page 252'!G19) -> -0.02680662027 | H16: =LN('page 252'!H20/'page 252'!H19) -> -0.1237966635 | I16: =LN('page 252'!I20/'page 252'!I19) -> -0.009708814127 | J16: =LN('page 252'!J20/'page 252'!J19) -> -0.04026594872 | K16: =LN('page 252'!K20/'page 252'!K19) -> 0.09565246165 | L16: =LN('page 252'!L20/'page 252'!L19) -> 0.04645093966
A17: 2008-05-01 | B17: =LN('page 252'!B21/'page 252'!B20) -> -0.004354005932 | C17: =LN('page 252'!C21/'page 252'!C20) -> 0.1164718155 | D17: =LN('page 252'!D21/'page 252'!D20) -> 0.1087861364 | E17: =LN('page 252'!E21/'page 252'!E20) -> -0.003439712927 | F17: =LN('page 252'!F21/'page 252'!F20) -> 0.08165548653 | G17: =LN('page 252'!G21/'page 252'!G20) -> 0.0186677876 | H17: =LN('page 252'!H21/'page 252'!H20) -> -0.06225541512 | I17: =LN('page 252'!I21/'page 252'!I20) -> -0.09884583464 | J17: =LN('page 252'!J21/'page 252'!J20) -> -0.02199233413 | K17: =LN('page 252'!K21/'page 252'!K20) -> -0.04291883379 | L17: =LN('page 252'!L21/'page 252'!L20) -> 0.01061758665
A18: 2008-06-02 | B18: =LN('page 252'!B22/'page 252'!B21) -> -0.04719780715 | C18: =LN('page 252'!C22/'page 252'!C21) -> 0.06754428601 | D18: =LN('page 252'!D22/'page 252'!D21) -> 0.001118568349 | E18: =LN('page 252'!E22/'page 252'!E21) -> -0.02873984212 | F18: =LN('page 252'!F22/'page 252'!F21) -> -0.11979831 | G18: =LN('page 252'!G22/'page 252'!G21) -> -0.07616136097 | H18: =LN('page 252'!H22/'page 252'!H21) -> -0.1296836708 | I18: =LN('page 252'!I22/'page 252'!I21) -> -0.3346999721 | J18: =LN('page 252'!J22/'page 252'!J21) -> -0.1026875419 | K18: =LN('page 252'!K22/'page 252'!K21) -> -0.007170261898 | L18: =LN('page 252'!L22/'page 252'!L21) -> -0.08988355043
A19: 2008-07-01 | B19: =LN('page 252'!B23/'page 252'!B22) -> 0.06151336524 | C19: =LN('page 252'!C23/'page 252'!C22) -> -0.141790685 | D19: =LN('page 252'!D23/'page 252'!D22) -> -0.1251184262 | E19: =LN('page 252'!E23/'page 252'!E22) -> -0.06764288816 | F19: =LN('page 252'!F23/'page 252'!F22) -> -0.05203539078 | G19: =LN('page 252'!G23/'page 252'!G22) -> 0.09996188943 | H19: =LN('page 252'!H23/'page 252'!H22) -> 0.05840769326 | I19: =LN('page 252'!I23/'page 252'!I22) -> 0.3209858359 | J19: =LN('page 252'!J23/'page 252'!J22) -> 0.06620550876 | K19: =LN('page 252'!K23/'page 252'!K22) -> -0.09139724978 | L19: =LN('page 252'!L23/'page 252'!L22) -> -0.009908300486
A20: 2008-08-01 | B20: =LN('page 252'!B24/'page 252'!B23) -> 0.0424738929 | C20: =LN('page 252'!C24/'page 252'!C23) -> -0.1843521719 | D20: =LN('page 252'!D24/'page 252'!D23) -> -0.1060223617 | E20: =LN('page 252'!E24/'page 252'!E23) -> 0.06329934727 | F20: =LN('page 252'!F24/'page 252'!F23) -> 0.06444021495 | G20: =LN('page 252'!G24/'page 252'!G23) -> 0.03182744364 | H20: =LN('page 252'!H24/'page 252'!H23) -> -0.006962960755 | I20: =LN('page 252'!I24/'page 252'!I23) -> -0.05478109908 | J20: =LN('page 252'!J24/'page 252'!J23) -> 0.04018117425 | K20: =LN('page 252'!K24/'page 252'!K23) -> -0.0001359526887 | L20: =LN('page 252'!L24/'page 252'!L23) -> 0.01211679746
A21: 2008-09-02 | B21: =LN('page 252'!B25/'page 252'!B24) -> -0.004851325659 | C21: =LN('page 252'!C25/'page 252'!C24) -> -0.539162976 | D21: =LN('page 252'!D25/'page 252'!D24) -> -0.4603308826 | E21: =LN('page 252'!E25/'page 252'!E24) -> -0.02200528881 | F21: =LN('page 252'!F25/'page 252'!F24) -> -0.3998183664 | G21: =LN('page 252'!G25/'page 252'!G24) -> 0.03005635988 | H21: =LN('page 252'!H25/'page 252'!H24) -> -0.08354245391 | I21: =LN('page 252'!I25/'page 252'!I24) -> 0.1364528334 | J21: =LN('page 252'!J25/'page 252'!J24) -> -0.03570689385 | K21: =LN('page 252'!K25/'page 252'!K24) -> -0.02980764353 | L21: =LN('page 252'!L25/'page 252'!L24) -> -0.09518078677
A22: 2008-10-01 | B22: =LN('page 252'!B26/'page 252'!B25) -> -0.06300271742 | C22: =LN('page 252'!C26/'page 252'!C25) -> -0.743963904 | D22: =LN('page 252'!D26/'page 252'!D25) -> -0.6316825755 | E22: =LN('page 252'!E26/'page 252'!E25) -> -0.1784455829 | F22: =LN('page 252'!F26/'page 252'!F25) -> -0.05488382926 | G22: =LN('page 252'!G26/'page 252'!G25) -> -0.1067651952 | H22: =LN('page 252'!H26/'page 252'!H25) -> -0.2679203322 | I22: =LN('page 252'!I26/'page 252'!I25) -> -0.3699962739 | J22: =LN('page 252'!J26/'page 252'!J25) -> -0.04034379255 | K22: =LN('page 252'!K26/'page 252'!K25) -> -0.04659339128 | L22: =LN('page 252'!L26/'page 252'!L25) -> -0.1856364864
A23: 2008-11-03 | B23: =LN('page 252'!B27/'page 252'!B26) -> 0.02275842583 | C23: =LN('page 252'!C27/'page 252'!C26) -> -0.1837800189 | D23: =LN('page 252'!D27/'page 252'!D26) -> -0.1034032943 | E23: =LN('page 252'!E27/'page 252'!E26) -> -0.09265413575 | F23: =LN('page 252'!F27/'page 252'!F26) -> -0.149282911 | G23: =LN('page 252'!G27/'page 252'!G26) -> -0.1491846286 | H23: =LN('page 252'!H27/'page 252'!H26) -> -0.1275413581 | I23: =LN('page 252'!I27/'page 252'!I26) -> -0.3971450601 | J23: =LN('page 252'!J27/'page 252'!J26) -> -0.05809628026 | K23: =LN('page 252'!K27/'page 252'!K26) -> 0.08385112007 | L23: =LN('page 252'!L27/'page 252'!L26) -> -0.07779834642
A24: 2008-12-01 | B24: =LN('page 252'!B28/'page 252'!B27) -> 0.05703339821 | C24: =LN('page 252'!C28/'page 252'!C27) -> 0.2018335575 | D24: =LN('page 252'!D28/'page 252'!D27) -> 0.05700321868 | E24: =LN('page 252'!E28/'page 252'!E27) -> -0.03894488913 | F24: =LN('page 252'!F28/'page 252'!F27) -> -0.08228434636 | G24: =LN('page 252'!G28/'page 252'!G27) -> 0.01744009829 | H24: =LN('page 252'!H28/'page 252'!H27) -> -0.03924725631 | I24: =LN('page 252'!I28/'page 252'!I27) -> -0.1211347266 | J24: =LN('page 252'!J28/'page 252'!J27) -> 0.0752132222 | K24: =LN('page 252'!K28/'page 252'!K27) -> -0.00392130852 | L24: =LN('page 252'!L28/'page 252'!L27) -> 0.007791135777
A25: 2009-01-02 | B25: =LN('page 252'!B29/'page 252'!B28) -> -0.06948638933 | C25: =LN('page 252'!C29/'page 252'!C28) -> -0.2143739692 | D25: =LN('page 252'!D29/'page 252'!D28) -> -0.08581276723 | E25: =LN('page 252'!E29/'page 252'!E28) -> -0.1287363514 | F25: =LN('page 252'!F29/'page 252'!F28) -> 0.05449262333 | G25: =LN('page 252'!G29/'page 252'!G28) -> -0.003514059841 | H25: =LN('page 252'!H29/'page 252'!H28) -> -0.2892936763 | I25: =LN('page 252'!I29/'page 252'!I28) -> -0.7600866632 | J25: =LN('page 252'!J29/'page 252'!J28) -> -0.1946690143 | K25: =LN('page 252'!K29/'page 252'!K28) -> -0.04290721817 | L25: =LN('page 252'!L29/'page 252'!L28) -> -0.08954988551
A26: 2009-02-02 | B26: =LN('page 252'!B30/'page 252'!B29) -> -0.09555703009 | C26: =LN('page 252'!C30/'page 252'!C29) -> -0.4140282706 | D26: =LN('page 252'!D30/'page 252'!D29) -> -0.1468304689 | E26: =LN('page 252'!E30/'page 252'!E29) -> -0.05017129315 | F26: =LN('page 252'!F30/'page 252'!F29) -> -0.009139608873 | G26: =LN('page 252'!G30/'page 252'!G29) -> -0.1068423495 | H26: =LN('page 252'!H30/'page 252'!H29) -> -0.3249262456 | I26: =LN('page 252'!I30/'page 252'!I29) -> -0.5108256238 | J26: =LN('page 252'!J30/'page 252'!J29) -> -0.1475639085 | K26: =LN('page 252'!K30/'page 252'!K29) -> -0.1140247272 | L26: =LN('page 252'!L30/'page 252'!L29) -> -0.1164565438
A27: 2009-03-02 | B27: =LN('page 252'!B31/'page 252'!B30) -> 0.04353400202 | C27: =LN('page 252'!C31/'page 252'!C30) -> 0.07119203394 | D27: =LN('page 252'!D31/'page 252'!D30) -> 0.03650636929 | E27: =LN('page 252'!E31/'page 252'!E30) -> 0.1291517633 | F27: =LN('page 252'!F31/'page 252'!F30) -> 0.162989091 | G27: =LN('page 252'!G31/'page 252'!G30) -> -0.06055467463 | H27: =LN('page 252'!H31/'page 252'!H30) -> 0.1718502569 | I27: =LN('page 252'!I31/'page 252'!I30) -> 0.5485659517 | J27: =LN('page 252'!J31/'page 252'!J30) -> 0.1013081985 | K27: =LN('page 252'!K31/'page 252'!K30) -> 0.003007045077 | L27: =LN('page 252'!L31/'page 252'!L30) -> 0.08195273621
A28: 2009-04-01 | B28: =LN('page 252'!B32/'page 252'!B31) -> -0.02367812735 | C28: =LN('page 252'!C32/'page 252'!C31) -> 0.2284155501 | D28: =LN('page 252'!D32/'page 252'!D31) -> 0.1625991831 | E28: =LN('page 252'!E32/'page 252'!E31) -> 0.09767891364 | F28: =LN('page 252'!F32/'page 252'!F31) -> 0.1798292349 | G28: =LN('page 252'!G32/'page 252'!G31) -> 0.1393482705 | H28: =LN('page 252'!H32/'page 252'!H31) -> 0.2242170887 | I28: =LN('page 252'!I32/'page 252'!I31) -> 0.2697443718 | J28: =LN('page 252'!J32/'page 252'!J31) -> -0.01928780967 | K28: =LN('page 252'!K32/'page 252'!K31) -> -0.02124171538 | L28: =LN('page 252'!L32/'page 252'!L31) -> 0.08977221492
A29: 2009-05-01 | B29: =LN('page 252'!B33/'page 252'!B32) -> 0.101564666 | C29: =LN('page 252'!C33/'page 252'!C32) -> 0.2515693352 | D29: =LN('page 252'!D33/'page 252'!D32) -> 0.3475841799 | E29: =LN('page 252'!E33/'page 252'!E32) -> 0.03715597689 | F29: =LN('page 252'!F33/'page 252'!F32) -> 0.07632506051 | G29: =LN('page 252'!G33/'page 252'!G32) -> 0.03456506739 | H29: =LN('page 252'!H33/'page 252'!H32) -> 0.0631964192 | I29: =LN('page 252'!I33/'page 252'!I32) -> 0.2330490803 | J29: =LN('page 252'!J33/'page 252'!J32) -> 0.1396514919 | K29: =LN('page 252'!K33/'page 252'!K32) -> 0.04544085111 | L29: =LN('page 252'!L33/'page 252'!L32) -> 0.05172055842
A30: 2009-06-01 | B30: =LN('page 252'!B34/'page 252'!B33) -> -0.01754430965 | C30: =LN('page 252'!C34/'page 252'!C33) -> 0.04733065122 | D30: =LN('page 252'!D34/'page 252'!D33) -> -0.002895289138 | E30: =LN('page 252'!E34/'page 252'!E33) -> 0.1290889153 | F30: =LN('page 252'!F34/'page 252'!F33) -> 0.04759380083 | G30: =LN('page 252'!G34/'page 252'!G33) -> 0.07389382411 | H30: =LN('page 252'!H34/'page 252'!H33) -> -0.1315763578 | I30: =LN('page 252'!I34/'page 252'!I33) -> 0.1587483891 | J30: =LN('page 252'!J34/'page 252'!J33) -> -0.01259742484 | K30: =LN('page 252'!K34/'page 252'!K33) -> 0.007988980883 | L30: =LN('page 252'!L34/'page 252'!L33) -> 0.0001958160641
A31: 2009-07-01 | B31: =LN('page 252'!B35/'page 252'!B34) -> -0.04328847444 | C31: =LN('page 252'!C35/'page 252'!C34) -> 0.1064376438 | D31: =LN('page 252'!D35/'page 252'!D34) -> 0.08577564816 | E31: =LN('page 252'!E35/'page 252'!E34) -> -0.0107431651 | F31: =LN('page 252'!F35/'page 252'!F34) -> 0.1372893301 | G31: =LN('page 252'!G35/'page 252'!G34) -> 0.01975713243 | H31: =LN('page 252'!H35/'page 252'!H34) -> 0.1339908459 | I31: =LN('page 252'!I35/'page 252'!I34) -> 0.1140383504 | J31: =LN('page 252'!J35/'page 252'!J34) -> 0.06005420869 | K31: =LN('page 252'!K35/'page 252'!K34) -> 0.006862398261 | L31: =LN('page 252'!L35/'page 252'!L34) -> 0.07152197709
A32: 2009-08-03 | B32: =LN('page 252'!B36/'page 252'!B35) -> 0.03002065282 | C32: =LN('page 252'!C36/'page 252'!C35) -> 0.097579172 | D32: =LN('page 252'!D36/'page 252'!D35) -> -0.006228701733 | E32: =LN('page 252'!E36/'page 252'!E35) -> 0.05259757396 | F32: =LN('page 252'!F36/'page 252'!F35) -> 0.02907321776 | G32: =LN('page 252'!G36/'page 252'!G35) -> -0.0006826715477 | H32: =LN('page 252'!H36/'page 252'!H35) -> 0.03631022406 | I32: =LN('page 252'!I36/'page 252'!I35) -> 0.1730701631 | J32: =LN('page 252'!J36/'page 252'!J35) -> 0.0573144566 | K32: =LN('page 252'!K36/'page 252'!K35) -> -0.01177113645 | L32: =LN('page 252'!L36/'page 252'!L35) -> 0.03300932135
A33: 2009-09-01 | B33: =LN('page 252'!B37/'page 252'!B36) -> 0.01477299594 | C33: =LN('page 252'!C37/'page 252'!C36) -> 0.01355252166 | D33: =LN('page 252'!D37/'page 252'!D36) -> 0.04138119547 | E33: =LN('page 252'!E37/'page 252'!E36) -> 0.04263077613 | F33: =LN('page 252'!F37/'page 252'!F36) -> 0.09703273079 | G33: =LN('page 252'!G37/'page 252'!G36) -> 0.04452104035 | H33: =LN('page 252'!H37/'page 252'!H36) -> 0.1725843815 | I33: =LN('page 252'!I37/'page 252'!I36) -> -0.03800515849 | J33: =LN('page 252'!J37/'page 252'!J36) -> -0.009327182875 | K33: =LN('page 252'!K37/'page 252'!K36) -> -0.007718469933 | L33: =LN('page 252'!L37/'page 252'!L36) -> 0.03510010416
A34: 2009-10-01 | B34: =LN('page 252'!B38/'page 252'!B37) -> 0.02652970729 | C34: =LN('page 252'!C38/'page 252'!C37) -> -0.2519012828 | D34: =LN('page 252'!D38/'page 252'!D37) -> -0.08766038209 | E34: =LN('page 252'!E38/'page 252'!E37) -> 0.07486756201 | F34: =LN('page 252'!F38/'page 252'!F37) -> 0.01685207729 | G34: =LN('page 252'!G38/'page 252'!G37) -> 0.04595575695 | H34: =LN('page 252'!H38/'page 252'!H37) -> -0.1405450278 | I34: =LN('page 252'!I38/'page 252'!I37) -> -0.1488014843 | J34: =LN('page 252'!J38/'page 252'!J37) -> 0.02837537785 | K34: =LN('page 252'!K38/'page 252'!K37) -> 0.04351478597 | L34: =LN('page 252'!L38/'page 252'!L37) -> -0.01995986522
A35: 2009-11-02 | B35: =LN('page 252'!B39/'page 252'!B38) -> 0.08473550709 | C35: =LN('page 252'!C39/'page 252'!C38) -> 0.2596285939 | D35: =LN('page 252'!D39/'page 252'!D38) -> 0.1485704328 | E35: =LN('page 252'!E39/'page 252'!E38) -> 0.06325637836 | F35: =LN('page 252'!F39/'page 252'!F38) -> 0.05876925838 | G35: =LN('page 252'!G39/'page 252'!G38) -> 0.02707857757 | H35: =LN('page 252'!H39/'page 252'!H38) -> 0.1161133074 | I35: =LN('page 252'!I39/'page 252'!I38) -> 0.08354757027 | J35: =LN('page 252'!J39/'page 252'!J38) -> 0.07457259141 | K35: =LN('page 252'!K39/'page 252'!K38) -> 0.05217569428 | L35: =LN('page 252'!L39/'page 252'!L38) -> 0.05577901558
A36: 2009-12-01 | B36: =LN('page 252'!B40/'page 252'!B39) -> -0.01286626857 | C36: =LN('page 252'!C40/'page 252'!C39) -> 0.2105217812 | D36: =LN('page 252'!D40/'page 252'!D39) -> 0.15265307 | E36: =LN('page 252'!E40/'page 252'!E39) -> 0.03604939783 | F36: =LN('page 252'!F40/'page 252'!F39) -> 0.05271042794 | G36: =LN('page 252'!G40/'page 252'!G39) -> 0.01167015257 | H36: =LN('page 252'!H40/'page 252'!H39) -> -0.05073054817 | I36: =LN('page 252'!I40/'page 252'!I39) -> -0.0508916073 | J36: =LN('page 252'!J40/'page 252'!J39) -> 0.00120700075 | K36: =LN('page 252'!K40/'page 252'!K39) -> -0.09615548839 | L36: =LN('page 252'!L40/'page 252'!L39) -> 0.0176145467
A37: 2010-01-04 | B37: =LN('page 252'!B41/'page 252'!B40) -> -0.0001704012955 | C37: =LN('page 252'!C41/'page 252'!C40) -> -0.2155149827 | D37: =LN('page 252'!D41/'page 252'!D40) -> -0.1678089758 | E37: =LN('page 252'!E41/'page 252'!E40) -> -0.07864000223 | F37: =LN('page 252'!F41/'page 252'!F40) -> -0.09276987 | G37: =LN('page 252'!G41/'page 252'!G40) -> 0.02274398444 | H37: =LN('page 252'!H41/'page 252'!H40) -> 0.06070735191 | I37: =LN('page 252'!I41/'page 252'!I40) -> 0.008000042667 | J37: =LN('page 252'!J41/'page 252'!J40) -> 0.0256042567 | K37: =LN('page 252'!K41/'page 252'!K40) -> -0.05661136787 | L37: =LN('page 252'!L41/'page 252'!L40) -> -0.03767514106
A38: 2010-02-01 | B38: =LN('page 252'!B42/'page 252'!B41) -> 0.03104015663 | C38: =LN('page 252'!C42/'page 252'!C41) -> 0.1762355738 | D38: =LN('page 252'!D42/'page 252'!D41) -> -0.007390207441 | E38: =LN('page 252'!E42/'page 252'!E41) -> 0.0220678319 | F38: =LN('page 252'!F42/'page 252'!F41) -> 0.06334677724 | G38: =LN('page 252'!G42/'page 252'!G41) -> -0.03542659027 | H38: =LN('page 252'!H42/'page 252'!H41) -> 0.005280540323 | I38: =LN('page 252'!I42/'page 252'!I41) -> 0.09313468946 | J38: =LN('page 252'!J42/'page 252'!J41) -> -0.05188135674 | K38: =LN('page 252'!K42/'page 252'!K41) -> 0.01530475982 | L38: =LN('page 252'!L42/'page 252'!L41) -> 0.02811474404
A39: 2010-03-01 | B39: =LN('page 252'!B43/'page 252'!B42) -> 0.0439560177 | C39: =LN('page 252'!C43/'page 252'!C42) -> 0.1822579658 | D39: =LN('page 252'!D43/'page 252'!D42) -> 0.1388059194 | E39: =LN('page 252'!E43/'page 252'!E42) -> 0.02123527698 | F39: =LN('page 252'!F43/'page 252'!F42) -> 0.1384309137 | G39: =LN('page 252'!G43/'page 252'!G42) -> 0.02421813549 | H39: =LN('page 252'!H43/'page 252'!H42) -> 0.1248532936 | I39: =LN('page 252'!I43/'page 252'!I42) -> 0.06951703334 | J39: =LN('page 252'!J43/'page 252'!J42) -> -0.02317673425 | K39: =LN('page 252'!K43/'page 252'!K42) -> 0.02992424458 | L39: =LN('page 252'!L43/'page 252'!L42) -> 0.05713276065
A40: 2010-04-01 | B40: =LN('page 252'!B44/'page 252'!B43) -> 0.05640274851 | C40: =LN('page 252'!C44/'page 252'!C43) -> -0.1503423604 | D40: =LN('page 252'!D44/'page 252'!D43) -> -0.1227270882 | E40: =LN('page 252'!E44/'page 252'!E43) -> 0.04184710994 | F40: =LN('page 252'!F44/'page 252'!F43) -> 0.1052796613 | G40: =LN('page 252'!G44/'page 252'!G43) -> 0.02788520349 | H40: =LN('page 252'!H44/'page 252'!H43) -> 0.03595251693 | I40: =LN('page 252'!I44/'page 252'!I43) -> -0.001129305597 | J40: =LN('page 252'!J44/'page 252'!J43) -> -0.02567535134 | K40: =LN('page 252'!K44/'page 252'!K43) -> 0.01169239293 | L40: =LN('page 252'!L44/'page 252'!L43) -> 0.01465146831
A41: 2010-05-03 | B41: =LN('page 252'!B45/'page 252'!B44) -> -0.04586557466 | C41: =LN('page 252'!C45/'page 252'!C44) -> -0.1455342984 | D41: =LN('page 252'!D45/'page 252'!D44) -> -0.2409408913 | E41: =LN('page 252'!E45/'page 252'!E44) -> -0.1640469366 | F41: =LN('page 252'!F45/'page 252'!F44) -> -0.01625612569 | G41: =LN('page 252'!G45/'page 252'!G44) -> -0.02079157768 | H41: =LN('page 252'!H45/'page 252'!H44) -> -0.143187084 | I41: =LN('page 252'!I45/'page 252'!I44) -> -0.1243724951 | J41: =LN('page 252'!J45/'page 252'!J44) -> -0.08264687581 | K41: =LN('page 252'!K45/'page 252'!K44) -> -0.1072221358 | L41: =LN('page 252'!L45/'page 252'!L44) -> -0.08553165363
A42: 2010-06-01 | B42: =LN('page 252'!B46/'page 252'!B45) -> -0.01497387896 | C42: =LN('page 252'!C46/'page 252'!C45) -> -0.2025722434 | D42: =LN('page 252'!D46/'page 252'!D45) -> -0.125163143 | E42: =LN('page 252'!E46/'page 252'!E45) -> -0.1145688907 | F42: =LN('page 252'!F46/'page 252'!F45) -> -0.02104678306 | G42: =LN('page 252'!G46/'page 252'!G45) -> -0.06029333957 | H42: =LN('page 252'!H46/'page 252'!H45) -> -0.1194014209 | I42: =LN('page 252'!I46/'page 252'!I45) -> -0.09033218752 | J42: =LN('page 252'!J46/'page 252'!J45) -> -0.06566910351 | K42: =LN('page 252'!K46/'page 252'!K45) -> -0.05770660938 | L42: =LN('page 252'!L46/'page 252'!L45) -> -0.05538838013
A43: 2010-07-01 | B43: =LN('page 252'!B47/'page 252'!B46) -> 0.05694665038 | C43: =LN('page 252'!C47/'page 252'!C46) -> 0.1397278055 | D43: =LN('page 252'!D47/'page 252'!D46) -> 0.1374709906 | E43: =LN('page 252'!E47/'page 252'!E46) -> 0.1149712242 | F43: =LN('page 252'!F47/'page 252'!F46) -> 0.02248610799 | G43: =LN('page 252'!G47/'page 252'!G46) -> -0.005017781801 | H43: =LN('page 252'!H47/'page 252'!H46) -> 0.1116091736 | I43: =LN('page 252'!I47/'page 252'!I46) -> -0.02338044864 | J43: =LN('page 252'!J47/'page 252'!J46) -> 0.05072752351 | K43: =LN('page 252'!K47/'page 252'!K46) -> 0.0446822002 | L43: =LN('page 252'!L47/'page 252'!L46) -> 0.06651578327
A44: 2010-08-02 | B44: =LN('page 252'!B48/'page 252'!B47) -> 0.05401984699 | C44: =LN('page 252'!C48/'page 252'!C47) -> -0.04135316272 | D44: =LN('page 252'!D48/'page 252'!D47) -> -0.05123964488 | E44: =LN('page 252'!E48/'page 252'!E47) -> -0.09001449223 | F44: =LN('page 252'!F48/'page 252'!F47) -> -0.05657549339 | G44: =LN('page 252'!G48/'page 252'!G47) -> 0.0006286013827 | H44: =LN('page 252'!H48/'page 252'!H47) -> -0.1072455304 | I44: =LN('page 252'!I48/'page 252'!I47) -> -0.119397241 | J44: =LN('page 252'!J48/'page 252'!J47) -> 0.06990046428 | K44: =LN('page 252'!K48/'page 252'!K47) -> -0.002450123732 | L44: =LN('page 252'!L48/'page 252'!L47) -> -0.04861180317
A45: 2010-09-01 | B45: =LN('page 252'!B49/'page 252'!B48) -> 0.01970229788 | C45: =LN('page 252'!C49/'page 252'!C48) -> 0.03128903386 | D45: =LN('page 252'!D49/'page 252'!D48) -> 0.1290057884 | E45: =LN('page 252'!E49/'page 252'!E48) -> 0.04265130622 | F45: =LN('page 252'!F49/'page 252'!F48) -> 0.1546206875 | G45: =LN('page 252'!G49/'page 252'!G48) -> 0.01641254251 | H45: =LN('page 252'!H49/'page 252'!H48) -> 0.1227697749 | I45: =LN('page 252'!I49/'page 252'!I48) -> 0.05117212388 | J45: =LN('page 252'!J49/'page 252'!J48) -> 0.0759206903 | K45: =LN('page 252'!K49/'page 252'!K48) -> 0.044215564 | L45: =LN('page 252'!L49/'page 252'!L48) -> 0.0839284751
A46: 2010-10-01 | B46: =LN('page 252'!B50/'page 252'!B49) -> 0.04282667277 | C46: =LN('page 252'!C50/'page 252'!C49) -> -0.02584845273 | D46: =LN('page 252'!D50/'page 252'!D49) -> -0.01808138079 | E46: =LN('page 252'!E50/'page 252'!E49) -> 0.08525248534 | F46: =LN('page 252'!F50/'page 252'!F49) -> 0.05895024856 | G46: =LN('page 252'!G50/'page 252'!G49) -> -0.004957663532 | H46: =LN('page 252'!H50/'page 252'!H49) -> -0.01422131272 | I46: =LN('page 252'!I50/'page 252'!I49) -> -0.1345186137 | J46: =LN('page 252'!J50/'page 252'!J49) -> 0.01476041558 | K46: =LN('page 252'!K50/'page 252'!K49) -> 0.07335328678 | L46: =LN('page 252'!L50/'page 252'!L49) -> 0.03619300071
A47: 2010-11-01 | B47: =LN('page 252'!B51/'page 252'!B50) -> 0.01457944976 | C47: =LN('page 252'!C51/'page 252'!C50) -> 0.1301049109 | D47: =LN('page 252'!D51/'page 252'!D50) -> -0.01645994883 | E47: =LN('page 252'!E51/'page 252'!E50) -> -0.04799652102 | F47: =LN('page 252'!F51/'page 252'!F50) -> 0.03323129366 | G47: =LN('page 252'!G51/'page 252'!G50) -> -0.01229310199 | H47: =LN('page 252'!H51/'page 252'!H50) -> -0.01178795575 | I47: =LN('page 252'!I51/'page 252'!I50) -> -0.04489084051 | J47: =LN('page 252'!J51/'page 252'!J50) -> -0.05651221026 | K47: =LN('page 252'!K51/'page 252'!K50) -> 0.05146464596 | L47: =LN('page 252'!L51/'page 252'!L50) -> -0.002292909487
A48: 2010-12-01 | B48: =LN('page 252'!B52/'page 252'!B51) -> -0.01979999572 | C48: =LN('page 252'!C52/'page 252'!C51) -> 0.1837703825 | D48: =LN('page 252'!D52/'page 252'!D51) -> 0.1854082297 | E48: =LN('page 252'!E52/'page 252'!E51) -> 0.09969639424 | F48: =LN('page 252'!F52/'page 252'!F51) -> 0.03601405443 | G48: =LN('page 252'!G52/'page 252'!G51) -> 0.03683923107 | H48: =LN('page 252'!H52/'page 252'!H51) -> 0.1518895144 | I48: =LN('page 252'!I52/'page 252'!I51) -> 0.1984142071 | J48: =LN('page 252'!J52/'page 252'!J51) -> 0.07165942504 | K48: =LN('page 252'!K52/'page 252'!K51) -> 0.0499310174 | L48: =LN('page 252'!L52/'page 252'!L51) -> 0.06325651722
A49: 2011-01-03 | B49: =LN('page 252'!B53/'page 252'!B52) -> -0.04109604451 | C49: =LN('page 252'!C53/'page 252'!C52) -> -0.01283625604 | D49: =LN('page 252'!D53/'page 252'!D52) -> -0.04450091711 | E49: =LN('page 252'!E53/'page 252'!E52) -> -0.00664209084 | F49: =LN('page 252'!F53/'page 252'!F52) -> 0.0506544495 | G49: =LN('page 252'!G53/'page 252'!G52) -> -0.01547577211 | H49: =LN('page 252'!H53/'page 252'!H52) -> 0.09649279043 | I49: =LN('page 252'!I53/'page 252'!I52) -> 0.02821271009 | J49: =LN('page 252'!J53/'page 252'!J52) -> 0.0394982083 | K49: =LN('page 252'!K53/'page 252'!K52) -> 0.09832569409 | L49: =LN('page 252'!L53/'page 252'!L52) -> 0.02239298526
A50: 2011-02-01 | B50: =LN('page 252'!B54/'page 252'!B53) -> 0.03503827543 | C50: =LN('page 252'!C54/'page 252'!C53) -> -0.002272132412 | D50: =LN('page 252'!D54/'page 252'!D53) -> 0.01040358041 | E50: =LN('page 252'!E54/'page 252'!E53) -> -0.03618939961 | F50: =LN('page 252'!F54/'page 252'!F53) -> 0.04011916596 | G50: =LN('page 252'!G54/'page 252'!G53) -> 0.07051029134 | H50: =LN('page 252'!H54/'page 252'!H53) -> 0.04471983513 | I50: =LN('page 252'!I54/'page 252'!I53) -> 0.04017757023 | J50: =LN('page 252'!J54/'page 252'!J53) -> 0.06544129271 | K50: =LN('page 252'!K54/'page 252'!K53) -> 0.063637056 | L50: =LN('page 252'!L54/'page 252'!L53) -> 0.03145659504
A51: 2011-03-01 | B51: =LN('page 252'!B55/'page 252'!B54) -> 0.005386492959 | C51: =LN('page 252'!C55/'page 252'!C54) -> -0.06375725743 | D51: =LN('page 252'!D55/'page 252'!D54) -> -0.01436846807 | E51: =LN('page 252'!E55/'page 252'!E54) -> -0.04595350033 | F51: =LN('page 252'!F55/'page 252'!F54) -> -0.01339585671 | G51: =LN('page 252'!G55/'page 252'!G54) -> 0.007810307347 | H51: =LN('page 252'!H55/'page 252'!H54) -> -0.04215375725 | I51: =LN('page 252'!I55/'page 252'!I54) -> -0.06839028033 | J51: =LN('page 252'!J55/'page 252'!J54) -> 0.05375371931 | K51: =LN('page 252'!K55/'page 252'!K54) -> -0.01653728315 | L51: =LN('page 252'!L55/'page 252'!L54) -> -0.001047850683
A52: 2011-04-01 | B52: =LN('page 252'!B56/'page 252'!B55) -> 0.02872657654 | C52: =LN('page 252'!C56/'page 252'!C55) -> -0.1226671929 | D52: =LN('page 252'!D56/'page 252'!D55) -> 0.0252184841 | E52: =LN('page 252'!E56/'page 252'!E55) -> 0.02068490615 | F52: =LN('page 252'!F56/'page 252'!F55) -> 0.004637589899 | G52: =LN('page 252'!G56/'page 252'!G55) -> 0.05912779949 | H52: =LN('page 252'!H56/'page 252'!H55) -> 0.0197925771 | I52: =LN('page 252'!I56/'page 252'!I55) -> -0.08236719435 | J52: =LN('page 252'!J56/'page 252'!J55) -> 0.03230972613 | K52: =LN('page 252'!K56/'page 252'!K55) -> 0.04474806514 | L52: =LN('page 252'!L56/'page 252'!L55) -> 0.02809691637
A53: 2011-05-02 | B53: =LN('page 252'!B57/'page 252'!B56) -> 0.04790114536 | C53: =LN('page 252'!C57/'page 252'!C56) -> -0.03300771148 | D53: =LN('page 252'!D57/'page 252'!D56) -> -0.09727669431 | E53: =LN('page 252'!E57/'page 252'!E56) -> -0.02916124348 | F53: =LN('page 252'!F57/'page 252'!F56) -> -0.006590659423 | G53: =LN('page 252'!G57/'page 252'!G56) -> 0.00232246643 | H53: =LN('page 252'!H57/'page 252'!H56) -> -0.04050797348 | I53: =LN('page 252'!I57/'page 252'!I56) -> -0.0443031079 | J53: =LN('page 252'!J57/'page 252'!J56) -> 0.03226086222 | K53: =LN('page 252'!K57/'page 252'!K56) -> -0.04694131568 | L53: =LN('page 252'!L57/'page 252'!L56) -> -0.0135928939
A54: 2011-06-01 | B54: =LN('page 252'!B58/'page 252'!B57) -> 0.0335158572 | C54: =LN('page 252'!C58/'page 252'!C57) -> -0.001526551381 | D54: =LN('page 252'!D58/'page 252'!D57) -> 0.0385871111 | E54: =LN('page 252'!E58/'page 252'!E57) -> 0.03856570151 | F54: =LN('page 252'!F58/'page 252'!F57) -> -0.03558532018 | G54: =LN('page 252'!G58/'page 252'!G57) -> -0.02970156761 | H54: =LN('page 252'!H58/'page 252'!H57) -> -0.03244102617 | I54: =LN('page 252'!I58/'page 252'!I57) -> -0.06899287149 | J54: =LN('page 252'!J58/'page 252'!J57) -> -0.04074183099 | K54: =LN('page 252'!K58/'page 252'!K57) -> -0.02532406344 | L54: =LN('page 252'!L58/'page 252'!L57) -> -0.0184262333
A55: 2011-07-01 | B55: =LN('page 252'!B59/'page 252'!B58) -> 0.02529976379 | C55: =LN('page 252'!C59/'page 252'!C58) -> -0.1408537647 | D55: =LN('page 252'!D59/'page 252'!D58) -> -0.1096734022 | E55: =LN('page 252'!E59/'page 252'!E58) -> 0.05242370048 | F55: =LN('page 252'!F59/'page 252'!F58) -> 0.1512482171 | G55: =LN('page 252'!G59/'page 252'!G58) -> 0.008238032859 | H55: =LN('page 252'!H59/'page 252'!H58) -> -0.05157782989 | I55: =LN('page 252'!I59/'page 252'!I58) -> -0.120534069 | J55: =LN('page 252'!J59/'page 252'!J58) -> -0.06788412479 | K55: =LN('page 252'!K59/'page 252'!K58) -> -0.01971005057 | L55: =LN('page 252'!L59/'page 252'!L58) -> -0.02170836744
A56: 2011-08-01 | B56: =LN('page 252'!B60/'page 252'!B59) -> 0.05121118921 | C56: =LN('page 252'!C60/'page 252'!C59) -> -0.2823362528 | D56: =LN('page 252'!D60/'page 252'!D59) -> -0.3398834181 | E56: =LN('page 252'!E60/'page 252'!E59) -> -0.02321332238 | F56: =LN('page 252'!F60/'page 252'!F59) -> -0.01457507325 | G56: =LN('page 252'!G60/'page 252'!G59) -> -0.01858550138 | H56: =LN('page 252'!H60/'page 252'!H59) -> -0.09360417996 | I56: =LN('page 252'!I60/'page 252'!I59) -> -0.172043974 | J56: =LN('page 252'!J60/'page 252'!J59) -> -0.002684565371 | K56: =LN('page 252'!K60/'page 252'!K59) -> -0.06851904147 | L56: =LN('page 252'!L60/'page 252'!L59) -> -0.05846749162
A57: 2011-09-01 | B57: =LN('page 252'!B61/'page 252'!B60) -> -0.02917109047 | C57: =LN('page 252'!C61/'page 252'!C60) -> -0.3132192046 | D57: =LN('page 252'!D61/'page 252'!D60) -> -0.3229486387 | E57: =LN('page 252'!E61/'page 252'!E60) -> -0.06656076652 | F57: =LN('page 252'!F61/'page 252'!F60) -> -0.009162760705 | G57: =LN('page 252'!G61/'page 252'!G60) -> -0.02102179514 | H57: =LN('page 252'!H61/'page 252'!H60) -> -0.0598827096 | I57: =LN('page 252'!I61/'page 252'!I60) -> -0.2880911541 | J57: =LN('page 252'!J61/'page 252'!J60) -> -0.07129967758 | K57: =LN('page 252'!K61/'page 252'!K60) -> -0.01889841747 | L57: =LN('page 252'!L61/'page 252'!L60) -> -0.07446712754
A58: 2011-10-03 | B58: =LN('page 252'!B62/'page 252'!B61) -> 0.05578068687 | C58: =LN('page 252'!C62/'page 252'!C61) -> 0.1413064666 | D58: =LN('page 252'!D62/'page 252'!D61) -> 0.2647073291 | E58: =LN('page 252'!E62/'page 252'!E61) -> 0.06769648498 | F58: =LN('page 252'!F62/'page 252'!F61) -> 0.05970479201 | G58: =LN('page 252'!G62/'page 252'!G61) -> 0.01897661455 | H58: =LN('page 252'!H62/'page 252'!H61) -> 0.09368008918 | I58: =LN('page 252'!I62/'page 252'!I61) -> 0.1099326987 | J58: =LN('page 252'!J62/'page 252'!J61) -> 0.08571145625 | K58: =LN('page 252'!K62/'page 252'!K61) -> 0.07237571491 | L58: =LN('page 252'!L62/'page 252'!L61) -> 0.1023065917
A59: 2011-11-01 | B59: =LN('page 252'!B63/'page 252'!B62) -> 0.0358094527 | C59: =LN('page 252'!C63/'page 252'!C62) -> 0.07580250487 | D59: =LN('page 252'!D63/'page 252'!D62) -> -0.08227989057 | E59: =LN('page 252'!E63/'page 252'!E62) -> -0.03268893247 | F59: =LN('page 252'!F63/'page 252'!F62) -> -0.05739967783 | G59: =LN('page 252'!G63/'page 252'!G62) -> -0.08889122004 | H59: =LN('page 252'!H63/'page 252'!H62) -> -0.04891101739 | I59: =LN('page 252'!I63/'page 252'!I62) -> -0.226080411 | J59: =LN('page 252'!J63/'page 252'!J62) -> 0.05113429924 | K59: =LN('page 252'!K63/'page 252'!K62) -> 0.03562717764 | L59: =LN('page 252'!L63/'page 252'!L62) -> -0.005071483437
A60: 2011-12-01 | B60: =LN('page 252'!B64/'page 252'!B63) -> 0.04912910329 | C60: =LN('page 252'!C64/'page 252'!C63) -> -0.03129912717 | D60: =LN('page 252'!D64/'page 252'!D63) -> -0.03776068898 | E60: =LN('page 252'!E64/'page 252'!E63) -> 0.01474609569 | F60: =LN('page 252'!F64/'page 252'!F63) -> 0.0579430353 | G60: =LN('page 252'!G64/'page 252'!G63) -> 0.02827823039 | H60: =LN('page 252'!H64/'page 252'!H63) -> 0.1278841316 | I60: =LN('page 252'!I64/'page 252'!I63) -> 0.02181904739 | J60: =LN('page 252'!J64/'page 252'!J63) -> 0.0756174064 | K60: =LN('page 252'!K64/'page 252'!K63) -> 0.05235523033 | L60: =LN('page 252'!L64/'page 252'!L63) -> 0.008496553494
A61: 2012-01-03 | B61: =LN('page 252'!B65/'page 252'!B64) -> -0.01283997979 | C61: =LN('page 252'!C65/'page 252'!C64) -> 0.1317318941 | D61: =LN('page 252'!D65/'page 252'!D64) -> 0.1205280278 | E61: =LN('page 252'!E65/'page 252'!E64) -> 0.1288498039 | F61: =LN('page 252'!F65/'page 252'!F64) -> 0.1196578204 | G61: =LN('page 252'!G65/'page 252'!G64) -> -0.02098188672 | H61: =LN('page 252'!H65/'page 252'!H64) -> 0.04369892421 | I61: =LN('page 252'!I65/'page 252'!I64) -> 0.2487131262 | J61: =LN('page 252'!J65/'page 252'!J64) -> -0.01126772485 | K61: =LN('page 252'!K65/'page 252'!K64) -> -0.0121734407 | L61: =LN('page 252'!L65/'page 252'!L64) -> 0.04265999901
A62: 2012-02-01 | B62: =LN('page 252'!B66/'page 252'!B65) -> 0.009445407843 | C62: =LN('page 252'!C66/'page 252'!C65) -> 0.02845653991 | D62: =LN('page 252'!D66/'page 252'!D65) -> 0.1270533403 | E62: =LN('page 252'!E66/'page 252'!E65) -> 0.04113349358 | F62: =LN('page 252'!F66/'page 252'!F65) -> 0.07730905472 | G62: =LN('page 252'!G66/'page 252'!G65) -> 0.01383758167 | H62: =LN('page 252'!H66/'page 252'!H65) -> 0.02219964317 | I62: =LN('page 252'!I66/'page 252'!I65) -> 0.1373809162 | J62: =LN('page 252'!J66/'page 252'!J65) -> -0.001890359731 | K62: =LN('page 252'!K66/'page 252'!K65) -> 0.01903007 | L62: =LN('page 252'!L66/'page 252'!L65) -> 0.02968285298
A64: Mean | B64: =AVERAGE(B3:B62) -> 0.01631440536 | C64: =AVERAGE(C3:C62) -> -0.01675463353 | D64: -0.01091078729 | E64: 0.003111432635 | F64: 0.02938002465 | G64: 0.002410055972 | H64: -0.006916717139 | I64: -0.02829723039 | J64: 0.001286153317 | K64: 0.004653921393 | L64: -0.0006630640582
A66: Variance-Covariance Matrix
B67: MCD | C67: X | D67: MT | E67: MSFT | F67: AAPL | G67: K | H67: GE | I67: BAC | J67: PFE | K67: XOM
A68: MCD | B68: =MMULT(TRANSPOSE(B83:K142),B83:K142)/59 -> 0.002014669302 | C68: 0.003676100643 | D68: 0.002832651718 | E68: 0.00150688931 | F68: 0.001701204979 | G68: 0.0006741896538 | H68: 0.002013081798 | I68: 0.003119576402 | J68: 0.001546604919 | K68: 0.001087339581
A69: X | B69: 0.003676100643 | C69: 0.03804103989 | D69: 0.0283819124 | E69: 0.007567088195 | F69: 0.01107266947 | G69: 0.003087811516 | H69: 0.012709664 | I69: 0.01761427668 | J69: 0.00433613061 | K69: 0.004345893885
A70: MT | B70: 0.002832651718 | C70: 0.0283819124 | D70: 0.02674490295 | E70: 0.006533798895 | F70: 0.00967842872 | G70: 0.003105484254 | H70: 0.01021455699 | I70: 0.01330153896 | J70: 0.003750918711 | K70: 0.00386071068
A71: MSFT | B71: 0.00150688931 | C71: 0.007567088195 | D71: 0.006533798895 | E71: 0.006274071887 | F71: 0.004883775838 | G71: 0.0009845409502 | H71: 0.004643371281 | I71: 0.007930323551 | J71: 0.001786623629 | K71: 0.001449368134
A72: AAPL | B72: 0.001701204979 | C72: 0.01107266947 | D72: 0.00967842872 | E72: 0.004883775838 | F72: 0.012578638 | G72: 0.001630618798 | H72: 0.00490649707 | I72: 0.00490206004 | J72: 0.0006746984312 | K72: 0.001962758957
A73: K | B73: 0.0006741896538 | C73: 0.003087811516 | D73: 0.003105484254 | E73: 0.0009845409502 | F73: 0.001630618798 | G73: 0.002645772441 | H73: 0.002751145438 | I73: 0.004649101707 | J73: 0.001142082028 | K73: 0.000324340706
A74: GE | B74: 0.002013081798 | C74: 0.012709664 | D74: 0.01021455699 | E74: 0.004643371281 | F74: 0.00490649707 | G74: 0.002751145438 | H74: 0.01218013115 | I74: 0.01632323771 | J74: 0.004105521889 | K74: 0.002214082192
A75: BAC | B75: 0.003119576402 | C75: 0.01761427668 | D75: 0.01330153896 | E75: 0.007930323551 | F75: 0.00490206004 | G75: 0.004649101707 | H75: 0.01632323771 | I75: 0.03929801159 | J75: 0.007987683373 | K75: 0.001744826578
A76: PFE | B76: 0.001546604919 | C76: 0.00433613061 | D76: 0.003750918711 | E76: 0.001786623629 | F76: 0.0006746984312 | G76: 0.001142082028 | H76: 0.004105521889 | I76: 0.007987683373 | J76: 0.004054899621 | K76: 0.001117583722
A77: XOM | B77: 0.001087339581 | C77: 0.004345893885 | D77: 0.00386071068 | E77: 0.001449368134 | F77: 0.001962758957 | G77: 0.000324340706 | H77: 0.002214082192 | I77: 0.001744826578 | J77: 0.001117583722 | K77: 0.002610557076
C78: =getformula(C77) -> <-- {=MMULT(TRANSPOSE(B83:K142),B83:K142)/59}
A81: Excess returns: rij-ri
B82: MCD | C82: X | D82: MT | E82: MSFT | F82: AAPL | G82: K | H82: GE | I82: BAC | J82: PFE | K82: XOM
A83: =A3 -> 2007-03-01 | B83: =B3-B$64 -> 0.01435239304 | C83: 0.1285142676 | D83: 0.05005429991 | E83: -0.01374354697 | F83: 0.06419879506 | G83: 0.02885665048 | H83: 0.01960767807 | I83: 0.0320948447 | J83: 0.01039800298 | K83: 0.0466549492 | L83: =getformula(K83) -> <-- =K3-K$64
A84: 2007-04-02 | B84: =B4-B$64 -> 0.05298817552 | C84: 0.04042746328 | D84: 0.0209396775 | E84: 0.06867510485 | F84: 0.04215687601 | G84: 0.02595908126 | H84: 0.04863810259 | I84: 0.02584159795 | J84: 0.04509611178 | K84: 0.04612133413 | L84: =getformula(K84) -> <-- =K4-K$64
A85: 2007-05-01 | B85: =B5-B$64 -> 0.02958140079 | C85: 0.1269165485 | D85: 0.132508195 | E85: 0.02486496051 | F85: 0.164811354 | G85: 0.02306493827 | H85: 0.02602042261 | I85: 0.03564611103 | J85: 0.04764176139 | K85: 0.04621030768 | L85: <-- =K5-K$64
A86: 2007-06-01 | B86: =B6-B$64 -> -0.01218216807 | C86: -0.0230755148 | D86: 0.05017488534 | E86: -0.04369459267 | F86: -0.02239072679 | G86: -0.04383992915 | H86: 0.03287575631 | I86: -0.008308754598 | J86: -0.073629772 | K86: 0.003864697936 | L86: <-- =K6-K$64
A87: 2007-07-02 | B87: =B7-B$64 -> -0.07480785186 | C87: -0.08434557107 | D87: -0.01138953365 | E87: -0.01966561052 | F87: 0.04725320137 | G87: -0.001969527331 | H87: 0.01933923714 | I87: -0.002316212942 | J87: -0.08516146752 | K87: 0.01021183944
A88: 2007-08-01 | B88: =B8-B$64 -> 0.01194417996 | C88: -0.02049120028 | D88: 0.09744453946 | E88: -0.008436663933 | F88: 0.02036380034 | G88: 0.06177055043 | H88: 0.009690644022 | I88: 0.09485080585 | J88: 0.06566491423 | K88: 0.006255277707
A89: 2007-09-04 | B89: =B9-B$64 -> 0.08445471227 | C89: 0.1312842364 | D89: 0.179463351 | E89: 0.02174860468 | F89: 0.07339917266 | G89: 0.01681737211 | H89: 0.07675051944 | I89: 0.03272789781 | J89: -0.01799117352 | K89: 0.07202482917
A90: 2007-10-01 | B90: =B10-B$64 -> 0.0761970476 | C90: 0.03508051924 | D90: 0.03104474404 | E90: 0.2197344553 | F90: 0.1838757468 | G90: -0.06145316971 | H90: 0.0008709235688 | I90: -0.01207356914 | J90: 0.005834934761 | K90: -0.0107738181
A91: 2007-11-01 | B91: =B11-B$64 -> -0.01204172455 | C91: -0.08055696824 | D91: -0.06442888509 | E91: -0.09112469162 | F91: -0.070926156 | G91: 0.02681692907 | H91: -0.06521626353 | I91: -0.01713838246 | J91: -0.02383964643 | K91: -0.03210973666
A92: 2007-12-03 | B92: =B12-B$64 -> -0.008784685449 | C92: 0.229947854 | D92: 0.05763029594 | E92: 0.05467891558 | F92: 0.05407621656 | G92: -0.03271219432 | H92: -0.01695376298 | I92: -0.06901398676 | J92: -0.04580860975 | K92: 0.04494301975
A93: 2008-01-02 | B93: =B13-B$64 -> -0.1110669411 | C93: -0.1537148567 | D93: -0.1418926374 | E93: -0.09126715015 | F93: -0.4101131183 | G93: -0.09475561568 | H93: -0.04026952104 | I93: 0.09603278582 | J93: 0.02598097302 | K93: -0.09374378891
A94: 2008-02-01 | B94: =B14-B$64 -> 0.0002530282145 | C94: 0.08095519081 | D94: 0.1463756848 | E94: -0.1800853831 | F94: -0.108844196 | G94: 0.06289504244 | H94: -0.04892927058 | I94: -0.07703572149 | J94: -0.03453318332 | K94: 0.01484583621
A95: 2008-03-03 | B95: =B15-B$64 -> 0.01400336118 | C95: 0.1736757952 | D95: 0.08918826944 | E95: 0.03918147956 | F95: 0.108481286 | G95: 0.03319943805 | H95: 0.1172332191 | I95: -0.00220744352 | J95: -0.06371856961 | K95: -0.03307365282
A96: 2008-04-01 | B96: =B16-B$64 -> 0.04966073468 | C96: 0.2102033034 | D96: 0.09631264283 | E96: 0.001860847642 | F96: 0.1630528417 | G96: -0.02921667625 | H96: -0.1168799464 | I96: 0.01858841627 | J96: -0.04155210203 | K96: 0.09099854025
A97: 2008-05-01 | B97: =B17-B$64 -> -0.02066841129 | C97: 0.1332264491 | D97: 0.1196969237 | E97: -0.006551145562 | F97: 0.05227546188 | G97: 0.01625773163 | H97: -0.05533869798 | I97: -0.07054860424 | J97: -0.02327848745 | K97: -0.04757275518
A98: 2008-06-02 | B98: =B18-B$64 -> -0.0635122125 | C98: 0.08429891954 | D98: 0.01202935564 | E98: -0.03185127476 | F98: -0.1491783346 | G98: -0.07857141694 | H98: -0.1227669536 | I98: -0.3064027417 | J98: -0.1039736952 | K98: -0.01182418329
A99: 2008-07-01 | B99: =B19-B$64 -> 0.04519895988 | C99: -0.1250360514 | D99: -0.1142076389 | E99: -0.07075432079 | F99: -0.08141541544 | G99: 0.09755183346 | H99: 0.0653244104 | I99: 0.3492830663 | J99: 0.06491935545 | K99: -0.09605117117
A100: 2008-08-01 | B100: =B20-B$64 -> 0.02615948754 | C100: -0.1675975384 | D100: -0.09511157438 | E100: 0.06018791464 | F100: 0.0350601903 | G100: 0.02941738767 | H100: -4.624361643e-05 | I100: -0.02648386869 | J100: 0.03889502093 | K100: -0.004789874082
A101: 2008-09-02 | B101: =B21-B$64 -> -0.02116573102 | C101: -0.5224083424 | D101: -0.4494200953 | E101: -0.02511672145 | F101: -0.4291983911 | G101: 0.0276463039 | H101: -0.07662573677 | I101: 0.1647500638 | J101: -0.03699304717 | K101: -0.03446156493
A102: 2008-10-01 | B102: =B22-B$64 -> -0.07931712278 | C102: -0.7272092705 | D102: -0.6207717882 | E102: -0.1815570156 | F102: -0.08426385392 | G102: -0.1091752512 | H102: -0.261003615 | I102: -0.3416990435 | J102: -0.04162994587 | K102: -0.05124731268
A103: 2008-11-03 | B103: =B23-B$64 -> 0.006444020476 | C103: -0.1670253854 | D103: -0.09249250699 | E103: -0.09576556838 | F103: -0.1786629357 | G103: -0.1515946846 | H103: -0.1206246409 | I103: -0.3688478297 | J103: -0.05938243358 | K103: 0.07919719868
A104: 2008-12-01 | B104: =B24-B$64 -> 0.04071899286 | C104: 0.218588191 | D104: 0.06791400598 | E104: -0.04205632176 | F104: -0.111664371 | G104: 0.01503004232 | H104: -0.03233053917 | I104: -0.09283749622 | J104: 0.07392706889 | K104: -0.008575229914
A105: 2009-01-02 | B105: =B25-B$64 -> -0.08580079469 | C105: -0.1976193357 | D105: -0.07490197994 | E105: -0.131847784 | F105: 0.02511259867 | G105: -0.005924115813 | H105: -0.2823769592 | I105: -0.7317894328 | J105: -0.1959551677 | K105: -0.04756113956
A106: 2009-02-02 | B106: =B26-B$64 -> -0.1118714354 | C106: -0.397273637 | D106: -0.1359196816 | E106: -0.05328272578 | F106: -0.03851963353 | G106: -0.1092524055 | H106: -0.3180095285 | I106: -0.4825283934 | J106: -0.1488500619 | K106: -0.1186786486
A107: 2009-03-02 | B107: =B27-B$64 -> 0.02721959667 | C107: 0.08794666748 | D107: 0.04741715658 | E107: 0.1260403306 | F107: 0.1336090664 | G107: -0.0629647306 | H107: 0.1787669741 | I107: 0.5768631821 | J107: 0.1000220451 | K107: -0.001646876317
A108: 2009-04-01 | B108: =B28-B$64 -> -0.03999253271 | C108: 0.2451701836 | D108: 0.1735099704 | E108: 0.09456748101 | F108: 0.1504492102 | G108: 0.1369382145 | H108: 0.2311338059 | I108: 0.2980416022 | J108: -0.02057396299 | K108: -0.02589563678
A109: 2009-05-01 | B109: =B29-B$64 -> 0.08525026065 | C109: 0.2683239688 | D109: 0.3584949672 | E109: 0.03404454425 | F109: 0.04694503586 | G109: 0.03215501141 | H109: 0.07011313634 | I109: 0.2613463107 | J109: 0.1383653386 | K109: 0.04078692972
A110: 2009-06-01 | B110: =B30-B$64 -> -0.03385871501 | C110: 0.06408528475 | D110: 0.008015498155 | E110: 0.1259774827 | F110: 0.01821377618 | G110: 0.07148376813 | H110: -0.1246596406 | I110: 0.1870456195 | J110: -0.01388357815 | K110: 0.00333505949
A111: 2009-07-01 | B111: =B31-B$64 -> -0.0596028798 | C111: 0.1231922773 | D111: 0.09668643545 | E111: -0.01385459773 | F111: 0.1079093054 | G111: 0.01734707645 | H111: 0.140907563 | I111: 0.1423355808 | J111: 0.05876805537 | K111: 0.002208476868
A112: 2009-08-03 | B112: =B32-B$64 -> 0.01370624746 | C112: 0.1143338055 | D112: 0.00468208556 | E112: 0.04948614132 | F112: -0.0003068068933 | G112: -0.00309272752 | H112: 0.0432269412 | I112: 0.2013673935 | J112: 0.05602830328 | K112: -0.01642505784
A113: 2009-09-01 | B113: =B33-B$64 -> -0.001541409417 | C113: 0.03030715519 | D113: 0.05229198277 | E113: 0.0395193435 | F113: 0.06765270614 | G113: 0.04211098438 | H113: 0.1795010987 | I113: -0.0097079281 | J113: -0.01061333619 | K113: -0.01237239133
A114: 2009-10-01 | B114: =B34-B$64 -> 0.01021530193 | C114: -0.2351466492 | D114: -0.07674959479 | E114: 0.07175612938 | F114: -0.01252794736 | G114: 0.04354570098 | H114: -0.1336283106 | I114: -0.1205042539 | J114: 0.02708922453 | K114: 0.03886086458
A115: =A35 -> 2009-11-02 | B115: =B35-B$64 -> 0.06842110173 | C115: 0.2763832275 | D115: 0.1594812201 | E115: 0.06014494572 | F115: 0.02938923373 | G115: 0.0246685216 | H115: 0.1230300246 | I115: 0.1118448007 | J115: 0.07328643809 | K115: 0.04752177288
A116: 2009-12-01 | B116: =B36-B$64 -> -0.02918067392 | C116: 0.2272764148 | D116: 0.1635638573 | E116: 0.0329379652 | F116: 0.02333040329 | G116: 0.009260096596 | H116: -0.04381383103 | I116: -0.0225943769 | J116: -7.91525672e-05 | K116: -0.1008094098
A117: 2010-01-04 | B117: =B37-B$64 -> -0.01648480665 | C117: -0.1987603492 | D117: -0.1568981885 | E117: -0.08175143486 | F117: -0.1221498947 | G117: 0.02033392847 | H117: 0.06762406905 | I117: 0.03629727306 | J117: 0.02431810338 | K117: -0.06126528927
A118: 2010-02-01 | B118: =B38-B$64 -> 0.01472575127 | C118: 0.1929902073 | D118: 0.003520579853 | E118: 0.01895639926 | F118: 0.03396675259 | G118: -0.03783664624 | H118: 0.01219725746 | I118: 0.1214319199 | J118: -0.05316751006 | K118: 0.01065083843
A119: 2010-03-01 | B119: =B39-B$64 -> 0.02764161235 | C119: 0.1990125993 | D119: 0.1497167067 | E119: 0.01812384435 | F119: 0.109050889 | G119: 0.02180807952 | H119: 0.1317700108 | I119: 0.09781426374 | J119: -0.02446288757 | K119: 0.02527032318
A120: 2010-04-01 | B120: =B40-B$64 -> 0.04008834315 | C120: -0.1335877269 | D120: -0.1118163009 | E120: 0.0387356773 | F120: 0.07589963667 | G120: 0.02547514752 | H120: 0.04286923407 | I120: 0.0271679248 | J120: -0.02696150466 | K120: 0.007038471536
A121: 2010-05-03 | B121: =B41-B$64 -> -0.06217998002 | C121: -0.1287796649 | D121: -0.230030104 | E121: -0.1671583692 | F121: -0.04563615034 | G121: -0.02320163366 | H121: -0.1362703669 | I121: -0.09607526475 | J121: -0.08393302913 | K121: -0.1118760572
A122: 2010-06-01 | B122: =B42-B$64 -> -0.03128828431 | C122: -0.1858176099 | D122: -0.1142523557 | E122: -0.1176803233 | F122: -0.05042680772 | G122: -0.06270339554 | H122: -0.1124847037 | I122: -0.06203495713 | J122: -0.06695525683 | K122: -0.06236053077
A123: 2010-07-01 | B123: =B43-B$64 -> 0.04063224502 | C123: 0.156482439 | D123: 0.1483817779 | E123: 0.1118597916 | F123: -0.00689391666 | G123: -0.007427837774 | H123: 0.1185258908 | I123: 0.004916781749 | J123: 0.04944137019 | K123: 0.04002827881
A124: 2010-08-02 | B124: =B44-B$64 -> 0.03770544163 | C124: -0.02459852919 | D124: -0.04032885759 | E124: -0.09312592486 | F124: -0.08595551805 | G124: -0.00178145459 | H124: -0.1003288132 | I124: -0.09110001062 | J124: 0.06861431096 | K124: -0.007104045125
A125: 2010-09-01 | B125: =B45-B$64 -> 0.003387892524 | C125: 0.0480436674 | D125: 0.1399165757 | E125: 0.03953987359 | F125: 0.1252406628 | G125: 0.01400248653 | H125: 0.129686492 | I125: 0.07946935427 | J125: 0.07463453698 | K125: 0.0395616426
A126: 2010-10-01 | B126: =B46-B$64 -> 0.02651226742 | C126: -0.009093819195 | D126: -0.007170593496 | E126: 0.08214105271 | F126: 0.02957022391 | G126: -0.007367719504 | H126: -0.007304595584 | I126: -0.1062213833 | J126: 0.01347426227 | K126: 0.06869936539
A127: 2010-11-01 | B127: =B47-B$64 -> -0.001734955594 | C127: 0.1468595444 | D127: -0.005549161535 | E127: -0.05110795365 | F127: 0.003851269002 | G127: -0.01470315796 | H127: -0.004871238613 | I127: -0.01659361012 | J127: -0.05779836358 | K127: 0.04681072457
A128: 2010-12-01 | B128: =B48-B$64 -> -0.03611440108 | C128: 0.200525016 | D128: 0.196319017 | E128: 0.09658496161 | F128: 0.006634029774 | G128: 0.0344291751 | H128: 0.1588062315 | I128: 0.2267114375 | J128: 0.07037327173 | K128: 0.045277096
A129: 2011-01-03 | B129: =B49-B$64 -> -0.05741044986 | C129: 0.003918377494 | D129: -0.03359012982 | E129: -0.009753523475 | F129: 0.02127442484 | G129: -0.01788582808 | H129: 0.1034095076 | I129: 0.05650994049 | J129: 0.03821205498 | K129: 0.09367177269
A130: 2011-02-01 | B130: =B50-B$64 -> 0.01872387007 | C130: 0.01448250112 | D130: 0.0213143677 | E130: -0.03930083224 | F130: 0.01073914131 | G130: 0.06810023537 | H130: 0.05163655227 | I130: 0.06847480063 | J130: 0.06415513939 | K130: 0.0589831346
A131: 2011-03-01 | B131: =B51-B$64 -> -0.0109279124 | C131: -0.0470026239 | D131: -0.003457680778 | E131: -0.04906493296 | F131: -0.04277588136 | G131: 0.005400251375 | H131: -0.03523704011 | I131: -0.04009304993 | J131: 0.05246756599 | K131: -0.02119120454
A132: 2011-04-01 | B132: =B52-B$64 -> 0.01241217118 | C132: -0.1059125594 | D132: 0.03612927139 | E132: 0.01757347352 | F132: -0.02474243476 | G132: 0.05671774352 | H132: 0.02670929423 | I132: -0.05406996396 | J132: 0.03102357281 | K132: 0.04009414375
A133: 2011-05-02 | B133: =B53-B$64 -> 0.03158674 | C133: -0.01625307795 | D133: -0.08636590701 | E133: -0.03227267612 | F133: -0.03597068408 | G133: -8.7589542e-05 | H133: -0.03359125634 | I133: -0.0160058775 | J133: 0.0309747089 | K133: -0.05159523708
A134: 2011-06-01 | B134: =B54-B$64 -> 0.01720145185 | C134: 0.01522808215 | D134: 0.0494978984 | E134: 0.03545426888 | F134: -0.06496534484 | G134: -0.03211162358 | H134: -0.02552430903 | I134: -0.04069564109 | J134: -0.0420279843 | K134: -0.02997798483
A135: 2011-07-01 | B135: =B55-B$64 -> 0.008985358437 | C135: -0.1240991312 | D135: -0.09876261488 | E135: 0.04931226784 | F135: 0.1218681924 | G135: 0.005827976887 | H135: -0.04466111275 | I135: -0.09223683864 | J135: -0.06917027811 | K135: -0.02436397197
A136: 2011-08-01 | B136: =B56-B$64 -> 0.03489678385 | C136: -0.2655816193 | D136: -0.3289726308 | E136: -0.02632475501 | F136: -0.0439550979 | G136: -0.02099555736 | H136: -0.08668746282 | I136: -0.1437467436 | J136: -0.003970718688 | K136: -0.07317296287
A137: 2011-09-01 | B137: =B57-B$64 -> -0.04548549583 | C137: -0.2964645711 | D137: -0.3120378514 | E137: -0.06967219915 | F137: -0.03854278536 | G137: -0.02343185111 | H137: -0.05296599246 | I137: -0.2597939237 | J137: -0.0725858309 | K137: -0.02355233886
A138: 2011-10-03 | B138: =B58-B$64 -> 0.03946628151 | C138: 0.1580611001 | D138: 0.2756181164 | E138: 0.06458505235 | F138: 0.03032476736 | G138: 0.01656655857 | H138: 0.1005968063 | I138: 0.1382299291 | J138: 0.08442530293 | K138: 0.06772179352
A139: 2011-11-01 | B139: =B59-B$64 -> 0.01949504734 | C139: 0.0925571384 | D139: -0.07136910328 | E139: -0.0358003651 | F139: -0.08677970249 | G139: -0.09130127602 | H139: -0.04199430025 | I139: -0.1977831806 | J139: 0.04984814592 | K139: 0.03097325625
A140: 2011-12-01 | B140: =B60-B$64 -> 0.03281469794 | C140: -0.01454449364 | D140: -0.02684990169 | E140: 0.01163466305 | F140: 0.02856301065 | G140: 0.02586817442 | H140: 0.1348008488 | I140: 0.05011627779 | J140: 0.07433125309 | K140: 0.04770130894
A141: 2012-01-03 | B141: =B61-B$64 -> -0.02915438515 | C141: 0.1484865276 | D141: 0.1314388151 | E141: 0.1257383713 | F141: 0.0902777957 | G141: -0.02339194269 | H141: 0.05061564135 | I141: 0.2770103566 | J141: -0.01255387816 | K141: -0.01682736209
A142: 2012-02-01 | B142: =B62-B$64 -> -0.006868997513 | C142: 0.04521117345 | D142: 0.1379641276 | E142: 0.03802206094 | F142: 0.04792903007 | G142: 0.0114275257 | H142: 0.0291163603 | I142: 0.1656781466 | J142: -0.003176513048 | K142: 0.01437614861

Sheet Page 255
A1: PORTFOLIO ANALYSIS FOR MONTHLY DATA
B2: Variance-Covariance Matrix
B3: MCD | C3: X | D3: MT | E3: MSFT | F3: AAPL | G3: K | H3: GE | I3: BAC | J3: PFE | K3: XOM
A4: MCD | B4: =varcovar('Page 253'!B3:K62) -> 0.002014669302 | C4: 0.003676100643 | D4: 0.002832651718 | E4: 0.00150688931 | F4: 0.001701204979 | G4: 0.0006741896538 | H4: 0.002013081798 | I4: 0.003119576402 | J4: 0.001546604919 | K4: 0.001087339581 | L4: =getformula(K4) -> <-- {=varcovar('Page 253'!B3:K62)}
A5: X | B5: 0.003676100643 | C5: 0.03804103989 | D5: 0.0283819124 | E5: 0.007567088195 | F5: 0.01107266947 | G5: 0.003087811516 | H5: 0.012709664 | I5: 0.01761427668 | J5: 0.00433613061 | K5: 0.004345893885
A6: MT | B6: 0.002832651718 | C6: 0.0283819124 | D6: 0.02674490295 | E6: 0.006533798895 | F6: 0.00967842872 | G6: 0.003105484254 | H6: 0.01021455699 | I6: 0.01330153896 | J6: 0.003750918711 | K6: 0.00386071068
A7: MSFT | B7: 0.00150688931 | C7: 0.007567088195 | D7: 0.006533798895 | E7: 0.006274071887 | F7: 0.004883775838 | G7: 0.0009845409502 | H7: 0.004643371281 | I7: 0.007930323551 | J7: 0.001786623629 | K7: 0.001449368134
A8: AAPL | B8: 0.001701204979 | C8: 0.01107266947 | D8: 0.00967842872 | E8: 0.004883775838 | F8: 0.012578638 | G8: 0.001630618798 | H8: 0.00490649707 | I8: 0.00490206004 | J8: 0.0006746984312 | K8: 0.001962758957
A9: K | B9: 0.0006741896538 | C9: 0.003087811516 | D9: 0.003105484254 | E9: 0.0009845409502 | F9: 0.001630618798 | G9: 0.002645772441 | H9: 0.002751145438 | I9: 0.004649101707 | J9: 0.001142082028 | K9: 0.000324340706
A10: GE | B10: 0.002013081798 | C10: 0.012709664 | D10: 0.01021455699 | E10: 0.004643371281 | F10: 0.00490649707 | G10: 0.002751145438 | H10: 0.01218013115 | I10: 0.01632323771 | J10: 0.004105521889 | K10: 0.002214082192
A11: BAC | B11: 0.003119576402 | C11: 0.01761427668 | D11: 0.01330153896 | E11: 0.007930323551 | F11: 0.00490206004 | G11: 0.004649101707 | H11: 0.01632323771 | I11: 0.03929801159 | J11: 0.007987683373 | K11: 0.001744826578
A12: PFE | B12: 0.001546604919 | C12: 0.00433613061 | D12: 0.003750918711 | E12: 0.001786623629 | F12: 0.0006746984312 | G12: 0.001142082028 | H12: 0.004105521889 | I12: 0.007987683373 | J12: 0.004054899621 | K12: 0.001117583722
A13: XOM | B13: 0.001087339581 | C13: 0.004345893885 | D13: 0.00386071068 | E13: 0.001449368134 | F13: 0.001962758957 | G13: 0.000324340706 | H13: 0.002214082192 | I13: 0.001744826578 | J13: 0.001117583722 | K13: 0.002610557076
B15: Correlation matrix
B16: MCD | C16: X | D16: MT | E16: MSFT | F16: AAPL | G16: K | H16: GE | I16: BAC | J16: PFE | K16: XOM
A17: MCD | B17: =CorrMatrix('Page 253'!B3:K62) -> 1 | C17: 0.4199129981 | D17: 0.3858964493 | E17: 0.4238427144 | F17: 0.3379387172 | G17: 0.2920141893 | H17: 0.4063811502 | I17: 0.3505972084 | J17: 0.5411123534 | K17: 0.4741292147
A18: X | B18: 0.4199129981 | C18: 1 | D18: 0.8898052255 | E18: 0.4898102401 | F18: 0.5061850756 | G18: 0.3077856362 | H18: 0.590448328 | I18: 0.4555681307 | J18: 0.3491291501 | K18: 0.4361002455
A19: MT | B19: 0.3858964493 | C19: 0.8898052255 | D19: 1 | E19: 0.5043946886 | F19: 0.5276762327 | G19: 0.369175247 | H19: 0.5659434533 | I19: 0.4102948724 | J19: 0.3601862131 | K19: 0.4620406087
A20: MSFT | B20: 0.4238427144 | C20: 0.4898102401 | D20: 0.5043946886 | E20: 1 | F20: 0.5497486445 | G20: 0.2416477719 | H20: 0.5311689542 | I20: 0.5050459271 | J20: 0.3542160815 | K20: 0.3581272493
A21: AAPL | B21: 0.3379387172 | C21: 0.5061850756 | D21: 0.5276762327 | E21: 0.5497486445 | F21: 1 | G21: 0.2826567695 | H21: 0.3963955333 | I21: 0.2204837204 | J21: 0.09447194073 | K21: 0.3425181282
A22: K | B22: 0.2920141893 | C22: 0.3077856362 | D22: 0.369175247 | E22: 0.2416477719 | F22: 0.2826567695 | G22: 1 | H22: 0.4846311477 | I22: 0.4559398109 | J22: 0.348683181 | K22: 0.1234123485
A23: GE | B23: 0.4063811502 | C23: 0.590448328 | D23: 0.5659434533 | E23: 0.5311689542 | F23: 0.3963955333 | G23: 0.4846311477 | H23: 1 | I23: 0.7460965549 | J23: 0.5841876019 | K23: 0.3926459843
A24: BAC | B24: 0.3505972084 | C24: 0.4555681307 | D24: 0.4102948724 | E24: 0.5050459271 | F24: 0.2204837204 | G24: 0.4559398109 | H24: 0.7460965549 | I24: 1 | J24: 0.6327694441 | K24: 0.1722663228
A25: PFE | B25: 0.5411123534 | C25: 0.3491291501 | D25: 0.3601862131 | E25: 0.3542160815 | F25: 0.09447194073 | G25: 0.348683181 | H25: 0.5841876019 | I25: 0.6327694441 | J25: 1 | K25: 0.3434973706
A26: XOM | B26: 0.4741292147 | C26: 0.4361002455 | D26: 0.4620406087 | E26: 0.3581272493 | F26: 0.3425181282 | G26: 0.1234123485 | H26: 0.3926459843 | I26: 0.1722663228 | J26: 0.3434973706 | K26: 1
A28: Average correlation | B28: =AVERAGEIF(B17:K26,"<1") -> 0.4225995296 | C28: =getformula(B28) -> <-- =AVERAGEIF(B17:K26,"<1")
A29: Minimum correlation | B29: =MIN(B17:K26) -> 0.09447194073 | C29: =getformula(B29) -> <-- =MIN(B17:K26)
A30: Maximum correlation | B30: =LARGE(B17:K26,11) -> 0.8898052255 | C30: <-- =LARGE(B17:K26,11)
B31: =LARGE(B17:K26,13) -> 0.7460965549 | C31: <-- =LARGE(B17:K26,13)

Sheet Page 257-259
A1: CORRELATION MATRIX
B2: McDonalds | C2: US Steel | D2: Arcelor-Mittal | E2: Microsoft | F2: Apple | G2: Kellogg | H2: General Electric | I2: Bank of America | J2: Pfizer | K2: Exxon
B3: MCD | C3: X | D3: MT | E3: MSFT | F3: AAPL | G3: K | H3: GE | I3: BAC | J3: PFE | K3: XOM
A4: MCD | B4: =CorrMatrix('Page 253'!B3:K62) -> 1 | C4: 0.4199129981 | D4: 0.3858964493 | E4: 0.4238427144 | F4: 0.3379387172 | G4: 0.2920141893 | H4: 0.4063811502 | I4: 0.3505972084 | J4: 0.5411123534 | K4: 0.4741292147
A5: X | B5: 0.4199129981 | C5: 1 | D5: 0.8898052255 | E5: 0.4898102401 | F5: 0.5061850756 | G5: 0.3077856362 | H5: 0.590448328 | I5: 0.4555681307 | J5: 0.3491291501 | K5: 0.4361002455
A6: MT | B6: 0.3858964493 | C6: 0.8898052255 | D6: 1 | E6: 0.5043946886 | F6: 0.5276762327 | G6: 0.369175247 | H6: 0.5659434533 | I6: 0.4102948724 | J6: 0.3601862131 | K6: 0.4620406087
A7: MSFT | B7: 0.4238427144 | C7: 0.4898102401 | D7: 0.5043946886 | E7: 1 | F7: 0.5497486445 | G7: 0.2416477719 | H7: 0.5311689542 | I7: 0.5050459271 | J7: 0.3542160815 | K7: 0.3581272493
A8: AAPL | B8: 0.3379387172 | C8: 0.5061850756 | D8: 0.5276762327 | E8: 0.5497486445 | F8: 1 | G8: 0.2826567695 | H8: 0.3963955333 | I8: 0.2204837204 | J8: 0.09447194073 | K8: 0.3425181282
A9: K | B9: 0.2920141893 | C9: 0.3077856362 | D9: 0.369175247 | E9: 0.2416477719 | F9: 0.2826567695 | G9: 1 | H9: 0.4846311477 | I9: 0.4559398109 | J9: 0.348683181 | K9: 0.1234123485
A10: GE | B10: 0.4063811502 | C10: 0.590448328 | D10: 0.5659434533 | E10: 0.5311689542 | F10: 0.3963955333 | G10: 0.4846311477 | H10: 1 | I10: 0.7460965549 | J10: 0.5841876019 | K10: 0.3926459843
A11: BAC | B11: 0.3505972084 | C11: 0.4555681307 | D11: 0.4102948724 | E11: 0.5050459271 | F11: 0.2204837204 | G11: 0.4559398109 | H11: 0.7460965549 | I11: 1 | J11: 0.6327694441 | K11: 0.1722663228
A12: PFE | B12: 0.5411123534 | C12: 0.3491291501 | D12: 0.3601862131 | E12: 0.3542160815 | F12: 0.09447194073 | G12: 0.348683181 | H12: 0.5841876019 | I12: 0.6327694441 | J12: 1 | K12: 0.3434973706
A13: XOM | B13: 0.4741292147 | C13: 0.4361002455 | D13: 0.4620406087 | E13: 0.3581272493 | F13: 0.3425181282 | G13: 0.1234123485 | H13: 0.3926459843 | I13: 0.1722663228 | J13: 0.3434973706 | K13: 1
D14: =getformula(D13) -> <-- {=CorrMatrix('Page 253'!B3:K62)}
B16: McDonalds | C16: US Steel | D16: Arcelor-Mittal | E16: Microsoft | F16: Apple | G16: Kellogg | H16: General Electric | I16: Bank of America | J16: Pfizer | K16: Exxon
B17: MCD | C17: X | D17: MT | E17: MSFT | F17: AAPL | G17: K | H17: GE | I17: BAC | J17: PFE | K17: XOM
A18: MCD | B18: =CorrMatrixTriangular('Page 253'!B3:K62) -> 1 | C18: 0.4199129981 | D18: 0.3858964493 | E18: 0.4238427144 | F18: 0.3379387172 | G18: 0.2920141893 | H18: 0.4063811502 | I18: 0.3505972084 | J18: 0.5411123534 | K18: 0.4741292147
A19: X | C19: 1 | D19: 0.8898052255 | E19: 0.4898102401 | F19: 0.5061850756 | G19: 0.3077856362 | H19: 0.590448328 | I19: 0.4555681307 | J19: 0.3491291501 | K19: 0.4361002455
A20: MT | D20: 1 | E20: 0.5043946886 | F20: 0.5276762327 | G20: 0.369175247 | H20: 0.5659434533 | I20: 0.4102948724 | J20: 0.3601862131 | K20: 0.4620406087
A21: MSFT | E21: 1 | F21: 0.5497486445 | G21: 0.2416477719 | H21: 0.5311689542 | I21: 0.5050459271 | J21: 0.3542160815 | K21: 0.3581272493
A22: AAPL | F22: 1 | G22: 0.2826567695 | H22: 0.3963955333 | I22: 0.2204837204 | J22: 0.09447194073 | K22: 0.3425181282
A23: K | G23: 1 | H23: 0.4846311477 | I23: 0.4559398109 | J23: 0.348683181 | K23: 0.1234123485
A24: GE | H24: 1 | I24: 0.7460965549 | J24: 0.5841876019 | K24: 0.3926459843
A25: BAC | I25: 1 | J25: 0.6327694441 | K25: 0.1722663228
A26: PFE | J26: 1 | K26: 0.3434973706
A27: XOM | K27: 1
D28: =getformula(D27) -> <-- {=CorrMatrixTriangular('Page 253'!B3:K62)}
A30: Some correlation statistics
A31: Average | B31: =AVERAGEIF(B18:K27,"<1") -> 0.4225995296 | C31: =getformula(B31) -> <-- =AVERAGEIF(B18:K27,"<1")
A32: Largest | B32: =LARGE(B18:K27,11) -> 0.8898052255 | C32: =getformula(B32) -> <-- =LARGE(B18:K27,11) | F32: Smallest | G32: =SMALL($B$18:$K$27,1) -> 0.09447194073 | H32: =getformula(G32) -> <-- =SMALL($B$18:$K$27,1)
A33: Next largest | B33: =LARGE(B18:K27,12) -> 0.7460965549 | C33: =getformula(B33) -> <-- =LARGE(B18:K27,12) | F33: Next small | G33: =SMALL($B$18:$K$27,2) -> 0.1234123485 | H33: =getformula(G33) -> <-- =SMALL($B$18:$K$27,2)
A34: etc. | B34: =LARGE(B18:K27,13) -> 0.6327694441 | C34: <-- =LARGE(B18:K27,13) | F34: etc. | G34: =SMALL($B$18:$K$27,3) -> 0.1722663228 | H34: <-- =SMALL($B$18:$K$27,3)
A35: etc. | B35: =LARGE(B18:K27,14) -> 0.590448328 | C35: <-- =LARGE(B18:K27,14) | F35: etc. | G35: =SMALL($B$18:$K$27,5) -> 0.2416477719 | H35: <-- =SMALL($B$18:$K$27,5)
A36: etc. | B36: =LARGE(B18:K27,15) -> 0.5841876019 | C36: <-- =LARGE(B18:K27,15) | F36: etc. | G36: =SMALL($B$18:$K$27,5) -> 0.2416477719 | H36: <-- =SMALL($B$18:$K$27,5)

Sheet Page 261
A1: COMPUTING THE GLOBAL MINIMUM VARIANCE PORTFOLIO
B2: Variance-Covariance Matrix
B3: MCD | C3: X | D3: MT | E3: MSFT | F3: AAPL | G3: K | H3: GE | I3: BAC | J3: PFE | K3: XOM
A4: MCD | B4: =varcovar('Page 253'!B3:K62) -> 0.002014669302 | C4: 0.003676100643 | D4: 0.002832651718 | E4: 0.00150688931 | F4: 0.001701204979 | G4: 0.0006741896538 | H4: 0.002013081798 | I4: 0.003119576402 | J4: 0.001546604919 | K4: 0.001087339581
A5: X | B5: 0.003676100643 | C5: 0.03804103989 | D5: 0.0283819124 | E5: 0.007567088195 | F5: 0.01107266947 | G5: 0.003087811516 | H5: 0.012709664 | I5: 0.01761427668 | J5: 0.00433613061 | K5: 0.004345893885
A6: MT | B6: 0.002832651718 | C6: 0.0283819124 | D6: 0.02674490295 | E6: 0.006533798895 | F6: 0.00967842872 | G6: 0.003105484254 | H6: 0.01021455699 | I6: 0.01330153896 | J6: 0.003750918711 | K6: 0.00386071068
A7: MSFT | B7: 0.00150688931 | C7: 0.007567088195 | D7: 0.006533798895 | E7: 0.006274071887 | F7: 0.004883775838 | G7: 0.0009845409502 | H7: 0.004643371281 | I7: 0.007930323551 | J7: 0.001786623629 | K7: 0.001449368134
A8: AAPL | B8: 0.001701204979 | C8: 0.01107266947 | D8: 0.00967842872 | E8: 0.004883775838 | F8: 0.012578638 | G8: 0.001630618798 | H8: 0.00490649707 | I8: 0.00490206004 | J8: 0.0006746984312 | K8: 0.001962758957
A9: K | B9: 0.0006741896538 | C9: 0.003087811516 | D9: 0.003105484254 | E9: 0.0009845409502 | F9: 0.001630618798 | G9: 0.002645772441 | H9: 0.002751145438 | I9: 0.004649101707 | J9: 0.001142082028 | K9: 0.000324340706
A10: GE | B10: 0.002013081798 | C10: 0.012709664 | D10: 0.01021455699 | E10: 0.004643371281 | F10: 0.00490649707 | G10: 0.002751145438 | H10: 0.01218013115 | I10: 0.01632323771 | J10: 0.004105521889 | K10: 0.002214082192
A11: BAC | B11: 0.003119576402 | C11: 0.01761427668 | D11: 0.01330153896 | E11: 0.007930323551 | F11: 0.00490206004 | G11: 0.004649101707 | H11: 0.01632323771 | I11: 0.03929801159 | J11: 0.007987683373 | K11: 0.001744826578
A12: PFE | B12: 0.001546604919 | C12: 0.00433613061 | D12: 0.003750918711 | E12: 0.001786623629 | F12: 0.0006746984312 | G12: 0.001142082028 | H12: 0.004105521889 | I12: 0.007987683373 | J12: 0.004054899621 | K12: 0.001117583722
A13: XOM | B13: 0.001087339581 | C13: 0.004345893885 | D13: 0.00386071068 | E13: 0.001449368134 | F13: 0.001962758957 | G13: 0.000324340706 | H13: 0.002214082192 | I13: 0.001744826578 | J13: 0.001117583722 | K13: 0.002610557076
A15: GMVP as row | B15: =MMULT(unitrowvector(10),B4:K13)/SUM(MMULT(unitrowvector(10),B4:K13)) -> 0.03263556045 | C15: 0.2116661488 | D15: 0.1753817537 | E15: 0.0704728557 | F15: 0.08734934792 | G15: 0.03396668525 | H15: 0.1165836123 | I15: 0.1890779512 | J15: 0.04934855379 | K15: 0.03351753093
C16: =getformula(C15) -> <-- {=MMULT(unitrowvector(10),B4:K13)/SUM(MMULT(unitrowvector(10),B4:K13))}
A18: GMVP as column | B18: =MMULT(B4:K13,unitcolvector(10))/SUM(MMULT(B4:K13,unitcolvector(10))) -> 0.03263556045
B19: 0.2116661488 | C19: =getformula(B19) -> <-- {=MMULT(B4:K13,unitcolvector(10))/SUM(MMULT(B4:K13,unitcolvector(10)))}
B20: 0.1753817537
B21: 0.0704728557
B22: 0.08734934792
B23: 0.03396668525
B24: 0.1165836123
B25: 0.1890779512
B26: 0.04934855379
B27: 0.03351753093
A29: GMVP statistics
A30: Mean | B30: =SUMPRODUCT(B15:K15,'Page 253'!B64:K64) -> -0.007997353307 | C30: =getformula(B30) -> <-- =SUMPRODUCT(B15:K15,'Page 253'!B64:K64)
A31: Variance | B31: =MMULT(MMULT(B15:K15,B4:K13),B18:B27) -> 0.01299229651 | C31: =getformula(B31) -> <-- {=MMULT(MMULT(B15:K15,B4:K13),B18:B27)}
A32: Sigma | B32: =SQRT(B31) -> 0.1139837554 | C32: =getformula(B32) -> <-- =SQRT(B31)

Sheet Page 264
A1: COMPUTING THE SINGLE-INDEX VARIANCE-COVARIANCE MATRIX
B2: MCD | C2: X | D2: MT | E2: MSFT | F2: AAPL | G2: K | H2: GE | I2: BAC | J2: PFE | K2: XOM
A3: MCD | B3: =sim(B16:K75,L16:L75) -> 0.002014669302 | C3: 0.003592101082 | D3: 0.003080023111 | E3: 0.00131325598 | F3: 0.001622541509 | G3: 0.0005917832714 | H3: 0.0021187377 | I3: 0.00317199335 | J3: 0.0009156248499 | K3: 0.000646915563
A4: X | B4: 0.003592101082 | C4: 0.03804103989 | D4: 0.01984726226 | E4: 0.008462448145 | F4: 0.01045544325 | G4: 0.003813373266 | H4: 0.013652866 | I4: 0.02043990634 | J4: 0.005900165641 | K4: 0.004168638474
A5: MT | B5: 0.003080023111 | C5: 0.01984726226 | D5: 0.02674490295 | E5: 0.00725606971 | F5: 0.008964950073 | G5: 0.003269751469 | H5: 0.01170655887 | I5: 0.01752606134 | J5: 0.00505905767 | K5: 0.003574371252
A6: MSFT | B6: 0.00131325598 | C6: 0.008462448145 | D6: 0.00725606971 | E6: 0.006274071887 | F6: 0.003822462973 | G6: 0.001394152094 | H6: 0.004991426329 | I6: 0.007472737718 | J6: 0.00215707399 | K6: 0.001524035455
A7: AAPL | B7: 0.001622541509 | C7: 0.01045544325 | D7: 0.008964950073 | E7: 0.003822462973 | F7: 0.012578638 | G7: 0.001722489505 | H7: 0.006166959473 | I7: 0.009232645664 | J7: 0.002665087491 | K7: 0.001882961756
A8: K | B8: 0.0005917832714 | C8: 0.003813373266 | D8: 0.003269751469 | E8: 0.001394152094 | F8: 0.001722489505 | G8: 0.002645772441 | H8: 0.00224925121 | I8: 0.003367387044 | J8: 0.000972027024 | K8: 0.0006867653379
A9: GE | B9: 0.0021187377 | C9: 0.013652866 | D9: 0.01170655887 | E9: 0.004991426329 | F9: 0.006166959473 | G9: 0.00224925121 | H9: 0.01218013115 | I9: 0.01205611957 | J9: 0.003480109021 | K9: 0.002458798149
A10: BAC | B10: 0.00317199335 | C10: 0.02043990634 | D10: 0.01752606134 | E10: 0.007472737718 | F10: 0.009232645664 | G10: 0.003367387044 | H10: 0.01205611957 | I10: 0.03929801159 | J10: 0.005210122363 | K10: 0.003681102847
A11: PFE | B11: 0.0009156248499 | C11: 0.005900165641 | D11: 0.00505905767 | E11: 0.00215707399 | F11: 0.002665087491 | G11: 0.000972027024 | H11: 0.003480109021 | I11: 0.005210122363 | J11: 0.004054899621 | K11: 0.001062583956
A12: XOM | B12: 0.000646915563 | C12: 0.004168638474 | D12: 0.003574371252 | E12: 0.001524035455 | F12: 0.001882961756 | G12: 0.0006867653379 | H12: 0.002458798149 | I12: 0.003681102847 | J12: 0.001062583956 | K12: 0.002610557076
D13: =getformula(D12) -> <-- {=sim(B16:K75,L16:L75)}
A15: Date | B15: MCD | C15: X | D15: MT | E15: MSFT | F15: AAPL | G15: K | H15: GE | I15: BAC | J15: PFE | K15: XOM | L15: ^GSPC
A16: 2007-03-01 | B16: =LN('page 252'!B7/'page 252'!B6) -> 0.03066679839 | C16: =LN('page 252'!C7/'page 252'!C6) -> 0.1117596341 | D16: =LN('page 252'!D7/'page 252'!D6) -> 0.03914351262 | E16: =LN('page 252'!E7/'page 252'!E6) -> -0.01063211433 | F16: =LN('page 252'!F7/'page 252'!F6) -> 0.09357881972 | G16: =LN('page 252'!G7/'page 252'!G6) -> 0.03126670646 | H16: =LN('page 252'!H7/'page 252'!H6) -> 0.01269096093 | I16: =LN('page 252'!I7/'page 252'!I6) -> 0.003797614304 | J16: =LN('page 252'!J7/'page 252'!J6) -> 0.01168415629 | K16: =LN('page 252'!K7/'page 252'!K6) -> 0.05130887059 | L16: =LN('page 252'!L7/'page 252'!L6) -> 0.009930483915
A17: 2007-04-02 | B17: =LN('page 252'!B8/'page 252'!B7) -> 0.06930258088 | C17: =LN('page 252'!C8/'page 252'!C7) -> 0.02367282975 | D17: =LN('page 252'!D8/'page 252'!D7) -> 0.0100288902 | E17: =LN('page 252'!E8/'page 252'!E7) -> 0.07178653748 | F17: =LN('page 252'!F8/'page 252'!F7) -> 0.07153690066 | G17: =LN('page 252'!G8/'page 252'!G7) -> 0.02836913723 | H17: =LN('page 252'!H8/'page 252'!H7) -> 0.04172138545 | I17: =LN('page 252'!I8/'page 252'!I7) -> -0.002455632443 | J17: =LN('page 252'!J8/'page 252'!J7) -> 0.0463822651 | K17: =LN('page 252'!K8/'page 252'!K7) -> 0.05077525552 | L17: =LN('page 252'!L8/'page 252'!L7) -> 0.04237983624
A18: 2007-05-01 | B18: =LN('page 252'!B9/'page 252'!B8) -> 0.04589580614 | C18: =LN('page 252'!C9/'page 252'!C8) -> 0.1101619149 | D18: =LN('page 252'!D9/'page 252'!D8) -> 0.1215974077 | E18: =LN('page 252'!E9/'page 252'!E8) -> 0.02797639314 | F18: =LN('page 252'!F9/'page 252'!F8) -> 0.1941913787 | G18: =LN('page 252'!G9/'page 252'!G8) -> 0.02547499424 | H18: =LN('page 252'!H9/'page 252'!H8) -> 0.01910370547 | I18: =LN('page 252'!I9/'page 252'!I8) -> 0.007348880641 | J18: =LN('page 252'!J9/'page 252'!J8) -> 0.0489279147 | K18: =LN('page 252'!K9/'page 252'!K8) -> 0.05086422908 | L18: =LN('page 252'!L9/'page 252'!L8) -> 0.03203072375
A19: 2007-06-01 | B19: =LN('page 252'!B10/'page 252'!B9) -> 0.004132237285 | C19: =LN('page 252'!C10/'page 252'!C9) -> -0.03983014834 | D19: =LN('page 252'!D10/'page 252'!D9) -> 0.03926409804 | E19: =LN('page 252'!E10/'page 252'!E9) -> -0.04058316003 | F19: =LN('page 252'!F10/'page 252'!F9) -> 0.006989297868 | G19: =LN('page 252'!G10/'page 252'!G9) -> -0.04142987317 | H19: =LN('page 252'!H10/'page 252'!H9) -> 0.02595903917 | I19: =LN('page 252'!I10/'page 252'!I9) -> -0.03660598499 | J19: =LN('page 252'!J10/'page 252'!J9) -> -0.07234361868 | K19: =LN('page 252'!K10/'page 252'!K9) -> 0.00851861933 | L19: =LN('page 252'!L10/'page 252'!L9) -> -0.01797693082
A20: 2007-07-02 | B20: =LN('page 252'!B11/'page 252'!B10) -> -0.0584934465 | C20: =LN('page 252'!C11/'page 252'!C10) -> -0.1011002046 | D20: =LN('page 252'!D11/'page 252'!D10) -> -0.02230032094 | E20: =LN('page 252'!E11/'page 252'!E10) -> -0.01655417788 | F20: =LN('page 252'!F11/'page 252'!F10) -> 0.07663322602 | G20: =LN('page 252'!G11/'page 252'!G10) -> 0.0004405286415 | H20: =LN('page 252'!H11/'page 252'!H10) -> 0.01242252 | I20: =LN('page 252'!I11/'page 252'!I10) -> -0.03061344334 | J20: =LN('page 252'!J11/'page 252'!J10) -> -0.08387531421 | K20: =LN('page 252'!K11/'page 252'!K10) -> 0.01486576084 | L20: =LN('page 252'!L11/'page 252'!L10) -> -0.03250450084
A21: 2007-08-01 | B21: =LN('page 252'!B12/'page 252'!B11) -> 0.02825858532 | C21: =LN('page 252'!C12/'page 252'!C11) -> -0.03724583382 | D21: =LN('page 252'!D12/'page 252'!D11) -> 0.08653375216 | E21: =LN('page 252'!E12/'page 252'!E11) -> -0.005325231299 | F21: =LN('page 252'!F12/'page 252'!F11) -> 0.049743825 | G21: =LN('page 252'!G12/'page 252'!G11) -> 0.0641806064 | H21: =LN('page 252'!H12/'page 252'!H11) -> 0.002773926883 | I21: =LN('page 252'!I12/'page 252'!I11) -> 0.06655357546 | J21: =LN('page 252'!J12/'page 252'!J11) -> 0.06695106754 | K21: =LN('page 252'!K12/'page 252'!K11) -> 0.0109091991 | L21: =LN('page 252'!L12/'page 252'!L11) -> 0.01278155907
A22: 2007-09-04 | B22: =LN('page 252'!B13/'page 252'!B12) -> 0.1007691176 | C22: =LN('page 252'!C13/'page 252'!C12) -> 0.1145296029 | D22: =LN('page 252'!D13/'page 252'!D12) -> 0.1685525637 | E22: =LN('page 252'!E13/'page 252'!E12) -> 0.02486003732 | F22: =LN('page 252'!F13/'page 252'!F12) -> 0.1027791973 | G22: =LN('page 252'!G13/'page 252'!G12) -> 0.01922742809 | H22: =LN('page 252'!H13/'page 252'!H12) -> 0.0698338023 | I22: =LN('page 252'!I13/'page 252'!I12) -> 0.004430667416 | J22: =LN('page 252'!J13/'page 252'!J12) -> -0.0167050202 | K22: =LN('page 252'!K13/'page 252'!K12) -> 0.07667875056 | L22: =LN('page 252'!L13/'page 252'!L12) -> 0.03516828364
A23: 2007-10-01 | B23: =LN('page 252'!B14/'page 252'!B13) -> 0.09251145295 | C23: =LN('page 252'!C14/'page 252'!C13) -> 0.0183258857 | D23: =LN('page 252'!D14/'page 252'!D13) -> 0.02013395674 | E23: =LN('page 252'!E14/'page 252'!E13) -> 0.222845888 | F23: =LN('page 252'!F14/'page 252'!F13) -> 0.2132557714 | G23: =LN('page 252'!G14/'page 252'!G13) -> -0.05904311374 | H23: =LN('page 252'!H14/'page 252'!H13) -> -0.00604579357 | I23: =LN('page 252'!I14/'page 252'!I13) -> -0.04037079954 | J23: =LN('page 252'!J14/'page 252'!J13) -> 0.007121088078 | K23: =LN('page 252'!K14/'page 252'!K13) -> -0.006119896703 | L23: =LN('page 252'!L14/'page 252'!L13) -> 0.01471355779
A24: 2007-11-01 | B24: =LN('page 252'!B15/'page 252'!B14) -> 0.004272680806 | C24: =LN('page 252'!C15/'page 252'!C14) -> -0.09731160177 | D24: =LN('page 252'!D15/'page 252'!D14) -> -0.07533967238 | E24: =LN('page 252'!E15/'page 252'!E14) -> -0.08801325899 | F24: =LN('page 252'!F15/'page 252'!F14) -> -0.04154613135 | G24: =LN('page 252'!G15/'page 252'!G14) -> 0.02922698504 | H24: =LN('page 252'!H15/'page 252'!H14) -> -0.07213298067 | I24: =LN('page 252'!I15/'page 252'!I14) -> -0.04543561285 | J24: =LN('page 252'!J15/'page 252'!J14) -> -0.02255349312 | K24: =LN('page 252'!K15/'page 252'!K14) -> -0.02745581526 | L24: =LN('page 252'!L15/'page 252'!L14) -> -0.04504278937
A25: 2007-12-03 | B25: =LN('page 252'!B16/'page 252'!B15) -> 0.007529719908 | C25: =LN('page 252'!C16/'page 252'!C15) -> 0.2131932205 | D25: =LN('page 252'!D16/'page 252'!D15) -> 0.04671950865 | E25: =LN('page 252'!E16/'page 252'!E15) -> 0.05779034821 | F25: =LN('page 252'!F16/'page 252'!F15) -> 0.08345624121 | G25: =LN('page 252'!G16/'page 252'!G15) -> -0.03030213835 | H25: =LN('page 252'!H16/'page 252'!H15) -> -0.02387048012 | I25: =LN('page 252'!I16/'page 252'!I15) -> -0.09731121715 | J25: =LN('page 252'!J16/'page 252'!J15) -> -0.04452245643 | K25: =LN('page 252'!K16/'page 252'!K15) -> 0.04959694114 | L25: =LN('page 252'!L16/'page 252'!L15) -> -0.008665929805
A26: 2008-01-02 | B26: =LN('page 252'!B17/'page 252'!B16) -> -0.09475253574 | C26: =LN('page 252'!C17/'page 252'!C16) -> -0.1704694902 | D26: =LN('page 252'!D17/'page 252'!D16) -> -0.1528034247 | E26: =LN('page 252'!E17/'page 252'!E16) -> -0.08815571751 | F26: =LN('page 252'!F17/'page 252'!F16) -> -0.3807330936 | G26: =LN('page 252'!G17/'page 252'!G16) -> -0.0923455597 | H26: =LN('page 252'!H17/'page 252'!H16) -> -0.04718623818 | I26: =LN('page 252'!I17/'page 252'!I16) -> 0.06773555543 | J26: =LN('page 252'!J17/'page 252'!J16) -> 0.02726712634 | K26: =LN('page 252'!K17/'page 252'!K16) -> -0.08908986751 | L26: =LN('page 252'!L17/'page 252'!L16) -> -0.0631139096
A27: 2008-02-01 | B27: =LN('page 252'!B18/'page 252'!B17) -> 0.01656743357 | C27: =LN('page 252'!C18/'page 252'!C17) -> 0.06420055727 | D27: =LN('page 252'!D18/'page 252'!D17) -> 0.1354648975 | E27: =LN('page 252'!E18/'page 252'!E17) -> -0.1769739505 | F27: =LN('page 252'!F18/'page 252'!F17) -> -0.07946417135 | G27: =LN('page 252'!G18/'page 252'!G17) -> 0.06530509841 | H27: =LN('page 252'!H18/'page 252'!H17) -> -0.05584598772 | I27: =LN('page 252'!I18/'page 252'!I17) -> -0.1053329519 | J27: =LN('page 252'!J18/'page 252'!J17) -> -0.03324703 | K27: =LN('page 252'!K18/'page 252'!K17) -> 0.0194997576 | L27: =LN('page 252'!L18/'page 252'!L17) -> -0.03537970784
A28: 2008-03-03 | B28: =LN('page 252'!B19/'page 252'!B18) -> 0.03031776653 | C28: =LN('page 252'!C19/'page 252'!C18) -> 0.1569211617 | D28: =LN('page 252'!D19/'page 252'!D18) -> 0.07827748215 | E28: =LN('page 252'!E19/'page 252'!E18) -> 0.04229291219 | F28: =LN('page 252'!F19/'page 252'!F18) -> 0.1378613107 | G28: =LN('page 252'!G19/'page 252'!G18) -> 0.03560949402 | H28: =LN('page 252'!H19/'page 252'!H18) -> 0.110316502 | I28: =LN('page 252'!I19/'page 252'!I18) -> -0.03050467391 | J28: =LN('page 252'!J19/'page 252'!J18) -> -0.06243241629 | K28: =LN('page 252'!K19/'page 252'!K18) -> -0.02841973143 | L28: =LN('page 252'!L19/'page 252'!L18) -> -0.005977412241
A29: 2008-04-01 | B29: =LN('page 252'!B20/'page 252'!B19) -> 0.06597514004 | C29: =LN('page 252'!C20/'page 252'!C19) -> 0.1934486698 | D29: =LN('page 252'!D20/'page 252'!D19) -> 0.08540185553 | E29: =LN('page 252'!E20/'page 252'!E19) -> 0.004972280277 | F29: =LN('page 252'!F20/'page 252'!F19) -> 0.1924328664 | G29: =LN('page 252'!G20/'page 252'!G19) -> -0.02680662027 | H29: =LN('page 252'!H20/'page 252'!H19) -> -0.1237966635 | I29: =LN('page 252'!I20/'page 252'!I19) -> -0.009708814127 | J29: =LN('page 252'!J20/'page 252'!J19) -> -0.04026594872 | K29: =LN('page 252'!K20/'page 252'!K19) -> 0.09565246165 | L29: =LN('page 252'!L20/'page 252'!L19) -> 0.04645093966
A30: 2008-05-01 | B30: =LN('page 252'!B21/'page 252'!B20) -> -0.004354005932 | C30: =LN('page 252'!C21/'page 252'!C20) -> 0.1164718155 | D30: =LN('page 252'!D21/'page 252'!D20) -> 0.1087861364 | E30: =LN('page 252'!E21/'page 252'!E20) -> -0.003439712927 | F30: =LN('page 252'!F21/'page 252'!F20) -> 0.08165548653 | G30: =LN('page 252'!G21/'page 252'!G20) -> 0.0186677876 | H30: =LN('page 252'!H21/'page 252'!H20) -> -0.06225541512 | I30: =LN('page 252'!I21/'page 252'!I20) -> -0.09884583464 | J30: =LN('page 252'!J21/'page 252'!J20) -> -0.02199233413 | K30: =LN('page 252'!K21/'page 252'!K20) -> -0.04291883379 | L30: =LN('page 252'!L21/'page 252'!L20) -> 0.01061758665
A31: 2008-06-02 | B31: =LN('page 252'!B22/'page 252'!B21) -> -0.04719780715 | C31: =LN('page 252'!C22/'page 252'!C21) -> 0.06754428601 | D31: =LN('page 252'!D22/'page 252'!D21) -> 0.001118568349 | E31: =LN('page 252'!E22/'page 252'!E21) -> -0.02873984212 | F31: =LN('page 252'!F22/'page 252'!F21) -> -0.11979831 | G31: =LN('page 252'!G22/'page 252'!G21) -> -0.07616136097 | H31: =LN('page 252'!H22/'page 252'!H21) -> -0.1296836708 | I31: =LN('page 252'!I22/'page 252'!I21) -> -0.3346999721 | J31: =LN('page 252'!J22/'page 252'!J21) -> -0.1026875419 | K31: =LN('page 252'!K22/'page 252'!K21) -> -0.007170261898 | L31: =LN('page 252'!L22/'page 252'!L21) -> -0.08988355043
A32: 2008-07-01 | B32: =LN('page 252'!B23/'page 252'!B22) -> 0.06151336524 | C32: =LN('page 252'!C23/'page 252'!C22) -> -0.141790685 | D32: =LN('page 252'!D23/'page 252'!D22) -> -0.1251184262 | E32: =LN('page 252'!E23/'page 252'!E22) -> -0.06764288816 | F32: =LN('page 252'!F23/'page 252'!F22) -> -0.05203539078 | G32: =LN('page 252'!G23/'page 252'!G22) -> 0.09996188943 | H32: =LN('page 252'!H23/'page 252'!H22) -> 0.05840769326 | I32: =LN('page 252'!I23/'page 252'!I22) -> 0.3209858359 | J32: =LN('page 252'!J23/'page 252'!J22) -> 0.06620550876 | K32: =LN('page 252'!K23/'page 252'!K22) -> -0.09139724978 | L32: =LN('page 252'!L23/'page 252'!L22) -> -0.009908300486
A33: 2008-08-01 | B33: =LN('page 252'!B24/'page 252'!B23) -> 0.0424738929 | C33: =LN('page 252'!C24/'page 252'!C23) -> -0.1843521719 | D33: =LN('page 252'!D24/'page 252'!D23) -> -0.1060223617 | E33: =LN('page 252'!E24/'page 252'!E23) -> 0.06329934727 | F33: =LN('page 252'!F24/'page 252'!F23) -> 0.06444021495 | G33: =LN('page 252'!G24/'page 252'!G23) -> 0.03182744364 | H33: =LN('page 252'!H24/'page 252'!H23) -> -0.006962960755 | I33: =LN('page 252'!I24/'page 252'!I23) -> -0.05478109908 | J33: =LN('page 252'!J24/'page 252'!J23) -> 0.04018117425 | K33: =LN('page 252'!K24/'page 252'!K23) -> -0.0001359526887 | L33: =LN('page 252'!L24/'page 252'!L23) -> 0.01211679746
A34: 2008-09-02 | B34: =LN('page 252'!B25/'page 252'!B24) -> -0.004851325659 | C34: =LN('page 252'!C25/'page 252'!C24) -> -0.539162976 | D34: =LN('page 252'!D25/'page 252'!D24) -> -0.4603308826 | E34: =LN('page 252'!E25/'page 252'!E24) -> -0.02200528881 | F34: =LN('page 252'!F25/'page 252'!F24) -> -0.3998183664 | G34: =LN('page 252'!G25/'page 252'!G24) -> 0.03005635988 | H34: =LN('page 252'!H25/'page 252'!H24) -> -0.08354245391 | I34: =LN('page 252'!I25/'page 252'!I24) -> 0.1364528334 | J34: =LN('page 252'!J25/'page 252'!J24) -> -0.03570689385 | K34: =LN('page 252'!K25/'page 252'!K24) -> -0.02980764353 | L34: =LN('page 252'!L25/'page 252'!L24) -> -0.09518078677
A35: 2008-10-01 | B35: =LN('page 252'!B26/'page 252'!B25) -> -0.06300271742 | C35: =LN('page 252'!C26/'page 252'!C25) -> -0.743963904 | D35: =LN('page 252'!D26/'page 252'!D25) -> -0.6316825755 | E35: =LN('page 252'!E26/'page 252'!E25) -> -0.1784455829 | F35: =LN('page 252'!F26/'page 252'!F25) -> -0.05488382926 | G35: =LN('page 252'!G26/'page 252'!G25) -> -0.1067651952 | H35: =LN('page 252'!H26/'page 252'!H25) -> -0.2679203322 | I35: =LN('page 252'!I26/'page 252'!I25) -> -0.3699962739 | J35: =LN('page 252'!J26/'page 252'!J25) -> -0.04034379255 | K35: =LN('page 252'!K26/'page 252'!K25) -> -0.04659339128 | L35: =LN('page 252'!L26/'page 252'!L25) -> -0.1856364864
A36: 2008-11-03 | B36: =LN('page 252'!B27/'page 252'!B26) -> 0.02275842583 | C36: =LN('page 252'!C27/'page 252'!C26) -> -0.1837800189 | D36: =LN('page 252'!D27/'page 252'!D26) -> -0.1034032943 | E36: =LN('page 252'!E27/'page 252'!E26) -> -0.09265413575 | F36: =LN('page 252'!F27/'page 252'!F26) -> -0.149282911 | G36: =LN('page 252'!G27/'page 252'!G26) -> -0.1491846286 | H36: =LN('page 252'!H27/'page 252'!H26) -> -0.1275413581 | I36: =LN('page 252'!I27/'page 252'!I26) -> -0.3971450601 | J36: =LN('page 252'!J27/'page 252'!J26) -> -0.05809628026 | K36: =LN('page 252'!K27/'page 252'!K26) -> 0.08385112007 | L36: =LN('page 252'!L27/'page 252'!L26) -> -0.07779834642
A37: 2008-12-01 | B37: =LN('page 252'!B28/'page 252'!B27) -> 0.05703339821 | C37: =LN('page 252'!C28/'page 252'!C27) -> 0.2018335575 | D37: =LN('page 252'!D28/'page 252'!D27) -> 0.05700321868 | E37: =LN('page 252'!E28/'page 252'!E27) -> -0.03894488913 | F37: =LN('page 252'!F28/'page 252'!F27) -> -0.08228434636 | G37: =LN('page 252'!G28/'page 252'!G27) -> 0.01744009829 | H37: =LN('page 252'!H28/'page 252'!H27) -> -0.03924725631 | I37: =LN('page 252'!I28/'page 252'!I27) -> -0.1211347266 | J37: =LN('page 252'!J28/'page 252'!J27) -> 0.0752132222 | K37: =LN('page 252'!K28/'page 252'!K27) -> -0.00392130852 | L37: =LN('page 252'!L28/'page 252'!L27) -> 0.007791135777
A38: 2009-01-02 | B38: =LN('page 252'!B29/'page 252'!B28) -> -0.06948638933 | C38: =LN('page 252'!C29/'page 252'!C28) -> -0.2143739692 | D38: =LN('page 252'!D29/'page 252'!D28) -> -0.08581276723 | E38: =LN('page 252'!E29/'page 252'!E28) -> -0.1287363514 | F38: =LN('page 252'!F29/'page 252'!F28) -> 0.05449262333 | G38: =LN('page 252'!G29/'page 252'!G28) -> -0.003514059841 | H38: =LN('page 252'!H29/'page 252'!H28) -> -0.2892936763 | I38: =LN('page 252'!I29/'page 252'!I28) -> -0.7600866632 | J38: =LN('page 252'!J29/'page 252'!J28) -> -0.1946690143 | K38: =LN('page 252'!K29/'page 252'!K28) -> -0.04290721817 | L38: =LN('page 252'!L29/'page 252'!L28) -> -0.08954988551
A39: 2009-02-02 | B39: =LN('page 252'!B30/'page 252'!B29) -> -0.09555703009 | C39: =LN('page 252'!C30/'page 252'!C29) -> -0.4140282706 | D39: =LN('page 252'!D30/'page 252'!D29) -> -0.1468304689 | E39: =LN('page 252'!E30/'page 252'!E29) -> -0.05017129315 | F39: =LN('page 252'!F30/'page 252'!F29) -> -0.009139608873 | G39: =LN('page 252'!G30/'page 252'!G29) -> -0.1068423495 | H39: =LN('page 252'!H30/'page 252'!H29) -> -0.3249262456 | I39: =LN('page 252'!I30/'page 252'!I29) -> -0.5108256238 | J39: =LN('page 252'!J30/'page 252'!J29) -> -0.1475639085 | K39: =LN('page 252'!K30/'page 252'!K29) -> -0.1140247272 | L39: =LN('page 252'!L30/'page 252'!L29) -> -0.1164565438
A40: 2009-03-02 | B40: =LN('page 252'!B31/'page 252'!B30) -> 0.04353400202 | C40: =LN('page 252'!C31/'page 252'!C30) -> 0.07119203394 | D40: =LN('page 252'!D31/'page 252'!D30) -> 0.03650636929 | E40: =LN('page 252'!E31/'page 252'!E30) -> 0.1291517633 | F40: =LN('page 252'!F31/'page 252'!F30) -> 0.162989091 | G40: =LN('page 252'!G31/'page 252'!G30) -> -0.06055467463 | H40: =LN('page 252'!H31/'page 252'!H30) -> 0.1718502569 | I40: =LN('page 252'!I31/'page 252'!I30) -> 0.5485659517 | J40: =LN('page 252'!J31/'page 252'!J30) -> 0.1013081985 | K40: =LN('page 252'!K31/'page 252'!K30) -> 0.003007045077 | L40: =LN('page 252'!L31/'page 252'!L30) -> 0.08195273621
A41: 2009-04-01 | B41: =LN('page 252'!B32/'page 252'!B31) -> -0.02367812735 | C41: =LN('page 252'!C32/'page 252'!C31) -> 0.2284155501 | D41: =LN('page 252'!D32/'page 252'!D31) -> 0.1625991831 | E41: =LN('page 252'!E32/'page 252'!E31) -> 0.09767891364 | F41: =LN('page 252'!F32/'page 252'!F31) -> 0.1798292349 | G41: =LN('page 252'!G32/'page 252'!G31) -> 0.1393482705 | H41: =LN('page 252'!H32/'page 252'!H31) -> 0.2242170887 | I41: =LN('page 252'!I32/'page 252'!I31) -> 0.2697443718 | J41: =LN('page 252'!J32/'page 252'!J31) -> -0.01928780967 | K41: =LN('page 252'!K32/'page 252'!K31) -> -0.02124171538 | L41: =LN('page 252'!L32/'page 252'!L31) -> 0.08977221492
A42: 2009-05-01 | B42: =LN('page 252'!B33/'page 252'!B32) -> 0.101564666 | C42: =LN('page 252'!C33/'page 252'!C32) -> 0.2515693352 | D42: =LN('page 252'!D33/'page 252'!D32) -> 0.3475841799 | E42: =LN('page 252'!E33/'page 252'!E32) -> 0.03715597689 | F42: =LN('page 252'!F33/'page 252'!F32) -> 0.07632506051 | G42: =LN('page 252'!G33/'page 252'!G32) -> 0.03456506739 | H42: =LN('page 252'!H33/'page 252'!H32) -> 0.0631964192 | I42: =LN('page 252'!I33/'page 252'!I32) -> 0.2330490803 | J42: =LN('page 252'!J33/'page 252'!J32) -> 0.1396514919 | K42: =LN('page 252'!K33/'page 252'!K32) -> 0.04544085111 | L42: =LN('page 252'!L33/'page 252'!L32) -> 0.05172055842
A43: 2009-06-01 | B43: =LN('page 252'!B34/'page 252'!B33) -> -0.01754430965 | C43: =LN('page 252'!C34/'page 252'!C33) -> 0.04733065122 | D43: =LN('page 252'!D34/'page 252'!D33) -> -0.002895289138 | E43: =LN('page 252'!E34/'page 252'!E33) -> 0.1290889153 | F43: =LN('page 252'!F34/'page 252'!F33) -> 0.04759380083 | G43: =LN('page 252'!G34/'page 252'!G33) -> 0.07389382411 | H43: =LN('page 252'!H34/'page 252'!H33) -> -0.1315763578 | I43: =LN('page 252'!I34/'page 252'!I33) -> 0.1587483891 | J43: =LN('page 252'!J34/'page 252'!J33) -> -0.01259742484 | K43: =LN('page 252'!K34/'page 252'!K33) -> 0.007988980883 | L43: =LN('page 252'!L34/'page 252'!L33) -> 0.0001958160641
A44: 2009-07-01 | B44: =LN('page 252'!B35/'page 252'!B34) -> -0.04328847444 | C44: =LN('page 252'!C35/'page 252'!C34) -> 0.1064376438 | D44: =LN('page 252'!D35/'page 252'!D34) -> 0.08577564816 | E44: =LN('page 252'!E35/'page 252'!E34) -> -0.0107431651 | F44: =LN('page 252'!F35/'page 252'!F34) -> 0.1372893301 | G44: =LN('page 252'!G35/'page 252'!G34) -> 0.01975713243 | H44: =LN('page 252'!H35/'page 252'!H34) -> 0.1339908459 | I44: =LN('page 252'!I35/'page 252'!I34) -> 0.1140383504 | J44: =LN('page 252'!J35/'page 252'!J34) -> 0.06005420869 | K44: =LN('page 252'!K35/'page 252'!K34) -> 0.006862398261 | L44: =LN('page 252'!L35/'page 252'!L34) -> 0.07152197709
A45: 2009-08-03 | B45: =LN('page 252'!B36/'page 252'!B35) -> 0.03002065282 | C45: =LN('page 252'!C36/'page 252'!C35) -> 0.097579172 | D45: =LN('page 252'!D36/'page 252'!D35) -> -0.006228701733 | E45: =LN('page 252'!E36/'page 252'!E35) -> 0.05259757396 | F45: =LN('page 252'!F36/'page 252'!F35) -> 0.02907321776 | G45: =LN('page 252'!G36/'page 252'!G35) -> -0.0006826715477 | H45: =LN('page 252'!H36/'page 252'!H35) -> 0.03631022406 | I45: =LN('page 252'!I36/'page 252'!I35) -> 0.1730701631 | J45: =LN('page 252'!J36/'page 252'!J35) -> 0.0573144566 | K45: =LN('page 252'!K36/'page 252'!K35) -> -0.01177113645 | L45: =LN('page 252'!L36/'page 252'!L35) -> 0.03300932135
A46: 2009-09-01 | B46: =LN('page 252'!B37/'page 252'!B36) -> 0.01477299594 | C46: =LN('page 252'!C37/'page 252'!C36) -> 0.01355252166 | D46: =LN('page 252'!D37/'page 252'!D36) -> 0.04138119547 | E46: =LN('page 252'!E37/'page 252'!E36) -> 0.04263077613 | F46: =LN('page 252'!F37/'page 252'!F36) -> 0.09703273079 | G46: =LN('page 252'!G37/'page 252'!G36) -> 0.04452104035 | H46: =LN('page 252'!H37/'page 252'!H36) -> 0.1725843815 | I46: =LN('page 252'!I37/'page 252'!I36) -> -0.03800515849 | J46: =LN('page 252'!J37/'page 252'!J36) -> -0.009327182875 | K46: =LN('page 252'!K37/'page 252'!K36) -> -0.007718469933 | L46: =LN('page 252'!L37/'page 252'!L36) -> 0.03510010416
A47: 2009-10-01 | B47: =LN('page 252'!B38/'page 252'!B37) -> 0.02652970729 | C47: =LN('page 252'!C38/'page 252'!C37) -> -0.2519012828 | D47: =LN('page 252'!D38/'page 252'!D37) -> -0.08766038209 | E47: =LN('page 252'!E38/'page 252'!E37) -> 0.07486756201 | F47: =LN('page 252'!F38/'page 252'!F37) -> 0.01685207729 | G47: =LN('page 252'!G38/'page 252'!G37) -> 0.04595575695 | H47: =LN('page 252'!H38/'page 252'!H37) -> -0.1405450278 | I47: =LN('page 252'!I38/'page 252'!I37) -> -0.1488014843 | J47: =LN('page 252'!J38/'page 252'!J37) -> 0.02837537785 | K47: =LN('page 252'!K38/'page 252'!K37) -> 0.04351478597 | L47: =LN('page 252'!L38/'page 252'!L37) -> -0.01995986522
A48: 2009-11-02 | B48: =LN('page 252'!B39/'page 252'!B38) -> 0.08473550709 | C48: =LN('page 252'!C39/'page 252'!C38) -> 0.2596285939 | D48: =LN('page 252'!D39/'page 252'!D38) -> 0.1485704328 | E48: =LN('page 252'!E39/'page 252'!E38) -> 0.06325637836 | F48: =LN('page 252'!F39/'page 252'!F38) -> 0.05876925838 | G48: =LN('page 252'!G39/'page 252'!G38) -> 0.02707857757 | H48: =LN('page 252'!H39/'page 252'!H38) -> 0.1161133074 | I48: =LN('page 252'!I39/'page 252'!I38) -> 0.08354757027 | J48: =LN('page 252'!J39/'page 252'!J38) -> 0.07457259141 | K48: =LN('page 252'!K39/'page 252'!K38) -> 0.05217569428 | L48: =LN('page 252'!L39/'page 252'!L38) -> 0.05577901558
A49: 2009-12-01 | B49: =LN('page 252'!B40/'page 252'!B39) -> -0.01286626857 | C49: =LN('page 252'!C40/'page 252'!C39) -> 0.2105217812 | D49: =LN('page 252'!D40/'page 252'!D39) -> 0.15265307 | E49: =LN('page 252'!E40/'page 252'!E39) -> 0.03604939783 | F49: =LN('page 252'!F40/'page 252'!F39) -> 0.05271042794 | G49: =LN('page 252'!G40/'page 252'!G39) -> 0.01167015257 | H49: =LN('page 252'!H40/'page 252'!H39) -> -0.05073054817 | I49: =LN('page 252'!I40/'page 252'!I39) -> -0.0508916073 | J49: =LN('page 252'!J40/'page 252'!J39) -> 0.00120700075 | K49: =LN('page 252'!K40/'page 252'!K39) -> -0.09615548839 | L49: =LN('page 252'!L40/'page 252'!L39) -> 0.0176145467
A50: 2010-01-04 | B50: =LN('page 252'!B41/'page 252'!B40) -> -0.0001704012955 | C50: =LN('page 252'!C41/'page 252'!C40) -> -0.2155149827 | D50: =LN('page 252'!D41/'page 252'!D40) -> -0.1678089758 | E50: =LN('page 252'!E41/'page 252'!E40) -> -0.07864000223 | F50: =LN('page 252'!F41/'page 252'!F40) -> -0.09276987 | G50: =LN('page 252'!G41/'page 252'!G40) -> 0.02274398444 | H50: =LN('page 252'!H41/'page 252'!H40) -> 0.06070735191 | I50: =LN('page 252'!I41/'page 252'!I40) -> 0.008000042667 | J50: =LN('page 252'!J41/'page 252'!J40) -> 0.0256042567 | K50: =LN('page 252'!K41/'page 252'!K40) -> -0.05661136787 | L50: =LN('page 252'!L41/'page 252'!L40) -> -0.03767514106
A51: 2010-02-01 | B51: =LN('page 252'!B42/'page 252'!B41) -> 0.03104015663 | C51: =LN('page 252'!C42/'page 252'!C41) -> 0.1762355738 | D51: =LN('page 252'!D42/'page 252'!D41) -> -0.007390207441 | E51: =LN('page 252'!E42/'page 252'!E41) -> 0.0220678319 | F51: =LN('page 252'!F42/'page 252'!F41) -> 0.06334677724 | G51: =LN('page 252'!G42/'page 252'!G41) -> -0.03542659027 | H51: =LN('page 252'!H42/'page 252'!H41) -> 0.005280540323 | I51: =LN('page 252'!I42/'page 252'!I41) -> 0.09313468946 | J51: =LN('page 252'!J42/'page 252'!J41) -> -0.05188135674 | K51: =LN('page 252'!K42/'page 252'!K41) -> 0.01530475982 | L51: =LN('page 252'!L42/'page 252'!L41) -> 0.02811474404
A52: 2010-03-01 | B52: =LN('page 252'!B43/'page 252'!B42) -> 0.0439560177 | C52: =LN('page 252'!C43/'page 252'!C42) -> 0.1822579658 | D52: =LN('page 252'!D43/'page 252'!D42) -> 0.1388059194 | E52: =LN('page 252'!E43/'page 252'!E42) -> 0.02123527698 | F52: =LN('page 252'!F43/'page 252'!F42) -> 0.1384309137 | G52: =LN('page 252'!G43/'page 252'!G42) -> 0.02421813549 | H52: =LN('page 252'!H43/'page 252'!H42) -> 0.1248532936 | I52: =LN('page 252'!I43/'page 252'!I42) -> 0.06951703334 | J52: =LN('page 252'!J43/'page 252'!J42) -> -0.02317673425 | K52: =LN('page 252'!K43/'page 252'!K42) -> 0.02992424458 | L52: =LN('page 252'!L43/'page 252'!L42) -> 0.05713276065
A53: 2010-04-01 | B53: =LN('page 252'!B44/'page 252'!B43) -> 0.05640274851 | C53: =LN('page 252'!C44/'page 252'!C43) -> -0.1503423604 | D53: =LN('page 252'!D44/'page 252'!D43) -> -0.1227270882 | E53: =LN('page 252'!E44/'page 252'!E43) -> 0.04184710994 | F53: =LN('page 252'!F44/'page 252'!F43) -> 0.1052796613 | G53: =LN('page 252'!G44/'page 252'!G43) -> 0.02788520349 | H53: =LN('page 252'!H44/'page 252'!H43) -> 0.03595251693 | I53: =LN('page 252'!I44/'page 252'!I43) -> -0.001129305597 | J53: =LN('page 252'!J44/'page 252'!J43) -> -0.02567535134 | K53: =LN('page 252'!K44/'page 252'!K43) -> 0.01169239293 | L53: =LN('page 252'!L44/'page 252'!L43) -> 0.01465146831
A54: 2010-05-03 | B54: =LN('page 252'!B45/'page 252'!B44) -> -0.04586557466 | C54: =LN('page 252'!C45/'page 252'!C44) -> -0.1455342984 | D54: =LN('page 252'!D45/'page 252'!D44) -> -0.2409408913 | E54: =LN('page 252'!E45/'page 252'!E44) -> -0.1640469366 | F54: =LN('page 252'!F45/'page 252'!F44) -> -0.01625612569 | G54: =LN('page 252'!G45/'page 252'!G44) -> -0.02079157768 | H54: =LN('page 252'!H45/'page 252'!H44) -> -0.143187084 | I54: =LN('page 252'!I45/'page 252'!I44) -> -0.1243724951 | J54: =LN('page 252'!J45/'page 252'!J44) -> -0.08264687581 | K54: =LN('page 252'!K45/'page 252'!K44) -> -0.1072221358 | L54: =LN('page 252'!L45/'page 252'!L44) -> -0.08553165363
A55: 2010-06-01 | B55: =LN('page 252'!B46/'page 252'!B45) -> -0.01497387896 | C55: =LN('page 252'!C46/'page 252'!C45) -> -0.2025722434 | D55: =LN('page 252'!D46/'page 252'!D45) -> -0.125163143 | E55: =LN('page 252'!E46/'page 252'!E45) -> -0.1145688907 | F55: =LN('page 252'!F46/'page 252'!F45) -> -0.02104678306 | G55: =LN('page 252'!G46/'page 252'!G45) -> -0.06029333957 | H55: =LN('page 252'!H46/'page 252'!H45) -> -0.1194014209 | I55: =LN('page 252'!I46/'page 252'!I45) -> -0.09033218752 | J55: =LN('page 252'!J46/'page 252'!J45) -> -0.06566910351 | K55: =LN('page 252'!K46/'page 252'!K45) -> -0.05770660938 | L55: =LN('page 252'!L46/'page 252'!L45) -> -0.05538838013
A56: 2010-07-01 | B56: =LN('page 252'!B47/'page 252'!B46) -> 0.05694665038 | C56: =LN('page 252'!C47/'page 252'!C46) -> 0.1397278055 | D56: =LN('page 252'!D47/'page 252'!D46) -> 0.1374709906 | E56: =LN('page 252'!E47/'page 252'!E46) -> 0.1149712242 | F56: =LN('page 252'!F47/'page 252'!F46) -> 0.02248610799 | G56: =LN('page 252'!G47/'page 252'!G46) -> -0.005017781801 | H56: =LN('page 252'!H47/'page 252'!H46) -> 0.1116091736 | I56: =LN('page 252'!I47/'page 252'!I46) -> -0.02338044864 | J56: =LN('page 252'!J47/'page 252'!J46) -> 0.05072752351 | K56: =LN('page 252'!K47/'page 252'!K46) -> 0.0446822002 | L56: =LN('page 252'!L47/'page 252'!L46) -> 0.06651578327
A57: 2010-08-02 | B57: =LN('page 252'!B48/'page 252'!B47) -> 0.05401984699 | C57: =LN('page 252'!C48/'page 252'!C47) -> -0.04135316272 | D57: =LN('page 252'!D48/'page 252'!D47) -> -0.05123964488 | E57: =LN('page 252'!E48/'page 252'!E47) -> -0.09001449223 | F57: =LN('page 252'!F48/'page 252'!F47) -> -0.05657549339 | G57: =LN('page 252'!G48/'page 252'!G47) -> 0.0006286013827 | H57: =LN('page 252'!H48/'page 252'!H47) -> -0.1072455304 | I57: =LN('page 252'!I48/'page 252'!I47) -> -0.119397241 | J57: =LN('page 252'!J48/'page 252'!J47) -> 0.06990046428 | K57: =LN('page 252'!K48/'page 252'!K47) -> -0.002450123732 | L57: =LN('page 252'!L48/'page 252'!L47) -> -0.04861180317
A58: 2010-09-01 | B58: =LN('page 252'!B49/'page 252'!B48) -> 0.01970229788 | C58: =LN('page 252'!C49/'page 252'!C48) -> 0.03128903386 | D58: =LN('page 252'!D49/'page 252'!D48) -> 0.1290057884 | E58: =LN('page 252'!E49/'page 252'!E48) -> 0.04265130622 | F58: =LN('page 252'!F49/'page 252'!F48) -> 0.1546206875 | G58: =LN('page 252'!G49/'page 252'!G48) -> 0.01641254251 | H58: =LN('page 252'!H49/'page 252'!H48) -> 0.1227697749 | I58: =LN('page 252'!I49/'page 252'!I48) -> 0.05117212388 | J58: =LN('page 252'!J49/'page 252'!J48) -> 0.0759206903 | K58: =LN('page 252'!K49/'page 252'!K48) -> 0.044215564 | L58: =LN('page 252'!L49/'page 252'!L48) -> 0.0839284751
A59: 2010-10-01 | B59: =LN('page 252'!B50/'page 252'!B49) -> 0.04282667277 | C59: =LN('page 252'!C50/'page 252'!C49) -> -0.02584845273 | D59: =LN('page 252'!D50/'page 252'!D49) -> -0.01808138079 | E59: =LN('page 252'!E50/'page 252'!E49) -> 0.08525248534 | F59: =LN('page 252'!F50/'page 252'!F49) -> 0.05895024856 | G59: =LN('page 252'!G50/'page 252'!G49) -> -0.004957663532 | H59: =LN('page 252'!H50/'page 252'!H49) -> -0.01422131272 | I59: =LN('page 252'!I50/'page 252'!I49) -> -0.1345186137 | J59: =LN('page 252'!J50/'page 252'!J49) -> 0.01476041558 | K59: =LN('page 252'!K50/'page 252'!K49) -> 0.07335328678 | L59: =LN('page 252'!L50/'page 252'!L49) -> 0.03619300071
A60: 2010-11-01 | B60: =LN('page 252'!B51/'page 252'!B50) -> 0.01457944976 | C60: =LN('page 252'!C51/'page 252'!C50) -> 0.1301049109 | D60: =LN('page 252'!D51/'page 252'!D50) -> -0.01645994883 | E60: =LN('page 252'!E51/'page 252'!E50) -> -0.04799652102 | F60: =LN('page 252'!F51/'page 252'!F50) -> 0.03323129366 | G60: =LN('page 252'!G51/'page 252'!G50) -> -0.01229310199 | H60: =LN('page 252'!H51/'page 252'!H50) -> -0.01178795575 | I60: =LN('page 252'!I51/'page 252'!I50) -> -0.04489084051 | J60: =LN('page 252'!J51/'page 252'!J50) -> -0.05651221026 | K60: =LN('page 252'!K51/'page 252'!K50) -> 0.05146464596 | L60: =LN('page 252'!L51/'page 252'!L50) -> -0.002292909487
A61: 2010-12-01 | B61: =LN('page 252'!B52/'page 252'!B51) -> -0.01979999572 | C61: =LN('page 252'!C52/'page 252'!C51) -> 0.1837703825 | D61: =LN('page 252'!D52/'page 252'!D51) -> 0.1854082297 | E61: =LN('page 252'!E52/'page 252'!E51) -> 0.09969639424 | F61: =LN('page 252'!F52/'page 252'!F51) -> 0.03601405443 | G61: =LN('page 252'!G52/'page 252'!G51) -> 0.03683923107 | H61: =LN('page 252'!H52/'page 252'!H51) -> 0.1518895144 | I61: =LN('page 252'!I52/'page 252'!I51) -> 0.1984142071 | J61: =LN('page 252'!J52/'page 252'!J51) -> 0.07165942504 | K61: =LN('page 252'!K52/'page 252'!K51) -> 0.0499310174 | L61: =LN('page 252'!L52/'page 252'!L51) -> 0.06325651722
A62: 2011-01-03 | B62: =LN('page 252'!B53/'page 252'!B52) -> -0.04109604451 | C62: =LN('page 252'!C53/'page 252'!C52) -> -0.01283625604 | D62: =LN('page 252'!D53/'page 252'!D52) -> -0.04450091711 | E62: =LN('page 252'!E53/'page 252'!E52) -> -0.00664209084 | F62: =LN('page 252'!F53/'page 252'!F52) -> 0.0506544495 | G62: =LN('page 252'!G53/'page 252'!G52) -> -0.01547577211 | H62: =LN('page 252'!H53/'page 252'!H52) -> 0.09649279043 | I62: =LN('page 252'!I53/'page 252'!I52) -> 0.02821271009 | J62: =LN('page 252'!J53/'page 252'!J52) -> 0.0394982083 | K62: =LN('page 252'!K53/'page 252'!K52) -> 0.09832569409 | L62: =LN('page 252'!L53/'page 252'!L52) -> 0.02239298526
A63: 2011-02-01 | B63: =LN('page 252'!B54/'page 252'!B53) -> 0.03503827543 | C63: =LN('page 252'!C54/'page 252'!C53) -> -0.002272132412 | D63: =LN('page 252'!D54/'page 252'!D53) -> 0.01040358041 | E63: =LN('page 252'!E54/'page 252'!E53) -> -0.03618939961 | F63: =LN('page 252'!F54/'page 252'!F53) -> 0.04011916596 | G63: =LN('page 252'!G54/'page 252'!G53) -> 0.07051029134 | H63: =LN('page 252'!H54/'page 252'!H53) -> 0.04471983513 | I63: =LN('page 252'!I54/'page 252'!I53) -> 0.04017757023 | J63: =LN('page 252'!J54/'page 252'!J53) -> 0.06544129271 | K63: =LN('page 252'!K54/'page 252'!K53) -> 0.063637056 | L63: =LN('page 252'!L54/'page 252'!L53) -> 0.03145659504
A64: 2011-03-01 | B64: =LN('page 252'!B55/'page 252'!B54) -> 0.005386492959 | C64: =LN('page 252'!C55/'page 252'!C54) -> -0.06375725743 | D64: =LN('page 252'!D55/'page 252'!D54) -> -0.01436846807 | E64: =LN('page 252'!E55/'page 252'!E54) -> -0.04595350033 | F64: =LN('page 252'!F55/'page 252'!F54) -> -0.01339585671 | G64: =LN('page 252'!G55/'page 252'!G54) -> 0.007810307347 | H64: =LN('page 252'!H55/'page 252'!H54) -> -0.04215375725 | I64: =LN('page 252'!I55/'page 252'!I54) -> -0.06839028033 | J64: =LN('page 252'!J55/'page 252'!J54) -> 0.05375371931 | K64: =LN('page 252'!K55/'page 252'!K54) -> -0.01653728315 | L64: =LN('page 252'!L55/'page 252'!L54) -> -0.001047850683
A65: 2011-04-01 | B65: =LN('page 252'!B56/'page 252'!B55) -> 0.02872657654 | C65: =LN('page 252'!C56/'page 252'!C55) -> -0.1226671929 | D65: =LN('page 252'!D56/'page 252'!D55) -> 0.0252184841 | E65: =LN('page 252'!E56/'page 252'!E55) -> 0.02068490615 | F65: =LN('page 252'!F56/'page 252'!F55) -> 0.004637589899 | G65: =LN('page 252'!G56/'page 252'!G55) -> 0.05912779949 | H65: =LN('page 252'!H56/'page 252'!H55) -> 0.0197925771 | I65: =LN('page 252'!I56/'page 252'!I55) -> -0.08236719435 | J65: =LN('page 252'!J56/'page 252'!J55) -> 0.03230972613 | K65: =LN('page 252'!K56/'page 252'!K55) -> 0.04474806514 | L65: =LN('page 252'!L56/'page 252'!L55) -> 0.02809691637
A66: 2011-05-02 | B66: =LN('page 252'!B57/'page 252'!B56) -> 0.04790114536 | C66: =LN('page 252'!C57/'page 252'!C56) -> -0.03300771148 | D66: =LN('page 252'!D57/'page 252'!D56) -> -0.09727669431 | E66: =LN('page 252'!E57/'page 252'!E56) -> -0.02916124348 | F66: =LN('page 252'!F57/'page 252'!F56) -> -0.006590659423 | G66: =LN('page 252'!G57/'page 252'!G56) -> 0.00232246643 | H66: =LN('page 252'!H57/'page 252'!H56) -> -0.04050797348 | I66: =LN('page 252'!I57/'page 252'!I56) -> -0.0443031079 | J66: =LN('page 252'!J57/'page 252'!J56) -> 0.03226086222 | K66: =LN('page 252'!K57/'page 252'!K56) -> -0.04694131568 | L66: =LN('page 252'!L57/'page 252'!L56) -> -0.0135928939
A67: 2011-06-01 | B67: =LN('page 252'!B58/'page 252'!B57) -> 0.0335158572 | C67: =LN('page 252'!C58/'page 252'!C57) -> -0.001526551381 | D67: =LN('page 252'!D58/'page 252'!D57) -> 0.0385871111 | E67: =LN('page 252'!E58/'page 252'!E57) -> 0.03856570151 | F67: =LN('page 252'!F58/'page 252'!F57) -> -0.03558532018 | G67: =LN('page 252'!G58/'page 252'!G57) -> -0.02970156761 | H67: =LN('page 252'!H58/'page 252'!H57) -> -0.03244102617 | I67: =LN('page 252'!I58/'page 252'!I57) -> -0.06899287149 | J67: =LN('page 252'!J58/'page 252'!J57) -> -0.04074183099 | K67: =LN('page 252'!K58/'page 252'!K57) -> -0.02532406344 | L67: =LN('page 252'!L58/'page 252'!L57) -> -0.0184262333
A68: 2011-07-01 | B68: =LN('page 252'!B59/'page 252'!B58) -> 0.02529976379 | C68: =LN('page 252'!C59/'page 252'!C58) -> -0.1408537647 | D68: =LN('page 252'!D59/'page 252'!D58) -> -0.1096734022 | E68: =LN('page 252'!E59/'page 252'!E58) -> 0.05242370048 | F68: =LN('page 252'!F59/'page 252'!F58) -> 0.1512482171 | G68: =LN('page 252'!G59/'page 252'!G58) -> 0.008238032859 | H68: =LN('page 252'!H59/'page 252'!H58) -> -0.05157782989 | I68: =LN('page 252'!I59/'page 252'!I58) -> -0.120534069 | J68: =LN('page 252'!J59/'page 252'!J58) -> -0.06788412479 | K68: =LN('page 252'!K59/'page 252'!K58) -> -0.01971005057 | L68: =LN('page 252'!L59/'page 252'!L58) -> -0.02170836744
A69: 2011-08-01 | B69: =LN('page 252'!B60/'page 252'!B59) -> 0.05121118921 | C69: =LN('page 252'!C60/'page 252'!C59) -> -0.2823362528 | D69: =LN('page 252'!D60/'page 252'!D59) -> -0.3398834181 | E69: =LN('page 252'!E60/'page 252'!E59) -> -0.02321332238 | F69: =LN('page 252'!F60/'page 252'!F59) -> -0.01457507325 | G69: =LN('page 252'!G60/'page 252'!G59) -> -0.01858550138 | H69: =LN('page 252'!H60/'page 252'!H59) -> -0.09360417996 | I69: =LN('page 252'!I60/'page 252'!I59) -> -0.172043974 | J69: =LN('page 252'!J60/'page 252'!J59) -> -0.002684565371 | K69: =LN('page 252'!K60/'page 252'!K59) -> -0.06851904147 | L69: =LN('page 252'!L60/'page 252'!L59) -> -0.05846749162
A70: 2011-09-01 | B70: =LN('page 252'!B61/'page 252'!B60) -> -0.02917109047 | C70: =LN('page 252'!C61/'page 252'!C60) -> -0.3132192046 | D70: =LN('page 252'!D61/'page 252'!D60) -> -0.3229486387 | E70: =LN('page 252'!E61/'page 252'!E60) -> -0.06656076652 | F70: =LN('page 252'!F61/'page 252'!F60) -> -0.009162760705 | G70: =LN('page 252'!G61/'page 252'!G60) -> -0.02102179514 | H70: =LN('page 252'!H61/'page 252'!H60) -> -0.0598827096 | I70: =LN('page 252'!I61/'page 252'!I60) -> -0.2880911541 | J70: =LN('page 252'!J61/'page 252'!J60) -> -0.07129967758 | K70: =LN('page 252'!K61/'page 252'!K60) -> -0.01889841747 | L70: =LN('page 252'!L61/'page 252'!L60) -> -0.07446712754
A71: 2011-10-03 | B71: =LN('page 252'!B62/'page 252'!B61) -> 0.05578068687 | C71: =LN('page 252'!C62/'page 252'!C61) -> 0.1413064666 | D71: =LN('page 252'!D62/'page 252'!D61) -> 0.2647073291 | E71: =LN('page 252'!E62/'page 252'!E61) -> 0.06769648498 | F71: =LN('page 252'!F62/'page 252'!F61) -> 0.05970479201 | G71: =LN('page 252'!G62/'page 252'!G61) -> 0.01897661455 | H71: =LN('page 252'!H62/'page 252'!H61) -> 0.09368008918 | I71: =LN('page 252'!I62/'page 252'!I61) -> 0.1099326987 | J71: =LN('page 252'!J62/'page 252'!J61) -> 0.08571145625 | K71: =LN('page 252'!K62/'page 252'!K61) -> 0.07237571491 | L71: =LN('page 252'!L62/'page 252'!L61) -> 0.1023065917
A72: 2011-11-01 | B72: =LN('page 252'!B63/'page 252'!B62) -> 0.0358094527 | C72: =LN('page 252'!C63/'page 252'!C62) -> 0.07580250487 | D72: =LN('page 252'!D63/'page 252'!D62) -> -0.08227989057 | E72: =LN('page 252'!E63/'page 252'!E62) -> -0.03268893247 | F72: =LN('page 252'!F63/'page 252'!F62) -> -0.05739967783 | G72: =LN('page 252'!G63/'page 252'!G62) -> -0.08889122004 | H72: =LN('page 252'!H63/'page 252'!H62) -> -0.04891101739 | I72: =LN('page 252'!I63/'page 252'!I62) -> -0.226080411 | J72: =LN('page 252'!J63/'page 252'!J62) -> 0.05113429924 | K72: =LN('page 252'!K63/'page 252'!K62) -> 0.03562717764 | L72: =LN('page 252'!L63/'page 252'!L62) -> -0.005071483437
A73: 2011-12-01 | B73: =LN('page 252'!B64/'page 252'!B63) -> 0.04912910329 | C73: =LN('page 252'!C64/'page 252'!C63) -> -0.03129912717 | D73: =LN('page 252'!D64/'page 252'!D63) -> -0.03776068898 | E73: =LN('page 252'!E64/'page 252'!E63) -> 0.01474609569 | F73: =LN('page 252'!F64/'page 252'!F63) -> 0.0579430353 | G73: =LN('page 252'!G64/'page 252'!G63) -> 0.02827823039 | H73: =LN('page 252'!H64/'page 252'!H63) -> 0.1278841316 | I73: =LN('page 252'!I64/'page 252'!I63) -> 0.02181904739 | J73: =LN('page 252'!J64/'page 252'!J63) -> 0.0756174064 | K73: =LN('page 252'!K64/'page 252'!K63) -> 0.05235523033 | L73: =LN('page 252'!L64/'page 252'!L63) -> 0.008496553494
A74: 2012-01-03 | B74: =LN('page 252'!B65/'page 252'!B64) -> -0.01283997979 | C74: =LN('page 252'!C65/'page 252'!C64) -> 0.1317318941 | D74: =LN('page 252'!D65/'page 252'!D64) -> 0.1205280278 | E74: =LN('page 252'!E65/'page 252'!E64) -> 0.1288498039 | F74: =LN('page 252'!F65/'page 252'!F64) -> 0.1196578204 | G74: =LN('page 252'!G65/'page 252'!G64) -> -0.02098188672 | H74: =LN('page 252'!H65/'page 252'!H64) -> 0.04369892421 | I74: =LN('page 252'!I65/'page 252'!I64) -> 0.2487131262 | J74: =LN('page 252'!J65/'page 252'!J64) -> -0.01126772485 | K74: =LN('page 252'!K65/'page 252'!K64) -> -0.0121734407 | L74: =LN('page 252'!L65/'page 252'!L64) -> 0.04265999901
A75: 2012-02-01 | B75: =LN('page 252'!B66/'page 252'!B65) -> 0.009445407843 | C75: =LN('page 252'!C66/'page 252'!C65) -> 0.02845653991 | D75: =LN('page 252'!D66/'page 252'!D65) -> 0.1270533403 | E75: =LN('page 252'!E66/'page 252'!E65) -> 0.04113349358 | F75: =LN('page 252'!F66/'page 252'!F65) -> 0.07730905472 | G75: =LN('page 252'!G66/'page 252'!G65) -> 0.01383758167 | H75: =LN('page 252'!H66/'page 252'!H65) -> 0.02219964317 | I75: =LN('page 252'!I66/'page 252'!I65) -> 0.1373809162 | J75: =LN('page 252'!J66/'page 252'!J65) -> -0.001890359731 | K75: =LN('page 252'!K66/'page 252'!K65) -> 0.01903007 | L75: =LN('page 252'!L66/'page 252'!L65) -> 0.02968285298

Sheet Page 265
A1: ESTIMATING THE CONSTANT CORRELATION VARIANCE-COVARIANCE MATRIX
A2: Correlation | B2: 0.2
B4: MCD | C4: X | D4: MT | E4: MSFT | F4: AAPL | G4: K | H4: GE | I4: BAC | J4: PFE | K4: XOM
A5: MCD | B5: =constantcorr('Page 253'!B3:K62,'Page 265'!B2) -> 0.002014669302 | C5: 0.001750886807 | D5: 0.001468089029 | E5: 0.0007110606171 | F5: 0.00100681271 | G5: 0.0004617512974 | H5: 0.0009907358138 | I5: 0.001779578575 | J5: 0.0005716391095 | K5: 0.0004586680369
A6: X | B6: 0.001750886807 | C6: 0.03804103989 | D6: 0.006379353949 | E6: 0.003089804 | F6: 0.004374949005 | G6: 0.002006468888 | H6: 0.004305089337 | I6: 0.007732883619 | J6: 0.00248396939 | K6: 0.001993071056
A7: MT | B7: 0.001468089029 | C7: 0.006379353949 | D7: 0.02674490295 | E7: 0.002590748492 | F7: 0.003668320884 | G7: 0.00168239029 | H7: 0.003609744731 | I7: 0.006483892369 | J7: 0.002082766399 | K7: 0.001671156434
A8: MSFT | B8: 0.0007110606171 | C8: 0.003089804 | D8: 0.002590748492 | E8: 0.006274071887 | F8: 0.00177673047 | G8: 0.0008148562202 | H8: 0.001748359442 | I8: 0.003140436592 | J8: 0.001008776124 | K8: 0.0008094151657
A9: AAPL | B9: 0.00100681271 | C9: 0.004374949005 | D9: 0.003668320884 | E9: 0.00177673047 | F9: 0.012578638 | G9: 0.001153780114 | H9: 0.002475556184 | I9: 0.004446641258 | J9: 0.001428357301 | K9: 0.001146075956
A10: K | B10: 0.0004617512974 | C10: 0.002006468888 | D10: 0.00168239029 | E10: 0.0008148562202 | F10: 0.001153780114 | G10: 0.002645772441 | H10: 0.001135356426 | I10: 0.002039348877 | J10: 0.0006550829464 | K10: 0.0005256211551
A11: GE | B11: 0.0009907358138 | C11: 0.004305089337 | D11: 0.003609744731 | E11: 0.001748359442 | F11: 0.002475556184 | G11: 0.001135356426 | H11: 0.01218013115 | I11: 0.0043756368 | J11: 0.001405549134 | K11: 0.001127775289
A12: BAC | B12: 0.001779578575 | C12: 0.007732883619 | D12: 0.006483892369 | E12: 0.003140436592 | F12: 0.004446641258 | G12: 0.002039348877 | H12: 0.0043756368 | I12: 0.03929801159 | J12: 0.002524674175 | K12: 0.002025731495
A13: PFE | B13: 0.0005716391095 | C13: 0.00248396939 | D13: 0.002082766399 | E13: 0.001008776124 | F13: 0.001428357301 | G13: 0.0006550829464 | H13: 0.001405549134 | I13: 0.002524674175 | J13: 0.004054899621 | K13: 0.000650708749
A14: XOM | B14: 0.0004586680369 | C14: 0.001993071056 | D14: 0.001671156434 | E14: 0.0008094151657 | F14: 0.001146075956 | G14: 0.0005256211551 | H14: 0.001127775289 | I14: 0.002025731495 | J14: 0.000650708749 | K14: 0.002610557076
B15: =getformula(K5) -> <-- {=constantcorr('Page 253'!B3:K62,'Page 265'!B2)}
B17: GMVP
A18: MCD | B18: =MMULT(B5:K14,unitcolvector(10))/SUM(MMULT(B5:K14,unitcolvector(10))) -> 0.03241202999 | C18: =getformula(B18) -> <-- {=MMULT(B5:K14,unitcolvector(10))/SUM(MMULT(B5:K14,unitcolvector(10)))}
A19: X | B19: 0.2085602142
A20: MT | B20: 0.1629616751
A21: MSFT | B21: 0.06348431628
A22: AAPL | B22: 0.09843323673
A23: K | B23: 0.03792258332
A24: GE | B24: 0.09640442291
A25: BAC | B25: 0.2134429324
A26: PFE | B26: 0.04874980433
A27: XOM | B27: 0.0376287847

Sheet Page 267
A1: ="ESTIMATING THE VARIANCE-COVARIANCE MATRIX USING THE SHRINKAGE APPROACH"&CHAR(10)&"Gives weight "&TEXT(B20,"0.00")&" (the shrinkage factor) to sample var-cov and"&CHAR(10)&" weight "&TEXT(1-B20,"0.00")&" to a diagonal matrix of only variances" -> ESTIMATING THE VARIANCE-COVARIANCE MATRIX USING THE SHRINKAGE APPROACH Gives weight 0.30 (the shrinkage factor) to sample var-cov and weight 0.70 to a diagonal matrix of only variances
A2: Return data
A3: Date | B3: GE | C3: MSFT | D3: JNJ | E3: K | F3: BA | G3: IBM
A4: 1994-01-03 | B4: 0.5644467152 | C4: -0.01503787736 | D4: 0.06010392407 | E4: -0.09791543603 | F4: 0.5873117183 | G4: 0.2151387398
A5: 1995-01-03 | B5: 0.1823215568 | C5: 0.332133835 | D5: 0.4155987738 | E5: 0.07457193752 | F5: -0.002378122405 | G5: 0.06038318284
A6: 1996-01-02 | B6: 0.5693218304 | C6: 0.4428027785 | D6: 0.5771384635 | E6: 0.3776100463 | F6: 0.6555442058 | G6: 0.2732513397
A7: 1997-01-02 | B7: 0.4286784305 | C7: 0.791150858 | D7: 0.2294028709 | E7: -0.05087638981 | F7: 0.5434160567 | G7: 0.4108401516
A8: 1998-01-02 | B8: 0.471113302 | C8: 0.3803636567 | D8: 0.1762337785 | E8: 0.3203958948 | F8: 0.3711426445 | G8: 0.02629199218
A9: 1999-01-04 | B9: 0.3454756819 | C9: 0.8525379124 | D9: 0.2661833249 | E9: -0.1073795656 | F9: 0.1505355775 | G9: -0.02110727545
A10: 2000-01-03 | B10: 0.2815297213 | C10: 0.1120020044 | D10: 0.03411183451 | E10: -0.4892861809 | F10: 0.4352679434 | G10: 0.2376467896
A11: 2001-01-02 | B11: 0.04607109192 | C11: -0.4719432539 | D11: 0.1068837452 | E11: 0.1166675866 | F11: 0.28291473 | G11: 0.2176237581
A12: 2002-01-02 | B12: -0.1974280148 | C12: 0.04269730047 | D12: 0.2311479601 | E12: 0.1990459997 | F12: -0.1508663776 | G12: 0.04548515182
A13: 2003-01-02 | B13: -0.4478499257 | C13: -0.2946728858 | D13: -0.056657596 | E13: 0.10883878 | F13: -0.2323059588 | G13: 0.1553532585
A14: 2004-01-02 | B14: 0.3590092959 | C14: 0.1800514083 | D14: -0.01273656739 | E14: 0.1548647106 | F14: 0.3982257189 | G14: 0.3179505021
A16: Average | B16: =AVERAGE(B4:B14) -> 0.2366081532 | C16: 0.2138259761 | D16: 0.1843100466 | E16: 0.0551397621 | F16: 0.2762552851 | G16: 0.176259781 | H16: =getformula(G16) -> <-- =AVERAGE(G4:G14)
A17: Standard deviation | B17: =STDEV(B4:B14) -> 0.3217194366 | C17: 0.4071169292 | D17: 0.1896519238 | E17: 0.2386475006 | F17: 0.2992841983 | G17: 0.1356145475 | H17: =getformula(G17) -> <-- =STDEV(G4:G14)
A18: Variance | B18: =VAR(B4:B14) -> 0.1035033959 | C18: 0.1657441941 | D18: 0.03596785221 | E18: 0.05695262953 | F18: 0.08957103134 | G18: 0.0183913055 | H18: =getformula(G18) -> <-- =VAR(G4:G14)
A20: Shrinkage factor l | B20: 0.3 | C20: <-- This is the weight put on the sample var-cov
A22: ="Shrinkage matrix"&CHAR(10)&"Uses the array formula "&ggetformula(B24)&" to compute the shrinkage covariance matrix" -> Shrinkage matrix Uses the array formula {=B20*B34:G39+(1-B20)*B44:G49} to compute the shrinkage covariance matrix
B23: GE | C23: MSFT | D23: JNJ | E23: K | F23: BA | G23: IBM
A24: GE | B24: =B20*B34:G39+(1-B20)*B44:G49 -> 0.1035033959 | C24: 0.02275455524 | D24: 0.006647819109 | E24: -0.001289469539 | F24: 0.02572362113 | G24: 0.003689931421
A25: MSFT | B25: 0.02275455524 | C25: 0.1657441941 | D25: 0.01236845361 | E25: -0.001551794314 | F25: 0.01137763227 | G25: -0.0006719191192
A26: JNJ | B26: 0.006647819109 | C26: 0.01236845361 | D26: 0.03596785221 | E26: 0.00543328499 | F26: 0.003030348673 | G26: -0.001179867073
A27: K | B27: -0.001289469539 | C27: -0.001551794314 | D27: 0.00543328499 | E27: 0.05695262953 | F27: -0.002286238882 | G27: -0.001385585323
A28: BA | B28: 0.02572362113 | C28: 0.01137763227 | D28: 0.003030348673 | E28: -0.002286238882 | F28: 0.08957103134 | G28: 0.007446893837
A29: IBM | B29: 0.003689931421 | C29: -0.0006719191192 | D29: -0.001179867073 | E29: -0.001385585323 | F29: 0.007446893837 | G29: 0.0183913055
A32: ="Uses the array formula "&ggetformula(B34)&" to compute the constant sample covariance matrix. In the shrinkage var-cov, this matrix is given weight lambda." -> Uses the array formula {=MMULT(TRANSPOSE(B4:G14-B16:G16),B4:G14-B16:G16)/10} to compute the constant sample covariance matrix. In the shrinkage var-cov, this matrix is given weight lambda.
B33: GE | C33: MSFT | D33: JNJ | E33: K | F33: BA | G33: IBM
A34: GE | B34: =MMULT(TRANSPOSE(B4:G14-B16:G16),B4:G14-B16:G16)/10 -> 0.1035033959 | C34: 0.07584851745 | D34: 0.02215939703 | E34: -0.004298231796 | F34: 0.08574540377 | G34: 0.0122997714
A35: MSFT | B35: 0.07584851745 | C35: 0.1657441941 | D35: 0.04122817871 | E35: -0.005172647714 | F35: 0.03792544089 | G35: -0.002239730397
A36: JNJ | B36: 0.02215939703 | C36: 0.04122817871 | D36: 0.03596785221 | E36: 0.01811094997 | F36: 0.01010116224 | G36: -0.003932890244
A37: K | B37: -0.004298231796 | C37: -0.005172647714 | D37: 0.01811094997 | E37: 0.05695262953 | F37: -0.007620796273 | G37: -0.004618617742
A38: BA | B38: 0.08574540377 | C38: 0.03792544089 | D38: 0.01010116224 | E38: -0.007620796273 | F38: 0.08957103134 | G38: 0.02482297946
A39: IBM | B39: 0.0122997714 | C39: -0.002239730397 | D39: -0.003932890244 | E39: -0.004618617742 | F39: 0.02482297946 | G39: 0.0183913055
A42: ="Uses the array formula "&ggetformula(B44)&" to compute a matrix with only variances on diagonal and zeros elsewhere. In the shrinkage var-cov this matrix is given weight 1-lambda." -> Uses the array formula {=MMULT(TRANSPOSE(B4:G14-B16:G16),B4:G14-B16:G16)/10*IF(A44:A49=B43:G43,1,0)} to compute a matrix with only variances on diagonal and zeros elsewhere. In the shrinkage var-cov this matrix is given weight 1-lambda.
B43: GE | C43: MSFT | D43: JNJ | E43: K | F43: BA | G43: IBM
A44: GE | B44: =MMULT(TRANSPOSE(B4:G14-B16:G16),B4:G14-B16:G16)/10*IF(A44:A49=B43:G43,1,0) -> 0.1035033959 | C44: 0 | D44: 0 | E44: 0 | F44: 0 | G44: 0
A45: MSFT | B45: 0 | C45: 0.1657441941 | D45: 0 | E45: 0 | F45: 0 | G45: 0
A46: JNJ | B46: 0 | C46: 0 | D46: 0.03596785221 | E46: 0 | F46: 0 | G46: 0
A47: K | B47: 0 | C47: 0 | D47: 0 | E47: 0.05695262953 | F47: 0 | G47: 0
A48: BA | B48: 0 | C48: 0 | D48: 0 | E48: 0 | F48: 0.08957103134 | G48: 0
A49: IBM | B49: 0 | C49: 0 | D49: 0 | E49: 0 | F49: 0 | G49: 0.0183913055

Sheet Betas etc
A1: FIVE YEARS OF PRICES FOR 10 STOCKS AND THE SP500
B2: McDonalds | C2: US Steel | D2: Arcelor-Mittal | E2: Microsoft | F2: Apple | G2: Kellogg | H2: General Electric | I2: Bank of America | J2: Pfizer | K2: Exxon | L2: S&P500
A3: Monthly return statistics
A4: Average | B4: =AVERAGE(B23:B82) -> 0.01631440536 | C4: =AVERAGE(C23:C82) -> -0.01675463353 | D4: -0.01091078729 | E4: 0.003111432635 | F4: 0.02938002465 | G4: 0.002410055972 | H4: -0.006916717139 | I4: -0.02829723039 | J4: 0.001286153317 | K4: 0.004653921393 | L4: -0.0006630640582 | M4: =getformula(L4) -> <-- =AVERAGE(L23:L82)
A5: Variance | B5: =_xlfn.VAR.P(B23:B82) -> 0.00198109148 | C5: =_xlfn.VAR.P(C23:C82) -> 0.03740702256 | D5: 0.02629915457 | E5: 0.006169504022 | F5: 0.01236899403 | G5: 0.002601676234 | H5: 0.01197712896 | I5: 0.03864304473 | J5: 0.003987317961 | K5: 0.002567047792 | L5: 0.003075144528 | M5: =getformula(L5) -> <-- =VAR.P(L23:L82)
A6: Sigma | B6: =_xlfn.STDEV.P(B23:B82) -> 0.04450945383 | C6: =_xlfn.STDEV.P(C23:C82) -> 0.1934089516 | D6: 0.1621701408 | E6: 0.07854619037 | F6: 0.1112159792 | G6: 0.05100662931 | H6: 0.1094400702 | I6: 0.1965783425 | J6: 0.06314521328 | K6: 0.0506660418 | L6: 0.05545398568 | M6: <-- =STDEV.P(L23:L82)
A8: Annualized return statistics
A9: Average | B9: =12*B4 -> 0.1957728643 | C9: =12*C4 -> -0.2010556024 | D9: -0.1309294475 | E9: 0.03733719162 | F9: 0.3525602959 | G9: 0.02892067167 | H9: -0.08300060567 | I9: -0.3395667647 | J9: 0.01543383981 | K9: 0.05584705672 | L9: -0.007956768698 | M9: <-- =12*L4
A10: Variance | B10: =12*B5 -> 0.02377309776 | C10: 0.4488842707 | D10: 0.3155898549 | E10: 0.07403404827 | F10: 0.1484279284 | G10: 0.0312201148 | H10: 0.1437255476 | I10: 0.4637165368 | J10: 0.04784781553 | K10: 0.0308045735 | L10: 0.03690173434 | M10: <-- =12*L5
A11: Sigma | B11: =SQRT(12)*B6 -> 0.1541852709 | C11: =SQRT(12)*C6 -> 0.6699882616 | D11: 0.5617738467 | E11: 0.2720919849 | F11: 0.3852634533 | G11: 0.176692147 | H11: 0.3791115239 | I11: 0.6809673537 | J11: 0.2187414353 | K11: 0.1755123172 | L11: 0.1920982414 | M11: <-- =SQRT(12)*L6
A13: Alpha, beta, rsq
A14: Alpha | B14: =INTERCEPT(B23:B82,$L$23:$L$82) -> 0.01659435122 | C14: =INTERCEPT(C23:C82,$L$23:$L$82) -> -0.01495069933 | D14: -0.009364015944 | E14: 0.003770942857 | F14: 0.03019485644 | G14: 0.002707246408 | H14: -0.005852698249 | I14: -0.02670427207 | J14: 0.001745975284 | K14: 0.004978798975 | L14: 0 | M14: =getformula(L14) -> <-- =INTERCEPT(L23:L82,$L$23:$L$82)
A15: Beta | B15: =SLOPE(B23:B82,$L$23:$L$82) -> 0.4222003341 | C15: =SLOPE(C23:C82,$L$23:$L$82) -> 2.720603209 | D15: 2.332763073 | E15: 0.9946402822 | F15: 1.228888479 | G15: 0.4482077286 | H15: 1.604699994 | I15: 2.402419946 | J15: 0.6934804583 | K15: 0.4899640952 | L15: 1 | M15: =getformula(L15) -> <-- =SLOPE(L23:L82,$L$23:$L$82)
A16: Rsq | B16: =RSQ(B23:B82,$L$23:$L$82) -> 0.2766929839 | C16: =RSQ(C23:C82,$L$23:$L$82) -> 0.6084750881 | D16: 0.6363045198 | E16: 0.4931140399 | F16: 0.3754534482 | G16: 0.2374493386 | H16: 0.6611507701 | I16: 0.4592953452 | J16: 0.3708968271 | K16: 0.2875809338 | L16: 1 | M16: <-- =RSQ(L23:L82,$L$23:$L$82)
A17: t-stat, alpha | B17: =tintercept(B23:B82,$L$23:$L$82) -> 3.338332782 | C17: =tintercept(C23:C82,$L$23:$L$82) -> -0.9407802465 | D17: -0.7291304777 | E17: 0.5135144251 | F17: 2.616172191 | G17: 0.46286012 | H17: -0.6996155802 | I17: -1.406850582 | J17: 0.2654725813 | K17: 0.8865899436 | L17: =getformula(K17) -> <-- =tintercept(K23:K82,$L$23:$L$82)
A18: t-stat, beta | B18: =tSLOPE(B23:B82,$L$23:$L$82) -> 4.710334306 | C18: =tSLOPE(C23:C82,$L$23:$L$82) -> 9.494141446 | D18: 10.07343408 | E18: 7.511601667 | F18: 5.904860444 | G18: 4.249767078 | H18: 10.63802482 | I18: 7.019076321 | J18: 5.847626398 | K18: 4.838673015 | L18: =getformula(K18) -> <-- =tSLOPE(K23:K82,$L$23:$L$82)
A21: Date | B21: MCD | C21: X | D21: MT | E21: MSFT | F21: AAPL | G21: K | H21: GE | I21: BAC | J21: PFE | K21: XOM | L21: ^GSPC
A22: 2007-02-01
A23: 2007-03-01 | B23: =LN('page 252'!B7/'page 252'!B6) -> 0.03066679839 | C23: =LN('page 252'!C7/'page 252'!C6) -> 0.1117596341 | D23: =LN('page 252'!D7/'page 252'!D6) -> 0.03914351262 | E23: =LN('page 252'!E7/'page 252'!E6) -> -0.01063211433 | F23: =LN('page 252'!F7/'page 252'!F6) -> 0.09357881972 | G23: =LN('page 252'!G7/'page 252'!G6) -> 0.03126670646 | H23: =LN('page 252'!H7/'page 252'!H6) -> 0.01269096093 | I23: =LN('page 252'!I7/'page 252'!I6) -> 0.003797614304 | J23: =LN('page 252'!J7/'page 252'!J6) -> 0.01168415629 | K23: =LN('page 252'!K7/'page 252'!K6) -> 0.05130887059 | L23: =LN('page 252'!L7/'page 252'!L6) -> 0.009930483915
A24: 2007-04-02 | B24: =LN('page 252'!B8/'page 252'!B7) -> 0.06930258088 | C24: =LN('page 252'!C8/'page 252'!C7) -> 0.02367282975 | D24: =LN('page 252'!D8/'page 252'!D7) -> 0.0100288902 | E24: =LN('page 252'!E8/'page 252'!E7) -> 0.07178653748 | F24: =LN('page 252'!F8/'page 252'!F7) -> 0.07153690066 | G24: =LN('page 252'!G8/'page 252'!G7) -> 0.02836913723 | H24: =LN('page 252'!H8/'page 252'!H7) -> 0.04172138545 | I24: =LN('page 252'!I8/'page 252'!I7) -> -0.002455632443 | J24: =LN('page 252'!J8/'page 252'!J7) -> 0.0463822651 | K24: =LN('page 252'!K8/'page 252'!K7) -> 0.05077525552 | L24: =LN('page 252'!L8/'page 252'!L7) -> 0.04237983624
A25: 2007-05-01 | B25: =LN('page 252'!B9/'page 252'!B8) -> 0.04589580614 | C25: =LN('page 252'!C9/'page 252'!C8) -> 0.1101619149 | D25: =LN('page 252'!D9/'page 252'!D8) -> 0.1215974077 | E25: =LN('page 252'!E9/'page 252'!E8) -> 0.02797639314 | F25: =LN('page 252'!F9/'page 252'!F8) -> 0.1941913787 | G25: =LN('page 252'!G9/'page 252'!G8) -> 0.02547499424 | H25: =LN('page 252'!H9/'page 252'!H8) -> 0.01910370547 | I25: =LN('page 252'!I9/'page 252'!I8) -> 0.007348880641 | J25: =LN('page 252'!J9/'page 252'!J8) -> 0.0489279147 | K25: =LN('page 252'!K9/'page 252'!K8) -> 0.05086422908 | L25: =LN('page 252'!L9/'page 252'!L8) -> 0.03203072375
A26: 2007-06-01 | B26: =LN('page 252'!B10/'page 252'!B9) -> 0.004132237285 | C26: =LN('page 252'!C10/'page 252'!C9) -> -0.03983014834 | D26: =LN('page 252'!D10/'page 252'!D9) -> 0.03926409804 | E26: =LN('page 252'!E10/'page 252'!E9) -> -0.04058316003 | F26: =LN('page 252'!F10/'page 252'!F9) -> 0.006989297868 | G26: =LN('page 252'!G10/'page 252'!G9) -> -0.04142987317 | H26: =LN('page 252'!H10/'page 252'!H9) -> 0.02595903917 | I26: =LN('page 252'!I10/'page 252'!I9) -> -0.03660598499 | J26: =LN('page 252'!J10/'page 252'!J9) -> -0.07234361868 | K26: =LN('page 252'!K10/'page 252'!K9) -> 0.00851861933 | L26: =LN('page 252'!L10/'page 252'!L9) -> -0.01797693082
A27: 2007-07-02 | B27: =LN('page 252'!B11/'page 252'!B10) -> -0.0584934465 | C27: =LN('page 252'!C11/'page 252'!C10) -> -0.1011002046 | D27: =LN('page 252'!D11/'page 252'!D10) -> -0.02230032094 | E27: =LN('page 252'!E11/'page 252'!E10) -> -0.01655417788 | F27: =LN('page 252'!F11/'page 252'!F10) -> 0.07663322602 | G27: =LN('page 252'!G11/'page 252'!G10) -> 0.0004405286415 | H27: =LN('page 252'!H11/'page 252'!H10) -> 0.01242252 | I27: =LN('page 252'!I11/'page 252'!I10) -> -0.03061344334 | J27: =LN('page 252'!J11/'page 252'!J10) -> -0.08387531421 | K27: =LN('page 252'!K11/'page 252'!K10) -> 0.01486576084 | L27: =LN('page 252'!L11/'page 252'!L10) -> -0.03250450084
A28: 2007-08-01 | B28: =LN('page 252'!B12/'page 252'!B11) -> 0.02825858532 | C28: =LN('page 252'!C12/'page 252'!C11) -> -0.03724583382 | D28: =LN('page 252'!D12/'page 252'!D11) -> 0.08653375216 | E28: =LN('page 252'!E12/'page 252'!E11) -> -0.005325231299 | F28: =LN('page 252'!F12/'page 252'!F11) -> 0.049743825 | G28: =LN('page 252'!G12/'page 252'!G11) -> 0.0641806064 | H28: =LN('page 252'!H12/'page 252'!H11) -> 0.002773926883 | I28: =LN('page 252'!I12/'page 252'!I11) -> 0.06655357546 | J28: =LN('page 252'!J12/'page 252'!J11) -> 0.06695106754 | K28: =LN('page 252'!K12/'page 252'!K11) -> 0.0109091991 | L28: =LN('page 252'!L12/'page 252'!L11) -> 0.01278155907
A29: 2007-09-04 | B29: =LN('page 252'!B13/'page 252'!B12) -> 0.1007691176 | C29: =LN('page 252'!C13/'page 252'!C12) -> 0.1145296029 | D29: =LN('page 252'!D13/'page 252'!D12) -> 0.1685525637 | E29: =LN('page 252'!E13/'page 252'!E12) -> 0.02486003732 | F29: =LN('page 252'!F13/'page 252'!F12) -> 0.1027791973 | G29: =LN('page 252'!G13/'page 252'!G12) -> 0.01922742809 | H29: =LN('page 252'!H13/'page 252'!H12) -> 0.0698338023 | I29: =LN('page 252'!I13/'page 252'!I12) -> 0.004430667416 | J29: =LN('page 252'!J13/'page 252'!J12) -> -0.0167050202 | K29: =LN('page 252'!K13/'page 252'!K12) -> 0.07667875056 | L29: =LN('page 252'!L13/'page 252'!L12) -> 0.03516828364
A30: 2007-10-01 | B30: =LN('page 252'!B14/'page 252'!B13) -> 0.09251145295 | C30: =LN('page 252'!C14/'page 252'!C13) -> 0.0183258857 | D30: =LN('page 252'!D14/'page 252'!D13) -> 0.02013395674 | E30: =LN('page 252'!E14/'page 252'!E13) -> 0.222845888 | F30: =LN('page 252'!F14/'page 252'!F13) -> 0.2132557714 | G30: =LN('page 252'!G14/'page 252'!G13) -> -0.05904311374 | H30: =LN('page 252'!H14/'page 252'!H13) -> -0.00604579357 | I30: =LN('page 252'!I14/'page 252'!I13) -> -0.04037079954 | J30: =LN('page 252'!J14/'page 252'!J13) -> 0.007121088078 | K30: =LN('page 252'!K14/'page 252'!K13) -> -0.006119896703 | L30: =LN('page 252'!L14/'page 252'!L13) -> 0.01471355779
A31: 2007-11-01 | B31: =LN('page 252'!B15/'page 252'!B14) -> 0.004272680806 | C31: =LN('page 252'!C15/'page 252'!C14) -> -0.09731160177 | D31: =LN('page 252'!D15/'page 252'!D14) -> -0.07533967238 | E31: =LN('page 252'!E15/'page 252'!E14) -> -0.08801325899 | F31: =LN('page 252'!F15/'page 252'!F14) -> -0.04154613135 | G31: =LN('page 252'!G15/'page 252'!G14) -> 0.02922698504 | H31: =LN('page 252'!H15/'page 252'!H14) -> -0.07213298067 | I31: =LN('page 252'!I15/'page 252'!I14) -> -0.04543561285 | J31: =LN('page 252'!J15/'page 252'!J14) -> -0.02255349312 | K31: =LN('page 252'!K15/'page 252'!K14) -> -0.02745581526 | L31: =LN('page 252'!L15/'page 252'!L14) -> -0.04504278937
A32: 2007-12-03 | B32: =LN('page 252'!B16/'page 252'!B15) -> 0.007529719908 | C32: =LN('page 252'!C16/'page 252'!C15) -> 0.2131932205 | D32: =LN('page 252'!D16/'page 252'!D15) -> 0.04671950865 | E32: =LN('page 252'!E16/'page 252'!E15) -> 0.05779034821 | F32: =LN('page 252'!F16/'page 252'!F15) -> 0.08345624121 | G32: =LN('page 252'!G16/'page 252'!G15) -> -0.03030213835 | H32: =LN('page 252'!H16/'page 252'!H15) -> -0.02387048012 | I32: =LN('page 252'!I16/'page 252'!I15) -> -0.09731121715 | J32: =LN('page 252'!J16/'page 252'!J15) -> -0.04452245643 | K32: =LN('page 252'!K16/'page 252'!K15) -> 0.04959694114 | L32: =LN('page 252'!L16/'page 252'!L15) -> -0.008665929805
A33: 2008-01-02 | B33: =LN('page 252'!B17/'page 252'!B16) -> -0.09475253574 | C33: =LN('page 252'!C17/'page 252'!C16) -> -0.1704694902 | D33: =LN('page 252'!D17/'page 252'!D16) -> -0.1528034247 | E33: =LN('page 252'!E17/'page 252'!E16) -> -0.08815571751 | F33: =LN('page 252'!F17/'page 252'!F16) -> -0.3807330936 | G33: =LN('page 252'!G17/'page 252'!G16) -> -0.0923455597 | H33: =LN('page 252'!H17/'page 252'!H16) -> -0.04718623818 | I33: =LN('page 252'!I17/'page 252'!I16) -> 0.06773555543 | J33: =LN('page 252'!J17/'page 252'!J16) -> 0.02726712634 | K33: =LN('page 252'!K17/'page 252'!K16) -> -0.08908986751 | L33: =LN('page 252'!L17/'page 252'!L16) -> -0.0631139096
A34: 2008-02-01 | B34: =LN('page 252'!B18/'page 252'!B17) -> 0.01656743357 | C34: =LN('page 252'!C18/'page 252'!C17) -> 0.06420055727 | D34: =LN('page 252'!D18/'page 252'!D17) -> 0.1354648975 | E34: =LN('page 252'!E18/'page 252'!E17) -> -0.1769739505 | F34: =LN('page 252'!F18/'page 252'!F17) -> -0.07946417135 | G34: =LN('page 252'!G18/'page 252'!G17) -> 0.06530509841 | H34: =LN('page 252'!H18/'page 252'!H17) -> -0.05584598772 | I34: =LN('page 252'!I18/'page 252'!I17) -> -0.1053329519 | J34: =LN('page 252'!J18/'page 252'!J17) -> -0.03324703 | K34: =LN('page 252'!K18/'page 252'!K17) -> 0.0194997576 | L34: =LN('page 252'!L18/'page 252'!L17) -> -0.03537970784
A35: 2008-03-03 | B35: =LN('page 252'!B19/'page 252'!B18) -> 0.03031776653 | C35: =LN('page 252'!C19/'page 252'!C18) -> 0.1569211617 | D35: =LN('page 252'!D19/'page 252'!D18) -> 0.07827748215 | E35: =LN('page 252'!E19/'page 252'!E18) -> 0.04229291219 | F35: =LN('page 252'!F19/'page 252'!F18) -> 0.1378613107 | G35: =LN('page 252'!G19/'page 252'!G18) -> 0.03560949402 | H35: =LN('page 252'!H19/'page 252'!H18) -> 0.110316502 | I35: =LN('page 252'!I19/'page 252'!I18) -> -0.03050467391 | J35: =LN('page 252'!J19/'page 252'!J18) -> -0.06243241629 | K35: =LN('page 252'!K19/'page 252'!K18) -> -0.02841973143 | L35: =LN('page 252'!L19/'page 252'!L18) -> -0.005977412241
A36: 2008-04-01 | B36: =LN('page 252'!B20/'page 252'!B19) -> 0.06597514004 | C36: =LN('page 252'!C20/'page 252'!C19) -> 0.1934486698 | D36: =LN('page 252'!D20/'page 252'!D19) -> 0.08540185553 | E36: =LN('page 252'!E20/'page 252'!E19) -> 0.004972280277 | F36: =LN('page 252'!F20/'page 252'!F19) -> 0.1924328664 | G36: =LN('page 252'!G20/'page 252'!G19) -> -0.02680662027 | H36: =LN('page 252'!H20/'page 252'!H19) -> -0.1237966635 | I36: =LN('page 252'!I20/'page 252'!I19) -> -0.009708814127 | J36: =LN('page 252'!J20/'page 252'!J19) -> -0.04026594872 | K36: =LN('page 252'!K20/'page 252'!K19) -> 0.09565246165 | L36: =LN('page 252'!L20/'page 252'!L19) -> 0.04645093966
A37: 2008-05-01 | B37: =LN('page 252'!B21/'page 252'!B20) -> -0.004354005932 | C37: =LN('page 252'!C21/'page 252'!C20) -> 0.1164718155 | D37: =LN('page 252'!D21/'page 252'!D20) -> 0.1087861364 | E37: =LN('page 252'!E21/'page 252'!E20) -> -0.003439712927 | F37: =LN('page 252'!F21/'page 252'!F20) -> 0.08165548653 | G37: =LN('page 252'!G21/'page 252'!G20) -> 0.0186677876 | H37: =LN('page 252'!H21/'page 252'!H20) -> -0.06225541512 | I37: =LN('page 252'!I21/'page 252'!I20) -> -0.09884583464 | J37: =LN('page 252'!J21/'page 252'!J20) -> -0.02199233413 | K37: =LN('page 252'!K21/'page 252'!K20) -> -0.04291883379 | L37: =LN('page 252'!L21/'page 252'!L20) -> 0.01061758665
A38: 2008-06-02 | B38: =LN('page 252'!B22/'page 252'!B21) -> -0.04719780715 | C38: =LN('page 252'!C22/'page 252'!C21) -> 0.06754428601 | D38: =LN('page 252'!D22/'page 252'!D21) -> 0.001118568349 | E38: =LN('page 252'!E22/'page 252'!E21) -> -0.02873984212 | F38: =LN('page 252'!F22/'page 252'!F21) -> -0.11979831 | G38: =LN('page 252'!G22/'page 252'!G21) -> -0.07616136097 | H38: =LN('page 252'!H22/'page 252'!H21) -> -0.1296836708 | I38: =LN('page 252'!I22/'page 252'!I21) -> -0.3346999721 | J38: =LN('page 252'!J22/'page 252'!J21) -> -0.1026875419 | K38: =LN('page 252'!K22/'page 252'!K21) -> -0.007170261898 | L38: =LN('page 252'!L22/'page 252'!L21) -> -0.08988355043
A39: 2008-07-01 | B39: =LN('page 252'!B23/'page 252'!B22) -> 0.06151336524 | C39: =LN('page 252'!C23/'page 252'!C22) -> -0.141790685 | D39: =LN('page 252'!D23/'page 252'!D22) -> -0.1251184262 | E39: =LN('page 252'!E23/'page 252'!E22) -> -0.06764288816 | F39: =LN('page 252'!F23/'page 252'!F22) -> -0.05203539078 | G39: =LN('page 252'!G23/'page 252'!G22) -> 0.09996188943 | H39: =LN('page 252'!H23/'page 252'!H22) -> 0.05840769326 | I39: =LN('page 252'!I23/'page 252'!I22) -> 0.3209858359 | J39: =LN('page 252'!J23/'page 252'!J22) -> 0.06620550876 | K39: =LN('page 252'!K23/'page 252'!K22) -> -0.09139724978 | L39: =LN('page 252'!L23/'page 252'!L22) -> -0.009908300486
A40: 2008-08-01 | B40: =LN('page 252'!B24/'page 252'!B23) -> 0.0424738929 | C40: =LN('page 252'!C24/'page 252'!C23) -> -0.1843521719 | D40: =LN('page 252'!D24/'page 252'!D23) -> -0.1060223617 | E40: =LN('page 252'!E24/'page 252'!E23) -> 0.06329934727 | F40: =LN('page 252'!F24/'page 252'!F23) -> 0.06444021495 | G40: =LN('page 252'!G24/'page 252'!G23) -> 0.03182744364 | H40: =LN('page 252'!H24/'page 252'!H23) -> -0.006962960755 | I40: =LN('page 252'!I24/'page 252'!I23) -> -0.05478109908 | J40: =LN('page 252'!J24/'page 252'!J23) -> 0.04018117425 | K40: =LN('page 252'!K24/'page 252'!K23) -> -0.0001359526887 | L40: =LN('page 252'!L24/'page 252'!L23) -> 0.01211679746
A41: 2008-09-02 | B41: =LN('page 252'!B25/'page 252'!B24) -> -0.004851325659 | C41: =LN('page 252'!C25/'page 252'!C24) -> -0.539162976 | D41: =LN('page 252'!D25/'page 252'!D24) -> -0.4603308826 | E41: =LN('page 252'!E25/'page 252'!E24) -> -0.02200528881 | F41: =LN('page 252'!F25/'page 252'!F24) -> -0.3998183664 | G41: =LN('page 252'!G25/'page 252'!G24) -> 0.03005635988 | H41: =LN('page 252'!H25/'page 252'!H24) -> -0.08354245391 | I41: =LN('page 252'!I25/'page 252'!I24) -> 0.1364528334 | J41: =LN('page 252'!J25/'page 252'!J24) -> -0.03570689385 | K41: =LN('page 252'!K25/'page 252'!K24) -> -0.02980764353 | L41: =LN('page 252'!L25/'page 252'!L24) -> -0.09518078677
A42: 2008-10-01 | B42: =LN('page 252'!B26/'page 252'!B25) -> -0.06300271742 | C42: =LN('page 252'!C26/'page 252'!C25) -> -0.743963904 | D42: =LN('page 252'!D26/'page 252'!D25) -> -0.6316825755 | E42: =LN('page 252'!E26/'page 252'!E25) -> -0.1784455829 | F42: =LN('page 252'!F26/'page 252'!F25) -> -0.05488382926 | G42: =LN('page 252'!G26/'page 252'!G25) -> -0.1067651952 | H42: =LN('page 252'!H26/'page 252'!H25) -> -0.2679203322 | I42: =LN('page 252'!I26/'page 252'!I25) -> -0.3699962739 | J42: =LN('page 252'!J26/'page 252'!J25) -> -0.04034379255 | K42: =LN('page 252'!K26/'page 252'!K25) -> -0.04659339128 | L42: =LN('page 252'!L26/'page 252'!L25) -> -0.1856364864
A43: 2008-11-03 | B43: =LN('page 252'!B27/'page 252'!B26) -> 0.02275842583 | C43: =LN('page 252'!C27/'page 252'!C26) -> -0.1837800189 | D43: =LN('page 252'!D27/'page 252'!D26) -> -0.1034032943 | E43: =LN('page 252'!E27/'page 252'!E26) -> -0.09265413575 | F43: =LN('page 252'!F27/'page 252'!F26) -> -0.149282911 | G43: =LN('page 252'!G27/'page 252'!G26) -> -0.1491846286 | H43: =LN('page 252'!H27/'page 252'!H26) -> -0.1275413581 | I43: =LN('page 252'!I27/'page 252'!I26) -> -0.3971450601 | J43: =LN('page 252'!J27/'page 252'!J26) -> -0.05809628026 | K43: =LN('page 252'!K27/'page 252'!K26) -> 0.08385112007 | L43: =LN('page 252'!L27/'page 252'!L26) -> -0.07779834642
A44: 2008-12-01 | B44: =LN('page 252'!B28/'page 252'!B27) -> 0.05703339821 | C44: =LN('page 252'!C28/'page 252'!C27) -> 0.2018335575 | D44: =LN('page 252'!D28/'page 252'!D27) -> 0.05700321868 | E44: =LN('page 252'!E28/'page 252'!E27) -> -0.03894488913 | F44: =LN('page 252'!F28/'page 252'!F27) -> -0.08228434636 | G44: =LN('page 252'!G28/'page 252'!G27) -> 0.01744009829 | H44: =LN('page 252'!H28/'page 252'!H27) -> -0.03924725631 | I44: =LN('page 252'!I28/'page 252'!I27) -> -0.1211347266 | J44: =LN('page 252'!J28/'page 252'!J27) -> 0.0752132222 | K44: =LN('page 252'!K28/'page 252'!K27) -> -0.00392130852 | L44: =LN('page 252'!L28/'page 252'!L27) -> 0.007791135777
A45: 2009-01-02 | B45: =LN('page 252'!B29/'page 252'!B28) -> -0.06948638933 | C45: =LN('page 252'!C29/'page 252'!C28) -> -0.2143739692 | D45: =LN('page 252'!D29/'page 252'!D28) -> -0.08581276723 | E45: =LN('page 252'!E29/'page 252'!E28) -> -0.1287363514 | F45: =LN('page 252'!F29/'page 252'!F28) -> 0.05449262333 | G45: =LN('page 252'!G29/'page 252'!G28) -> -0.003514059841 | H45: =LN('page 252'!H29/'page 252'!H28) -> -0.2892936763 | I45: =LN('page 252'!I29/'page 252'!I28) -> -0.7600866632 | J45: =LN('page 252'!J29/'page 252'!J28) -> -0.1946690143 | K45: =LN('page 252'!K29/'page 252'!K28) -> -0.04290721817 | L45: =LN('page 252'!L29/'page 252'!L28) -> -0.08954988551
A46: 2009-02-02 | B46: =LN('page 252'!B30/'page 252'!B29) -> -0.09555703009 | C46: =LN('page 252'!C30/'page 252'!C29) -> -0.4140282706 | D46: =LN('page 252'!D30/'page 252'!D29) -> -0.1468304689 | E46: =LN('page 252'!E30/'page 252'!E29) -> -0.05017129315 | F46: =LN('page 252'!F30/'page 252'!F29) -> -0.009139608873 | G46: =LN('page 252'!G30/'page 252'!G29) -> -0.1068423495 | H46: =LN('page 252'!H30/'page 252'!H29) -> -0.3249262456 | I46: =LN('page 252'!I30/'page 252'!I29) -> -0.5108256238 | J46: =LN('page 252'!J30/'page 252'!J29) -> -0.1475639085 | K46: =LN('page 252'!K30/'page 252'!K29) -> -0.1140247272 | L46: =LN('page 252'!L30/'page 252'!L29) -> -0.1164565438
A47: 2009-03-02 | B47: =LN('page 252'!B31/'page 252'!B30) -> 0.04353400202 | C47: =LN('page 252'!C31/'page 252'!C30) -> 0.07119203394 | D47: =LN('page 252'!D31/'page 252'!D30) -> 0.03650636929 | E47: =LN('page 252'!E31/'page 252'!E30) -> 0.1291517633 | F47: =LN('page 252'!F31/'page 252'!F30) -> 0.162989091 | G47: =LN('page 252'!G31/'page 252'!G30) -> -0.06055467463 | H47: =LN('page 252'!H31/'page 252'!H30) -> 0.1718502569 | I47: =LN('page 252'!I31/'page 252'!I30) -> 0.5485659517 | J47: =LN('page 252'!J31/'page 252'!J30) -> 0.1013081985 | K47: =LN('page 252'!K31/'page 252'!K30) -> 0.003007045077 | L47: =LN('page 252'!L31/'page 252'!L30) -> 0.08195273621
A48: 2009-04-01 | B48: =LN('page 252'!B32/'page 252'!B31) -> -0.02367812735 | C48: =LN('page 252'!C32/'page 252'!C31) -> 0.2284155501 | D48: =LN('page 252'!D32/'page 252'!D31) -> 0.1625991831 | E48: =LN('page 252'!E32/'page 252'!E31) -> 0.09767891364 | F48: =LN('page 252'!F32/'page 252'!F31) -> 0.1798292349 | G48: =LN('page 252'!G32/'page 252'!G31) -> 0.1393482705 | H48: =LN('page 252'!H32/'page 252'!H31) -> 0.2242170887 | I48: =LN('page 252'!I32/'page 252'!I31) -> 0.2697443718 | J48: =LN('page 252'!J32/'page 252'!J31) -> -0.01928780967 | K48: =LN('page 252'!K32/'page 252'!K31) -> -0.02124171538 | L48: =LN('page 252'!L32/'page 252'!L31) -> 0.08977221492
A49: 2009-05-01 | B49: =LN('page 252'!B33/'page 252'!B32) -> 0.101564666 | C49: =LN('page 252'!C33/'page 252'!C32) -> 0.2515693352 | D49: =LN('page 252'!D33/'page 252'!D32) -> 0.3475841799 | E49: =LN('page 252'!E33/'page 252'!E32) -> 0.03715597689 | F49: =LN('page 252'!F33/'page 252'!F32) -> 0.07632506051 | G49: =LN('page 252'!G33/'page 252'!G32) -> 0.03456506739 | H49: =LN('page 252'!H33/'page 252'!H32) -> 0.0631964192 | I49: =LN('page 252'!I33/'page 252'!I32) -> 0.2330490803 | J49: =LN('page 252'!J33/'page 252'!J32) -> 0.1396514919 | K49: =LN('page 252'!K33/'page 252'!K32) -> 0.04544085111 | L49: =LN('page 252'!L33/'page 252'!L32) -> 0.05172055842
A50: 2009-06-01 | B50: =LN('page 252'!B34/'page 252'!B33) -> -0.01754430965 | C50: =LN('page 252'!C34/'page 252'!C33) -> 0.04733065122 | D50: =LN('page 252'!D34/'page 252'!D33) -> -0.002895289138 | E50: =LN('page 252'!E34/'page 252'!E33) -> 0.1290889153 | F50: =LN('page 252'!F34/'page 252'!F33) -> 0.04759380083 | G50: =LN('page 252'!G34/'page 252'!G33) -> 0.07389382411 | H50: =LN('page 252'!H34/'page 252'!H33) -> -0.1315763578 | I50: =LN('page 252'!I34/'page 252'!I33) -> 0.1587483891 | J50: =LN('page 252'!J34/'page 252'!J33) -> -0.01259742484 | K50: =LN('page 252'!K34/'page 252'!K33) -> 0.007988980883 | L50: =LN('page 252'!L34/'page 252'!L33) -> 0.0001958160641
A51: 2009-07-01 | B51: =LN('page 252'!B35/'page 252'!B34) -> -0.04328847444 | C51: =LN('page 252'!C35/'page 252'!C34) -> 0.1064376438 | D51: =LN('page 252'!D35/'page 252'!D34) -> 0.08577564816 | E51: =LN('page 252'!E35/'page 252'!E34) -> -0.0107431651 | F51: =LN('page 252'!F35/'page 252'!F34) -> 0.1372893301 | G51: =LN('page 252'!G35/'page 252'!G34) -> 0.01975713243 | H51: =LN('page 252'!H35/'page 252'!H34) -> 0.1339908459 | I51: =LN('page 252'!I35/'page 252'!I34) -> 0.1140383504 | J51: =LN('page 252'!J35/'page 252'!J34) -> 0.06005420869 | K51: =LN('page 252'!K35/'page 252'!K34) -> 0.006862398261 | L51: =LN('page 252'!L35/'page 252'!L34) -> 0.07152197709
A52: 2009-08-03 | B52: =LN('page 252'!B36/'page 252'!B35) -> 0.03002065282 | C52: =LN('page 252'!C36/'page 252'!C35) -> 0.097579172 | D52: =LN('page 252'!D36/'page 252'!D35) -> -0.006228701733 | E52: =LN('page 252'!E36/'page 252'!E35) -> 0.05259757396 | F52: =LN('page 252'!F36/'page 252'!F35) -> 0.02907321776 | G52: =LN('page 252'!G36/'page 252'!G35) -> -0.0006826715477 | H52: =LN('page 252'!H36/'page 252'!H35) -> 0.03631022406 | I52: =LN('page 252'!I36/'page 252'!I35) -> 0.1730701631 | J52: =LN('page 252'!J36/'page 252'!J35) -> 0.0573144566 | K52: =LN('page 252'!K36/'page 252'!K35) -> -0.01177113645 | L52: =LN('page 252'!L36/'page 252'!L35) -> 0.03300932135
A53: 2009-09-01 | B53: =LN('page 252'!B37/'page 252'!B36) -> 0.01477299594 | C53: =LN('page 252'!C37/'page 252'!C36) -> 0.01355252166 | D53: =LN('page 252'!D37/'page 252'!D36) -> 0.04138119547 | E53: =LN('page 252'!E37/'page 252'!E36) -> 0.04263077613 | F53: =LN('page 252'!F37/'page 252'!F36) -> 0.09703273079 | G53: =LN('page 252'!G37/'page 252'!G36) -> 0.04452104035 | H53: =LN('page 252'!H37/'page 252'!H36) -> 0.1725843815 | I53: =LN('page 252'!I37/'page 252'!I36) -> -0.03800515849 | J53: =LN('page 252'!J37/'page 252'!J36) -> -0.009327182875 | K53: =LN('page 252'!K37/'page 252'!K36) -> -0.007718469933 | L53: =LN('page 252'!L37/'page 252'!L36) -> 0.03510010416
A54: 2009-10-01 | B54: =LN('page 252'!B38/'page 252'!B37) -> 0.02652970729 | C54: =LN('page 252'!C38/'page 252'!C37) -> -0.2519012828 | D54: =LN('page 252'!D38/'page 252'!D37) -> -0.08766038209 | E54: =LN('page 252'!E38/'page 252'!E37) -> 0.07486756201 | F54: =LN('page 252'!F38/'page 252'!F37) -> 0.01685207729 | G54: =LN('page 252'!G38/'page 252'!G37) -> 0.04595575695 | H54: =LN('page 252'!H38/'page 252'!H37) -> -0.1405450278 | I54: =LN('page 252'!I38/'page 252'!I37) -> -0.1488014843 | J54: =LN('page 252'!J38/'page 252'!J37) -> 0.02837537785 | K54: =LN('page 252'!K38/'page 252'!K37) -> 0.04351478597 | L54: =LN('page 252'!L38/'page 252'!L37) -> -0.01995986522
A55: 2009-11-02 | B55: =LN('page 252'!B39/'page 252'!B38) -> 0.08473550709 | C55: =LN('page 252'!C39/'page 252'!C38) -> 0.2596285939 | D55: =LN('page 252'!D39/'page 252'!D38) -> 0.1485704328 | E55: =LN('page 252'!E39/'page 252'!E38) -> 0.06325637836 | F55: =LN('page 252'!F39/'page 252'!F38) -> 0.05876925838 | G55: =LN('page 252'!G39/'page 252'!G38) -> 0.02707857757 | H55: =LN('page 252'!H39/'page 252'!H38) -> 0.1161133074 | I55: =LN('page 252'!I39/'page 252'!I38) -> 0.08354757027 | J55: =LN('page 252'!J39/'page 252'!J38) -> 0.07457259141 | K55: =LN('page 252'!K39/'page 252'!K38) -> 0.05217569428 | L55: =LN('page 252'!L39/'page 252'!L38) -> 0.05577901558
A56: 2009-12-01 | B56: =LN('page 252'!B40/'page 252'!B39) -> -0.01286626857 | C56: =LN('page 252'!C40/'page 252'!C39) -> 0.2105217812 | D56: =LN('page 252'!D40/'page 252'!D39) -> 0.15265307 | E56: =LN('page 252'!E40/'page 252'!E39) -> 0.03604939783 | F56: =LN('page 252'!F40/'page 252'!F39) -> 0.05271042794 | G56: =LN('page 252'!G40/'page 252'!G39) -> 0.01167015257 | H56: =LN('page 252'!H40/'page 252'!H39) -> -0.05073054817 | I56: =LN('page 252'!I40/'page 252'!I39) -> -0.0508916073 | J56: =LN('page 252'!J40/'page 252'!J39) -> 0.00120700075 | K56: =LN('page 252'!K40/'page 252'!K39) -> -0.09615548839 | L56: =LN('page 252'!L40/'page 252'!L39) -> 0.0176145467
A57: 2010-01-04 | B57: =LN('page 252'!B41/'page 252'!B40) -> -0.0001704012955 | C57: =LN('page 252'!C41/'page 252'!C40) -> -0.2155149827 | D57: =LN('page 252'!D41/'page 252'!D40) -> -0.1678089758 | E57: =LN('page 252'!E41/'page 252'!E40) -> -0.07864000223 | F57: =LN('page 252'!F41/'page 252'!F40) -> -0.09276987 | G57: =LN('page 252'!G41/'page 252'!G40) -> 0.02274398444 | H57: =LN('page 252'!H41/'page 252'!H40) -> 0.06070735191 | I57: =LN('page 252'!I41/'page 252'!I40) -> 0.008000042667 | J57: =LN('page 252'!J41/'page 252'!J40) -> 0.0256042567 | K57: =LN('page 252'!K41/'page 252'!K40) -> -0.05661136787 | L57: =LN('page 252'!L41/'page 252'!L40) -> -0.03767514106
A58: 2010-02-01 | B58: =LN('page 252'!B42/'page 252'!B41) -> 0.03104015663 | C58: =LN('page 252'!C42/'page 252'!C41) -> 0.1762355738 | D58: =LN('page 252'!D42/'page 252'!D41) -> -0.007390207441 | E58: =LN('page 252'!E42/'page 252'!E41) -> 0.0220678319 | F58: =LN('page 252'!F42/'page 252'!F41) -> 0.06334677724 | G58: =LN('page 252'!G42/'page 252'!G41) -> -0.03542659027 | H58: =LN('page 252'!H42/'page 252'!H41) -> 0.005280540323 | I58: =LN('page 252'!I42/'page 252'!I41) -> 0.09313468946 | J58: =LN('page 252'!J42/'page 252'!J41) -> -0.05188135674 | K58: =LN('page 252'!K42/'page 252'!K41) -> 0.01530475982 | L58: =LN('page 252'!L42/'page 252'!L41) -> 0.02811474404
A59: 2010-03-01 | B59: =LN('page 252'!B43/'page 252'!B42) -> 0.0439560177 | C59: =LN('page 252'!C43/'page 252'!C42) -> 0.1822579658 | D59: =LN('page 252'!D43/'page 252'!D42) -> 0.1388059194 | E59: =LN('page 252'!E43/'page 252'!E42) -> 0.02123527698 | F59: =LN('page 252'!F43/'page 252'!F42) -> 0.1384309137 | G59: =LN('page 252'!G43/'page 252'!G42) -> 0.02421813549 | H59: =LN('page 252'!H43/'page 252'!H42) -> 0.1248532936 | I59: =LN('page 252'!I43/'page 252'!I42) -> 0.06951703334 | J59: =LN('page 252'!J43/'page 252'!J42) -> -0.02317673425 | K59: =LN('page 252'!K43/'page 252'!K42) -> 0.02992424458 | L59: =LN('page 252'!L43/'page 252'!L42) -> 0.05713276065
A60: 2010-04-01 | B60: =LN('page 252'!B44/'page 252'!B43) -> 0.05640274851 | C60: =LN('page 252'!C44/'page 252'!C43) -> -0.1503423604 | D60: =LN('page 252'!D44/'page 252'!D43) -> -0.1227270882 | E60: =LN('page 252'!E44/'page 252'!E43) -> 0.04184710994 | F60: =LN('page 252'!F44/'page 252'!F43) -> 0.1052796613 | G60: =LN('page 252'!G44/'page 252'!G43) -> 0.02788520349 | H60: =LN('page 252'!H44/'page 252'!H43) -> 0.03595251693 | I60: =LN('page 252'!I44/'page 252'!I43) -> -0.001129305597 | J60: =LN('page 252'!J44/'page 252'!J43) -> -0.02567535134 | K60: =LN('page 252'!K44/'page 252'!K43) -> 0.01169239293 | L60: =LN('page 252'!L44/'page 252'!L43) -> 0.01465146831
A61: 2010-05-03 | B61: =LN('page 252'!B45/'page 252'!B44) -> -0.04586557466 | C61: =LN('page 252'!C45/'page 252'!C44) -> -0.1455342984 | D61: =LN('page 252'!D45/'page 252'!D44) -> -0.2409408913 | E61: =LN('page 252'!E45/'page 252'!E44) -> -0.1640469366 | F61: =LN('page 252'!F45/'page 252'!F44) -> -0.01625612569 | G61: =LN('page 252'!G45/'page 252'!G44) -> -0.02079157768 | H61: =LN('page 252'!H45/'page 252'!H44) -> -0.143187084 | I61: =LN('page 252'!I45/'page 252'!I44) -> -0.1243724951 | J61: =LN('page 252'!J45/'page 252'!J44) -> -0.08264687581 | K61: =LN('page 252'!K45/'page 252'!K44) -> -0.1072221358 | L61: =LN('page 252'!L45/'page 252'!L44) -> -0.08553165363
A62: 2010-06-01 | B62: =LN('page 252'!B46/'page 252'!B45) -> -0.01497387896 | C62: =LN('page 252'!C46/'page 252'!C45) -> -0.2025722434 | D62: =LN('page 252'!D46/'page 252'!D45) -> -0.125163143 | E62: =LN('page 252'!E46/'page 252'!E45) -> -0.1145688907 | F62: =LN('page 252'!F46/'page 252'!F45) -> -0.02104678306 | G62: =LN('page 252'!G46/'page 252'!G45) -> -0.06029333957 | H62: =LN('page 252'!H46/'page 252'!H45) -> -0.1194014209 | I62: =LN('page 252'!I46/'page 252'!I45) -> -0.09033218752 | J62: =LN('page 252'!J46/'page 252'!J45) -> -0.06566910351 | K62: =LN('page 252'!K46/'page 252'!K45) -> -0.05770660938 | L62: =LN('page 252'!L46/'page 252'!L45) -> -0.05538838013
A63: 2010-07-01 | B63: =LN('page 252'!B47/'page 252'!B46) -> 0.05694665038 | C63: =LN('page 252'!C47/'page 252'!C46) -> 0.1397278055 | D63: =LN('page 252'!D47/'page 252'!D46) -> 0.1374709906 | E63: =LN('page 252'!E47/'page 252'!E46) -> 0.1149712242 | F63: =LN('page 252'!F47/'page 252'!F46) -> 0.02248610799 | G63: =LN('page 252'!G47/'page 252'!G46) -> -0.005017781801 | H63: =LN('page 252'!H47/'page 252'!H46) -> 0.1116091736 | I63: =LN('page 252'!I47/'page 252'!I46) -> -0.02338044864 | J63: =LN('page 252'!J47/'page 252'!J46) -> 0.05072752351 | K63: =LN('page 252'!K47/'page 252'!K46) -> 0.0446822002 | L63: =LN('page 252'!L47/'page 252'!L46) -> 0.06651578327
A64: 2010-08-02 | B64: =LN('page 252'!B48/'page 252'!B47) -> 0.05401984699 | C64: =LN('page 252'!C48/'page 252'!C47) -> -0.04135316272 | D64: =LN('page 252'!D48/'page 252'!D47) -> -0.05123964488 | E64: =LN('page 252'!E48/'page 252'!E47) -> -0.09001449223 | F64: =LN('page 252'!F48/'page 252'!F47) -> -0.05657549339 | G64: =LN('page 252'!G48/'page 252'!G47) -> 0.0006286013827 | H64: =LN('page 252'!H48/'page 252'!H47) -> -0.1072455304 | I64: =LN('page 252'!I48/'page 252'!I47) -> -0.119397241 | J64: =LN('page 252'!J48/'page 252'!J47) -> 0.06990046428 | K64: =LN('page 252'!K48/'page 252'!K47) -> -0.002450123732 | L64: =LN('page 252'!L48/'page 252'!L47) -> -0.04861180317
A65: 2010-09-01 | B65: =LN('page 252'!B49/'page 252'!B48) -> 0.01970229788 | C65: =LN('page 252'!C49/'page 252'!C48) -> 0.03128903386 | D65: =LN('page 252'!D49/'page 252'!D48) -> 0.1290057884 | E65: =LN('page 252'!E49/'page 252'!E48) -> 0.04265130622 | F65: =LN('page 252'!F49/'page 252'!F48) -> 0.1546206875 | G65: =LN('page 252'!G49/'page 252'!G48) -> 0.01641254251 | H65: =LN('page 252'!H49/'page 252'!H48) -> 0.1227697749 | I65: =LN('page 252'!I49/'page 252'!I48) -> 0.05117212388 | J65: =LN('page 252'!J49/'page 252'!J48) -> 0.0759206903 | K65: =LN('page 252'!K49/'page 252'!K48) -> 0.044215564 | L65: =LN('page 252'!L49/'page 252'!L48) -> 0.0839284751
A66: 2010-10-01 | B66: =LN('page 252'!B50/'page 252'!B49) -> 0.04282667277 | C66: =LN('page 252'!C50/'page 252'!C49) -> -0.02584845273 | D66: =LN('page 252'!D50/'page 252'!D49) -> -0.01808138079 | E66: =LN('page 252'!E50/'page 252'!E49) -> 0.08525248534 | F66: =LN('page 252'!F50/'page 252'!F49) -> 0.05895024856 | G66: =LN('page 252'!G50/'page 252'!G49) -> -0.004957663532 | H66: =LN('page 252'!H50/'page 252'!H49) -> -0.01422131272 | I66: =LN('page 252'!I50/'page 252'!I49) -> -0.1345186137 | J66: =LN('page 252'!J50/'page 252'!J49) -> 0.01476041558 | K66: =LN('page 252'!K50/'page 252'!K49) -> 0.07335328678 | L66: =LN('page 252'!L50/'page 252'!L49) -> 0.03619300071
A67: 2010-11-01 | B67: =LN('page 252'!B51/'page 252'!B50) -> 0.01457944976 | C67: =LN('page 252'!C51/'page 252'!C50) -> 0.1301049109 | D67: =LN('page 252'!D51/'page 252'!D50) -> -0.01645994883 | E67: =LN('page 252'!E51/'page 252'!E50) -> -0.04799652102 | F67: =LN('page 252'!F51/'page 252'!F50) -> 0.03323129366 | G67: =LN('page 252'!G51/'page 252'!G50) -> -0.01229310199 | H67: =LN('page 252'!H51/'page 252'!H50) -> -0.01178795575 | I67: =LN('page 252'!I51/'page 252'!I50) -> -0.04489084051 | J67: =LN('page 252'!J51/'page 252'!J50) -> -0.05651221026 | K67: =LN('page 252'!K51/'page 252'!K50) -> 0.05146464596 | L67: =LN('page 252'!L51/'page 252'!L50) -> -0.002292909487
A68: 2010-12-01 | B68: =LN('page 252'!B52/'page 252'!B51) -> -0.01979999572 | C68: =LN('page 252'!C52/'page 252'!C51) -> 0.1837703825 | D68: =LN('page 252'!D52/'page 252'!D51) -> 0.1854082297 | E68: =LN('page 252'!E52/'page 252'!E51) -> 0.09969639424 | F68: =LN('page 252'!F52/'page 252'!F51) -> 0.03601405443 | G68: =LN('page 252'!G52/'page 252'!G51) -> 0.03683923107 | H68: =LN('page 252'!H52/'page 252'!H51) -> 0.1518895144 | I68: =LN('page 252'!I52/'page 252'!I51) -> 0.1984142071 | J68: =LN('page 252'!J52/'page 252'!J51) -> 0.07165942504 | K68: =LN('page 252'!K52/'page 252'!K51) -> 0.0499310174 | L68: =LN('page 252'!L52/'page 252'!L51) -> 0.06325651722
A69: 2011-01-03 | B69: =LN('page 252'!B53/'page 252'!B52) -> -0.04109604451 | C69: =LN('page 252'!C53/'page 252'!C52) -> -0.01283625604 | D69: =LN('page 252'!D53/'page 252'!D52) -> -0.04450091711 | E69: =LN('page 252'!E53/'page 252'!E52) -> -0.00664209084 | F69: =LN('page 252'!F53/'page 252'!F52) -> 0.0506544495 | G69: =LN('page 252'!G53/'page 252'!G52) -> -0.01547577211 | H69: =LN('page 252'!H53/'page 252'!H52) -> 0.09649279043 | I69: =LN('page 252'!I53/'page 252'!I52) -> 0.02821271009 | J69: =LN('page 252'!J53/'page 252'!J52) -> 0.0394982083 | K69: =LN('page 252'!K53/'page 252'!K52) -> 0.09832569409 | L69: =LN('page 252'!L53/'page 252'!L52) -> 0.02239298526
A70: 2011-02-01 | B70: =LN('page 252'!B54/'page 252'!B53) -> 0.03503827543 | C70: =LN('page 252'!C54/'page 252'!C53) -> -0.002272132412 | D70: =LN('page 252'!D54/'page 252'!D53) -> 0.01040358041 | E70: =LN('page 252'!E54/'page 252'!E53) -> -0.03618939961 | F70: =LN('page 252'!F54/'page 252'!F53) -> 0.04011916596 | G70: =LN('page 252'!G54/'page 252'!G53) -> 0.07051029134 | H70: =LN('page 252'!H54/'page 252'!H53) -> 0.04471983513 | I70: =LN('page 252'!I54/'page 252'!I53) -> 0.04017757023 | J70: =LN('page 252'!J54/'page 252'!J53) -> 0.06544129271 | K70: =LN('page 252'!K54/'page 252'!K53) -> 0.063637056 | L70: =LN('page 252'!L54/'page 252'!L53) -> 0.03145659504
A71: 2011-03-01 | B71: =LN('page 252'!B55/'page 252'!B54) -> 0.005386492959 | C71: =LN('page 252'!C55/'page 252'!C54) -> -0.06375725743 | D71: =LN('page 252'!D55/'page 252'!D54) -> -0.01436846807 | E71: =LN('page 252'!E55/'page 252'!E54) -> -0.04595350033 | F71: =LN('page 252'!F55/'page 252'!F54) -> -0.01339585671 | G71: =LN('page 252'!G55/'page 252'!G54) -> 0.007810307347 | H71: =LN('page 252'!H55/'page 252'!H54) -> -0.04215375725 | I71: =LN('page 252'!I55/'page 252'!I54) -> -0.06839028033 | J71: =LN('page 252'!J55/'page 252'!J54) -> 0.05375371931 | K71: =LN('page 252'!K55/'page 252'!K54) -> -0.01653728315 | L71: =LN('page 252'!L55/'page 252'!L54) -> -0.001047850683
A72: 2011-04-01 | B72: =LN('page 252'!B56/'page 252'!B55) -> 0.02872657654 | C72: =LN('page 252'!C56/'page 252'!C55) -> -0.1226671929 | D72: =LN('page 252'!D56/'page 252'!D55) -> 0.0252184841 | E72: =LN('page 252'!E56/'page 252'!E55) -> 0.02068490615 | F72: =LN('page 252'!F56/'page 252'!F55) -> 0.004637589899 | G72: =LN('page 252'!G56/'page 252'!G55) -> 0.05912779949 | H72: =LN('page 252'!H56/'page 252'!H55) -> 0.0197925771 | I72: =LN('page 252'!I56/'page 252'!I55) -> -0.08236719435 | J72: =LN('page 252'!J56/'page 252'!J55) -> 0.03230972613 | K72: =LN('page 252'!K56/'page 252'!K55) -> 0.04474806514 | L72: =LN('page 252'!L56/'page 252'!L55) -> 0.02809691637
A73: 2011-05-02 | B73: =LN('page 252'!B57/'page 252'!B56) -> 0.04790114536 | C73: =LN('page 252'!C57/'page 252'!C56) -> -0.03300771148 | D73: =LN('page 252'!D57/'page 252'!D56) -> -0.09727669431 | E73: =LN('page 252'!E57/'page 252'!E56) -> -0.02916124348 | F73: =LN('page 252'!F57/'page 252'!F56) -> -0.006590659423 | G73: =LN('page 252'!G57/'page 252'!G56) -> 0.00232246643 | H73: =LN('page 252'!H57/'page 252'!H56) -> -0.04050797348 | I73: =LN('page 252'!I57/'page 252'!I56) -> -0.0443031079 | J73: =LN('page 252'!J57/'page 252'!J56) -> 0.03226086222 | K73: =LN('page 252'!K57/'page 252'!K56) -> -0.04694131568 | L73: =LN('page 252'!L57/'page 252'!L56) -> -0.0135928939
A74: 2011-06-01 | B74: =LN('page 252'!B58/'page 252'!B57) -> 0.0335158572 | C74: =LN('page 252'!C58/'page 252'!C57) -> -0.001526551381 | D74: =LN('page 252'!D58/'page 252'!D57) -> 0.0385871111 | E74: =LN('page 252'!E58/'page 252'!E57) -> 0.03856570151 | F74: =LN('page 252'!F58/'page 252'!F57) -> -0.03558532018 | G74: =LN('page 252'!G58/'page 252'!G57) -> -0.02970156761 | H74: =LN('page 252'!H58/'page 252'!H57) -> -0.03244102617 | I74: =LN('page 252'!I58/'page 252'!I57) -> -0.06899287149 | J74: =LN('page 252'!J58/'page 252'!J57) -> -0.04074183099 | K74: =LN('page 252'!K58/'page 252'!K57) -> -0.02532406344 | L74: =LN('page 252'!L58/'page 252'!L57) -> -0.0184262333
A75: 2011-07-01 | B75: =LN('page 252'!B59/'page 252'!B58) -> 0.02529976379 | C75: =LN('page 252'!C59/'page 252'!C58) -> -0.1408537647 | D75: =LN('page 252'!D59/'page 252'!D58) -> -0.1096734022 | E75: =LN('page 252'!E59/'page 252'!E58) -> 0.05242370048 | F75: =LN('page 252'!F59/'page 252'!F58) -> 0.1512482171 | G75: =LN('page 252'!G59/'page 252'!G58) -> 0.008238032859 | H75: =LN('page 252'!H59/'page 252'!H58) -> -0.05157782989 | I75: =LN('page 252'!I59/'page 252'!I58) -> -0.120534069 | J75: =LN('page 252'!J59/'page 252'!J58) -> -0.06788412479 | K75: =LN('page 252'!K59/'page 252'!K58) -> -0.01971005057 | L75: =LN('page 252'!L59/'page 252'!L58) -> -0.02170836744
A76: 2011-08-01 | B76: =LN('page 252'!B60/'page 252'!B59) -> 0.05121118921 | C76: =LN('page 252'!C60/'page 252'!C59) -> -0.2823362528 | D76: =LN('page 252'!D60/'page 252'!D59) -> -0.3398834181 | E76: =LN('page 252'!E60/'page 252'!E59) -> -0.02321332238 | F76: =LN('page 252'!F60/'page 252'!F59) -> -0.01457507325 | G76: =LN('page 252'!G60/'page 252'!G59) -> -0.01858550138 | H76: =LN('page 252'!H60/'page 252'!H59) -> -0.09360417996 | I76: =LN('page 252'!I60/'page 252'!I59) -> -0.172043974 | J76: =LN('page 252'!J60/'page 252'!J59) -> -0.002684565371 | K76: =LN('page 252'!K60/'page 252'!K59) -> -0.06851904147 | L76: =LN('page 252'!L60/'page 252'!L59) -> -0.05846749162
A77: 2011-09-01 | B77: =LN('page 252'!B61/'page 252'!B60) -> -0.02917109047 | C77: =LN('page 252'!C61/'page 252'!C60) -> -0.3132192046 | D77: =LN('page 252'!D61/'page 252'!D60) -> -0.3229486387 | E77: =LN('page 252'!E61/'page 252'!E60) -> -0.06656076652 | F77: =LN('page 252'!F61/'page 252'!F60) -> -0.009162760705 | G77: =LN('page 252'!G61/'page 252'!G60) -> -0.02102179514 | H77: =LN('page 252'!H61/'page 252'!H60) -> -0.0598827096 | I77: =LN('page 252'!I61/'page 252'!I60) -> -0.2880911541 | J77: =LN('page 252'!J61/'page 252'!J60) -> -0.07129967758 | K77: =LN('page 252'!K61/'page 252'!K60) -> -0.01889841747 | L77: =LN('page 252'!L61/'page 252'!L60) -> -0.07446712754
A78: 2011-10-03 | B78: =LN('page 252'!B62/'page 252'!B61) -> 0.05578068687 | C78: =LN('page 252'!C62/'page 252'!C61) -> 0.1413064666 | D78: =LN('page 252'!D62/'page 252'!D61) -> 0.2647073291 | E78: =LN('page 252'!E62/'page 252'!E61) -> 0.06769648498 | F78: =LN('page 252'!F62/'page 252'!F61) -> 0.05970479201 | G78: =LN('page 252'!G62/'page 252'!G61) -> 0.01897661455 | H78: =LN('page 252'!H62/'page 252'!H61) -> 0.09368008918 | I78: =LN('page 252'!I62/'page 252'!I61) -> 0.1099326987 | J78: =LN('page 252'!J62/'page 252'!J61) -> 0.08571145625 | K78: =LN('page 252'!K62/'page 252'!K61) -> 0.07237571491 | L78: =LN('page 252'!L62/'page 252'!L61) -> 0.1023065917
A79: 2011-11-01 | B79: =LN('page 252'!B63/'page 252'!B62) -> 0.0358094527 | C79: =LN('page 252'!C63/'page 252'!C62) -> 0.07580250487 | D79: =LN('page 252'!D63/'page 252'!D62) -> -0.08227989057 | E79: =LN('page 252'!E63/'page 252'!E62) -> -0.03268893247 | F79: =LN('page 252'!F63/'page 252'!F62) -> -0.05739967783 | G79: =LN('page 252'!G63/'page 252'!G62) -> -0.08889122004 | H79: =LN('page 252'!H63/'page 252'!H62) -> -0.04891101739 | I79: =LN('page 252'!I63/'page 252'!I62) -> -0.226080411 | J79: =LN('page 252'!J63/'page 252'!J62) -> 0.05113429924 | K79: =LN('page 252'!K63/'page 252'!K62) -> 0.03562717764 | L79: =LN('page 252'!L63/'page 252'!L62) -> -0.005071483437
A80: 2011-12-01 | B80: =LN('page 252'!B64/'page 252'!B63) -> 0.04912910329 | C80: =LN('page 252'!C64/'page 252'!C63) -> -0.03129912717 | D80: =LN('page 252'!D64/'page 252'!D63) -> -0.03776068898 | E80: =LN('page 252'!E64/'page 252'!E63) -> 0.01474609569 | F80: =LN('page 252'!F64/'page 252'!F63) -> 0.0579430353 | G80: =LN('page 252'!G64/'page 252'!G63) -> 0.02827823039 | H80: =LN('page 252'!H64/'page 252'!H63) -> 0.1278841316 | I80: =LN('page 252'!I64/'page 252'!I63) -> 0.02181904739 | J80: =LN('page 252'!J64/'page 252'!J63) -> 0.0756174064 | K80: =LN('page 252'!K64/'page 252'!K63) -> 0.05235523033 | L80: =LN('page 252'!L64/'page 252'!L63) -> 0.008496553494
A81: 2012-01-03 | B81: =LN('page 252'!B65/'page 252'!B64) -> -0.01283997979 | C81: =LN('page 252'!C65/'page 252'!C64) -> 0.1317318941 | D81: =LN('page 252'!D65/'page 252'!D64) -> 0.1205280278 | E81: =LN('page 252'!E65/'page 252'!E64) -> 0.1288498039 | F81: =LN('page 252'!F65/'page 252'!F64) -> 0.1196578204 | G81: =LN('page 252'!G65/'page 252'!G64) -> -0.02098188672 | H81: =LN('page 252'!H65/'page 252'!H64) -> 0.04369892421 | I81: =LN('page 252'!I65/'page 252'!I64) -> 0.2487131262 | J81: =LN('page 252'!J65/'page 252'!J64) -> -0.01126772485 | K81: =LN('page 252'!K65/'page 252'!K64) -> -0.0121734407 | L81: =LN('page 252'!L65/'page 252'!L64) -> 0.04265999901
A82: 2012-02-01 | B82: =LN('page 252'!B66/'page 252'!B65) -> 0.009445407843 | C82: =LN('page 252'!C66/'page 252'!C65) -> 0.02845653991 | D82: =LN('page 252'!D66/'page 252'!D65) -> 0.1270533403 | E82: =LN('page 252'!E66/'page 252'!E65) -> 0.04113349358 | F82: =LN('page 252'!F66/'page 252'!F65) -> 0.07730905472 | G82: =LN('page 252'!G66/'page 252'!G65) -> 0.01383758167 | H82: =LN('page 252'!H66/'page 252'!H65) -> 0.02219964317 | I82: =LN('page 252'!I66/'page 252'!I65) -> 0.1373809162 | J82: =LN('page 252'!J66/'page 252'!J65) -> -0.001890359731 | K82: =LN('page 252'!K66/'page 252'!K65) -> 0.01903007 | L82: =LN('page 252'!L66/'page 252'!L65) -> 0.02968285298

Sheet Page 269
A1: COMPARING IMPLIED AND HISTORICAL VOLATILITY
A2: Current date | B2: 41100
A3: Expire date | B3: 41138 | E3: =ggetformula(E7) -> =callvolatility(B7,C7,($B$3-$B$2)/365,$B$4,D7)
A4: Interest | B4: 0.01
B6: Stock price | C6: Strike | D6: Price | E6: Implied volatility | F6: Historical volatility
A7: MCD | B7: 90.25 | C7: 90 | D7: 2.09 | E7: =callvolatility(B7,C7,($B$3-$B$2)/365,$B$4,D7) -> 0.1650085449 | F7: =TRANSPOSE('Betas etc'!B11:L11) -> 0.1541852709 | G7: =getformula(F7) -> <-- {=TRANSPOSE('Betas etc'!B11:L11)}
A8: X | B8: 20.28 | C8: 20 | D8: 1.58 | E8: 0.5505065918 | F8: 0.6699882616
A9: MT | B9: 14.67 | C9: 15 | D9: 0.75 | E9: 0.4712219238 | F9: 0.5617738467
A10: MSFT | B10: 29.74 | C10: 30 | D10: 1.07 | E10: 0.3074035645 | F10: 0.2720919849
A11: AAPL | B11: 608.21 | C11: 610 | D11: 25.3 | E11: 0.3303527832 | F11: 0.3852634533
A12: K | B12: 48.98 | C12: 50 | D12: 0.4 | E12: 0.1243591309 | F12: 0.176692147
A13: GE | B13: 19.62 | C13: 20 | D13: 0.39 | E13: 0.2162780762 | F13: 0.3791115239
A14: BAC | B14: 7.48 | C14: 8 | D14: 0.22 | E14: 0.4303894043 | F14: 0.6809673537
A15: PFE | B15: 22.44 | C15: 23 | D15: 0.18 | E15: 0.1337585449 | F15: 0.2187414353
A16: XOM | B16: 83.11 | C16: 85 | D16: 0.9 | E16: 0.1522521973 | F16: 0.1755123172
A17: ^GSPC | B17: 1341.47 | C17: 1350 | D17: 22.5 | E17: 0.1496276855 | F17: 0.1920982414

Sheet Page 270
A1: CONSTANT CORRELATION MATRIX WITH IMPLIED VOLATILITIES
A2: Correlation | B2: 0.2
B4: MCD | C4: X | D4: MT | E4: MSFT | F4: AAPL | G4: K | H4: GE | I4: BAC | J4: PFE | K4: XOM
A5: MCD | B5: =ImpliedVolvarcov(B5:K14,E22:E31,B2) -> 0.0272278199 | C5: 0.01816765834 | D5: 0.0155511288 | E5: 0.01014484297 | F5: 0.01090220641 | G5: 0.004104063846 | H5: 0.00713754613 | I5: 0.01420358587 | J5: 0.004414260574 | K5: 0.005024582706
A6: X | B6: 0.01816765834 | C6: 0.3030575076 | D6: 0.05188215505 | E6: 0.03384553771 | F6: 0.03637227695 | G6: 0.01369210426 | H6: 0.02381250132 | I6: 0.04738644082 | J6: 0.01472699214 | K6: 0.01676316764
A7: MT | B7: 0.0155511288 | C7: 0.05188215505 | D7: 0.2220501015 | E7: 0.02897105981 | F7: 0.03113389481 | G7: 0.01172014978 | H7: 0.02038299423 | I7: 0.04056178462 | J7: 0.01260599177 | K7: 0.01434891466
A8: MSFT | B8: 0.01014484297 | C8: 0.03384553771 | D8: 0.02897105981 | E8: 0.09449695144 | F8: 0.02031032462 | G8: 0.00764568802 | H8: 0.01329693031 | I8: 0.0264606474 | J8: 0.008223570697 | K8: 0.009360573627
A9: AAPL | B9: 0.01090220641 | C9: 0.03637227695 | D9: 0.03113389481 | E9: 0.02031032462 | F9: 0.1091329614 | G9: 0.008216476999 | H9: 0.01428961288 | I9: 0.02843606751 | J9: 0.008837501518 | K9: 0.01005938742
A10: K | B10: 0.004104063846 | C10: 0.01369210426 | D10: 0.01172014978 | E10: 0.00764568802 | F10: 0.008216476999 | G10: 0.01546519343 | H10: 0.005379230715 | I10: 0.01070457045 | J10: 0.003326819278 | K10: 0.003786790185
A11: GE | B11: 0.00713754613 | C11: 0.02381250132 | D11: 0.02038299423 | E11: 0.01329693031 | F11: 0.01428961288 | G11: 0.005379230715 | H11: 0.04677620623 | I11: 0.01861675847 | J11: 0.005785808153 | K11: 0.006585762464
A12: BAC | B12: 0.01420358587 | C12: 0.04738644082 | D12: 0.04056178462 | E12: 0.0264606474 | F12: 0.02843606751 | G12: 0.01070457045 | H12: 0.01861675847 | I12: 0.1852350393 | J12: 0.01151365209 | K12: 0.0131055465
A13: PFE | B13: 0.004414260574 | C13: 0.01472699214 | D13: 0.01260599177 | E13: 0.008223570697 | F13: 0.008837501518 | G13: 0.003326819278 | H13: 0.005785808153 | I13: 0.01151365209 | J13: 0.01789134834 | K13: 0.004073006473
A14: XOM | B14: 0.005024582706 | C14: 0.01676316764 | D14: 0.01434891466 | E14: 0.009360573627 | F14: 0.01005938742 | G14: 0.003786790185 | H14: 0.006585762464 | I14: 0.0131055465 | J14: 0.004073006473 | K14: 0.02318073157
B15: =getformula(K5) -> <-- {=ImpliedVolvarcov(B5:K14,E22:E31,B2)}
A17: Current date | B17: 41100
A18: Expire date | B18: 41138
A19: Interest | B19: 0.01
B21: Stock price | C21: Strike | D21: Price | E21: Implied volatility
A22: MCD | B22: 90.25 | C22: 90 | D22: 2.09 | E22: =callvolatility(B22,C22,($B$18-$B$17)/365,$B$19,D22) -> 0.1650085449 | F22: =getformula(E22) -> <-- =callvolatility(B22,C22,($B$18-$B$17)/365,$B$19,D22)
A23: X | B23: 20.28 | C23: 20 | D23: 1.58 | E23: =callvolatility(B23,C23,($B$18-$B$17)/365,$B$19,D23) -> 0.5505065918
A24: MT | B24: 14.67 | C24: 15 | D24: 0.75 | E24: 0.4712219238
A25: MSFT | B25: 29.74 | C25: 30 | D25: 1.07 | E25: 0.3074035645
A26: AAPL | B26: 608.21 | C26: 610 | D26: 25.3 | E26: 0.3303527832
A27: K | B27: 48.98 | C27: 50 | D27: 0.4 | E27: 0.1243591309
A28: GE | B28: 19.62 | C28: 20 | D28: 0.39 | E28: 0.2162780762
A29: BAC | B29: 7.48 | C29: 8 | D29: 0.22 | E29: 0.4303894043
A30: PFE | B30: 22.44 | C30: 23 | D30: 0.18 | E30: 0.1337585449
A31: XOM | B31: 83.11 | C31: 85 | D31: 0.9 | E31: 0.1522521973
